Organisation Name (A),Department (B),Service Cat Label (C ),Purpose of Spend (D),Expenditure CIPFA Sub Group (E ),Supplier (F),Supplier Reference (G),Pay Date (H),Transaction Number (I),Net Amount (J),Grant to VCSE? (K),Charity Number (L),Card Transaction (M),Irrecoverable VAT (N)
Pendle Borough Council,Parks & Recreation Services,Supplies and Services,4201,Protective Clothing,FST CONSUMABLES LIMITED,A0000004, 27/03/2019,PCO0294605,28.55,N,N/A,N,N/A
Pendle Borough Council,Property Services,Premises Related Expense,2001,Bldgs : R & M : Day To Day,ATKINSON CLEANING SERVICES LTD,A0000010, 14/03/2019,EST0294245,65,N,N/A,N,N/A
Pendle Borough Council,Property Services,Premises Related Expense,2001,Bldgs : R & M : Day To Day,ATKINSON CLEANING SERVICES LTD,A0000010, 14/03/2019,EST0294244,110,N,N/A,N,N/A
Pendle Borough Council,Parks & Recreation Services,Supplies and Services,4601,Seminars etc All Costs,APSE,A0000021, 07/03/2019,PCO0294125,259,N,N/A,N,N/A
Pendle Borough Council,Parks & Recreation Services,Supplies and Services,2,Expenditure : Materials,BARNES JB LIMITED,A0000202, 07/03/2019,PCO0294127,24.72,N,N/A,N,N/A
Pendle Borough Council,Parks & Recreation Services,Premises Related Expense,2001,Bldgs : R & M : Day To Day,BARNES JB LIMITED,A0000202, 14/03/2019,PCO0294196,24.77,N,N/A,N,N/A
Pendle Borough Council,Operational Services,Premises Related Expense,2001,Bldgs : R & M : Day To Day,BARNES JB LIMITED,A0000202, 21/03/2019,OPS0294507,14,N,N/A,N,N/A
Pendle Borough Council,Parks & Recreation Services,Premises Related Expense,2101,Grounds : R & M : Day to Day : Routine,BARNES JB LIMITED,A0000202, 27/03/2019,PCO0294532,8.32,N,N/A,N,N/A
Pendle Borough Council,Parks & Recreation Services,Premises Related Expense,2101,Grounds : R & M : Day to Day : Routine,BARNES JB LIMITED,A0000202, 07/03/2019,PCO0294126,9.33,N,N/A,N,N/A
Pendle Borough Council,Parks & Recreation Services,Premises Related Expense,2101,Grounds : R & M : Day to Day : Routine,BARNES JB LIMITED,A0000202, 27/03/2019,PCO0294530,15.32,N,N/A,N,N/A
Pendle Borough Council,Parks & Recreation Services,Premises Related Expense,2101,Grounds : R & M : Day to Day : Routine,BARNES JB LIMITED,A0000202, 14/03/2019,PCO0294207,266.9,N,N/A,N,N/A
Pendle Borough Council,Parks & Recreation Services,Transport Related Expense,3105,Tprt : Repairs : General,BARNES JB LIMITED,A0000202, 27/03/2019,PCO0294533,2.05,N,N/A,N,N/A
Pendle Borough Council,Parks & Recreation Services,Transport Related Expense,3105,Tprt : Repairs : General,BARNES JB LIMITED,A0000202, 27/03/2019,PCO0294534,11.01,N,N/A,N,N/A
Pendle Borough Council,Parks & Recreation Services,Transport Related Expense,3105,Tprt : Repairs : General,BARNES JB LIMITED,A0000202, 27/03/2019,PCO0294533,11.39,N,N/A,N,N/A
Pendle Borough Council,Parks & Recreation Services,Transport Related Expense,3105,Tprt : Repairs : General,BARNES JB LIMITED,A0000202, 27/03/2019,PCO0294531,27.65,N,N/A,N,N/A
Pendle Borough Council,Economic Development & Tourism,Supplies and Services,4004,EFM Materials,BARNES JB LIMITED,A0000202, 27/03/2019,REG0294623,87.04,N,N/A,N,N/A
Pendle Borough Council,Operational Services,Supplies and Services,4004,EFM Materials,BARNES JB LIMITED,A0000202, 07/03/2019,OPS0294115,340.23,N,N/A,N,N/A
Pendle Borough Council,Operational Services,Supplies and Services,4007,Sub-Contractors,BARNES JB LIMITED,A0000202, 07/03/2019,OPS0294106,21.28,N,N/A,N,N/A
Pendle Borough Council,Operational Services,Supplies and Services,4007,Sub-Contractors,BARNES JB LIMITED,A0000202, 07/03/2019,OPS0294106,26,N,N/A,N,N/A
Pendle Borough Council,Economic Development & Tourism,Supplies and Services,4707,Miscellaneous : Other,BARNES JB LIMITED,A0000202, 27/03/2019,REG0294623,67.06,N,N/A,N,N/A
Pendle Borough Council,Democratic & Legal Services,Capital Costs,CD14,Capital : Payments,BLACKBURN/DARWEN BOROUGH COUNCIL,A0000381, 27/03/2019,DAL0294725,4500.57,N,N/A,N,N/A
Pendle Borough Council,Parks & Recreation Services,Transport Related Expense,3105,Tprt : Repairs : General,BOC GASES LTD,A0000386, 07/03/2019,PCO0294147,2,N,N/A,N,N/A
Pendle Borough Council,Parks & Recreation Services,Transport Related Expense,3105,Tprt : Repairs : General,BOC GASES LTD,A0000386, 07/03/2019,PCO0294147,7.45,N,N/A,N,N/A
Pendle Borough Council,Parks & Recreation Services,Transport Related Expense,3105,Tprt : Repairs : General,BOC GASES LTD,A0000386, 07/03/2019,PCO0294147,9.85,N,N/A,N,N/A
Pendle Borough Council,Parks & Recreation Services,Premises Related Expense,2101,Grounds : R & M : Day to Day : Routine,CB EXCAVATORS LTD,A0000396, 07/03/2019,PCO0294129,100,N,N/A,N,N/A
Pendle Borough Council,Engineering & Special Projects,Capital Costs,CD14,Capital : Payments,CB EXCAVATORS LTD,A0000396, 07/03/2019,HED0294099,1100,N,N/A,N,N/A
Pendle Borough Council,Engineering & Special Projects,Capital Costs,CD14,Capital : Payments,CB EXCAVATORS LTD,A0000396, 07/03/2019,HED0294145,2334,N,N/A,N,N/A
Pendle Borough Council,Property Services,Premises Related Expense,2001,Bldgs : R & M : Day To Day,GEORGE BOOCOCK DECORATORS LTD,A0000427, 14/03/2019,EST0294241,286,N,N/A,N,N/A
Pendle Borough Council,Property Services,Premises Related Expense,2101,Grounds : R & M : Day to Day : Routine,GEORGE BOOCOCK DECORATORS LTD,A0000427, 14/03/2019,EST0294241,500,N,N/A,N,N/A
Pendle Borough Council,Property Services,Premises Related Expense,2101,Grounds : R & M : Day to Day : Routine,GEORGE BOOCOCK DECORATORS LTD,A0000427, 14/03/2019,EST0294241,1000,N,N/A,N,N/A
Pendle Borough Council,Parks & Recreation Services,Premises Related Expense,2101,Grounds : R & M : Day to Day : Routine,GEORGE BOOCOCK DECORATORS LTD,A0000427, 27/03/2019,PCO0294665,623,N,N/A,N,N/A
Pendle Borough Council,Parks & Recreation Services,Premises Related Expense,2101,Grounds : R & M : Day to Day : Routine,GEORGE BOOCOCK DECORATORS LTD,A0000427, 27/03/2019,PCO0294665,752,N,N/A,N,N/A
Pendle Borough Council,Parks & Recreation Services,Premises Related Expense,2101,Grounds : R & M : Day to Day : Routine,GEORGE BOOCOCK DECORATORS LTD,A0000427, 27/03/2019,PCO0294665,817,N,N/A,N,N/A
Pendle Borough Council,Parks & Recreation Services,Premises Related Expense,2101,Grounds : R & M : Day to Day : Routine,GEORGE BOOCOCK DECORATORS LTD,A0000427, 27/03/2019,PCO0294665,1019,N,N/A,N,N/A
Pendle Borough Council,Property Services,Premises Related Expense,2001,Bldgs : R & M : Day To Day,BARROWFORD SAFE & LOCK SERV LT,A0000458, 14/03/2019,EST0294246,62.5,N,N/A,N,N/A
Pendle Borough Council,Property Services,Premises Related Expense,2001,Bldgs : R & M : Day To Day,BARROWFORD SAFE & LOCK SERV LT,A0000458, 21/03/2019,EST0294392,70,N,N/A,N,N/A
Pendle Borough Council,Parks & Recreation Services,Premises Related Expense,2101,Grounds : R & M : Day to Day : Routine,BRIGGS & DUXBURY LTD,A0000459, 27/03/2019,PCO0294601,300,N,N/A,N,N/A
Pendle Borough Council,Parks & Recreation Services,Supplies and Services,2,Expenditure : Materials,BARROWFORD SAFE & LOCK & BB LOCKSMITHS,A0000510, 07/03/2019,PCO0294128,21.68,N,N/A,N,N/A
Pendle Borough Council,Parks & Recreation Services,Premises Related Expense,2001,Bldgs : R & M : Day To Day,BARROWFORD SAFE & LOCK & BB LOCKSMITHS,A0000510, 07/03/2019,PCO0294128,30,N,N/A,N,N/A
Pendle Borough Council,Parks & Recreation Services,Premises Related Expense,2001,Bldgs : R & M : Day To Day,BARROWFORD SAFE & LOCK & BB LOCKSMITHS,A0000510, 07/03/2019,PCO0294128,11.68,N,N/A,N,N/A
Pendle Borough Council,Financial Services,Capital Costs,CD14,Capital : Payments,BARROWFORD SAFE & LOCK & BB LOCKSMITHS,A0000510, 21/03/2019,AAS0294435,2150,N,N/A,N,N/A
Pendle Borough Council,Operational Services,Supplies and Services,4301,Printing & Stationery,CANFORD AUDIO PLC,A0000606, 21/03/2019,OPS0294329,120,N,N/A,N,N/A
Pendle Borough Council,Democratic & Legal Services,Transport Related Expense,3501,Hire of Transport,CAVALIER TAXIS,A0000638, 14/03/2019,DAL0294305,4,N,N/A,N,N/A
Pendle Borough Council,Democratic & Legal Services,Transport Related Expense,3501,Hire of Transport,CAVALIER TAXIS,A0000638, 14/03/2019,DAL0294299,10,N,N/A,N,N/A
Pendle Borough Council,Democratic & Legal Services,Supplies and Services,4601,Seminars etc All Costs,CAVALIER TAXIS,A0000638, 14/03/2019,DAL0294307,50,N,N/A,N,N/A
Pendle Borough Council,Democratic & Legal Services,Supplies and Services,4705,Other Expenses,CAVALIER TAXIS,A0000638, 14/03/2019,DAL0294308,40,N,N/A,N,N/A
Pendle Borough Council,Housing Regeneration Services,Transfer Payments,6104,Storage & Homelessness prevention,CAVALIER TAXIS,A0000638, 14/03/2019,HMR0294226,25,N,N/A,N,N/A
Pendle Borough Council,Economic Development & Tourism,Supplies and Services,4707,Miscellaneous : Other,DEWHURST DECORATING SUPPLIES,A0000879, 14/03/2019,REG0294229,58.64,N,N/A,N,N/A
Pendle Borough Council,Economic Development & Tourism,Supplies and Services,4707,Miscellaneous : Other,DEWHURST DECORATING SUPPLIES,A0000879, 14/03/2019,REG0294228,79.21,N,N/A,N,N/A
Pendle Borough Council,Property Services,Premises Related Expense,2001,Bldgs : R & M : Day To Day,J DRIVER LTD,A0000884, 21/03/2019,EST0294395,55,N,N/A,N,N/A
Pendle Borough Council,Property Services,Premises Related Expense,2001,Bldgs : R & M : Day To Day,J DRIVER LTD,A0000884, 21/03/2019,EST0294395,72,N,N/A,N,N/A
Pendle Borough Council,Property Services,Premises Related Expense,2001,Bldgs : R & M : Day To Day,J DRIVER LTD,A0000884, 21/03/2019,EST0294395,115.16,N,N/A,N,N/A
Pendle Borough Council,Property Services,Premises Related Expense,2001,Bldgs : R & M : Day To Day,J DRIVER LTD,A0000884, 21/03/2019,EST0294395,108,N,N/A,N,N/A
Pendle Borough Council,Property Services,Premises Related Expense,2001,Bldgs : R & M : Day To Day,J DRIVER LTD,A0000884, 21/03/2019,EST0294395,64.35,N,N/A,N,N/A
Pendle Borough Council,Property Services,Premises Related Expense,2001,Bldgs : R & M : Day To Day,J DRIVER LTD,A0000884, 21/03/2019,EST0294395,201.04,N,N/A,N,N/A
Pendle Borough Council,Property Services,Premises Related Expense,2001,Bldgs : R & M : Day To Day,J DRIVER LTD,A0000884, 21/03/2019,EST0294395,479.4,N,N/A,N,N/A
Pendle Borough Council,Property Services,Premises Related Expense,2001,Bldgs : R & M : Day To Day,J DRIVER LTD,A0000884, 21/03/2019,EST0294395,347.62,N,N/A,N,N/A
Pendle Borough Council,Property Services,Premises Related Expense,2001,Bldgs : R & M : Day To Day,J DRIVER LTD,A0000884, 21/03/2019,EST0294395,68.2,N,N/A,N,N/A
Pendle Borough Council,Property Services,Premises Related Expense,2101,Grounds : R & M : Day to Day : Routine,J DRIVER LTD,A0000884, 21/03/2019,EST0294395,822.04,N,N/A,N,N/A
Pendle Borough Council,Parks & Recreation Services,Supplies and Services,4201,Protective Clothing,ENGINEERING & FOUNDRY SUPPLIES,A0001002, 07/03/2019,PCO0294027,12.8,N,N/A,N,N/A
Pendle Borough Council,Parks & Recreation Services,Supplies and Services,4201,Protective Clothing,ENGINEERING & FOUNDRY SUPPLIES,A0001002, 07/03/2019,PCO0294027,45.6,N,N/A,N,N/A
Pendle Borough Council,Economic Development & Tourism,Supplies and Services,4201,Protective Clothing,ENGINEERING & FOUNDRY SUPPLIES,A0001002, 21/03/2019,REG0294496,15,N,N/A,N,N/A
Pendle Borough Council,Economic Development & Tourism,Supplies and Services,4201,Protective Clothing,ENGINEERING & FOUNDRY SUPPLIES,A0001002, 21/03/2019,REG0294497,27,N,N/A,N,N/A
Pendle Borough Council,Economic Development & Tourism,Supplies and Services,4201,Protective Clothing,ENGINEERING & FOUNDRY SUPPLIES,A0001002, 07/03/2019,REG0294047,54,N,N/A,N,N/A
Pendle Borough Council,Operational Services,,PJ01,Stock : Purchases,ENGINEERING & FOUNDRY SUPPLIES,A0001002, 14/03/2019,OPS0294277,12.8,N,N/A,N,N/A
Pendle Borough Council,Operational Services,,PJ01,Stock : Purchases,ENGINEERING & FOUNDRY SUPPLIES,A0001002, 27/03/2019,OPS0294689,19.5,N,N/A,N,N/A
Pendle Borough Council,Operational Services,,PJ01,Stock : Purchases,ENGINEERING & FOUNDRY SUPPLIES,A0001002, 27/03/2019,OPS0294729,34.16,N,N/A,N,N/A
Pendle Borough Council,Operational Services,,PJ01,Stock : Purchases,ENGINEERING & FOUNDRY SUPPLIES,A0001002, 27/03/2019,OPS0294727,40.95,N,N/A,N,N/A
Pendle Borough Council,Operational Services,,PJ01,Stock : Purchases,ENGINEERING & FOUNDRY SUPPLIES,A0001002, 07/03/2019,OPS0294109,41.25,N,N/A,N,N/A
Pendle Borough Council,Operational Services,,PJ01,Stock : Purchases,ENGINEERING & FOUNDRY SUPPLIES,A0001002, 07/03/2019,OPS0294109,45.6,N,N/A,N,N/A
Pendle Borough Council,Operational Services,,PJ01,Stock : Purchases,ENGINEERING & FOUNDRY SUPPLIES,A0001002, 07/03/2019,OPS0294109,45.6,N,N/A,N,N/A
Pendle Borough Council,Operational Services,,PJ01,Stock : Purchases,ENGINEERING & FOUNDRY SUPPLIES,A0001002, 21/03/2019,OPS0294508,45.6,N,N/A,N,N/A
Pendle Borough Council,Operational Services,,PJ01,Stock : Purchases,ENGINEERING & FOUNDRY SUPPLIES,A0001002, 27/03/2019,OPS0294727,68.4,N,N/A,N,N/A
Pendle Borough Council,Operational Services,,PJ01,Stock : Purchases,ENGINEERING & FOUNDRY SUPPLIES,A0001002, 27/03/2019,OPS0294727,68.4,N,N/A,N,N/A
Pendle Borough Council,Operational Services,,PJ01,Stock : Purchases,ENGINEERING & FOUNDRY SUPPLIES,A0001002, 14/03/2019,OPS0294279,79.88,N,N/A,N,N/A
Pendle Borough Council,Operational Services,,PJ01,Stock : Purchases,ENGINEERING & FOUNDRY SUPPLIES,A0001002, 27/03/2019,OPS0294727,84,N,N/A,N,N/A
Pendle Borough Council,Operational Services,,PJ01,Stock : Purchases,ENGINEERING & FOUNDRY SUPPLIES,A0001002, 14/03/2019,OPS0294276,90,N,N/A,N,N/A
Pendle Borough Council,Operational Services,,PJ01,Stock : Purchases,ENGINEERING & FOUNDRY SUPPLIES,A0001002, 14/03/2019,OPS0294276,91.2,N,N/A,N,N/A
Pendle Borough Council,Operational Services,,PJ01,Stock : Purchases,ENGINEERING & FOUNDRY SUPPLIES,A0001002, 07/03/2019,OPS0294110,132,N,N/A,N,N/A
Pendle Borough Council,Operational Services,,PJ01,Stock : Purchases,ENGINEERING & FOUNDRY SUPPLIES,A0001002, 27/03/2019,OPS0294728,142.5,N,N/A,N,N/A
Pendle Borough Council,Operational Services,,PJ01,Stock : Purchases,ENGINEERING & FOUNDRY SUPPLIES,A0001002, 27/03/2019,OPS0294728,142.5,N,N/A,N,N/A
Pendle Borough Council,Operational Services,,PJ01,Stock : Purchases,ENGINEERING & FOUNDRY SUPPLIES,A0001002, 27/03/2019,OPS0294730,175,N,N/A,N,N/A
Pendle Borough Council,Operational Services,,PJ01,Stock : Purchases,ENGINEERING & FOUNDRY SUPPLIES,A0001002, 27/03/2019,OPS0294730,175,N,N/A,N,N/A
Pendle Borough Council,Operational Services,,PJ01,Stock : Purchases,ENGINEERING & FOUNDRY SUPPLIES,A0001002, 27/03/2019,OPS0294728,237,N,N/A,N,N/A
Pendle Borough Council,Operational Services,,PJ01,Stock : Purchases,ENGINEERING & FOUNDRY SUPPLIES,A0001002, 27/03/2019,OPS0294728,237.75,N,N/A,N,N/A
Pendle Borough Council,Operational Services,,PJ01,Stock : Purchases,ENGINEERING & FOUNDRY SUPPLIES,A0001002, 27/03/2019,OPS0294730,290.5,N,N/A,N,N/A
Pendle Borough Council,Operational Services,Transport Related Expense,3105,Tprt : Repairs : General,FREIGHT TRANSPORT ASSOCIATION,A0001124, 21/03/2019,OPS0294515,10.8,N,N/A,N,N/A
Pendle Borough Council,Parks & Recreation Services,Premises Related Expense,2001,Bldgs : R & M : Day To Day,GIBSONS GARDEN MACHINERY LTD,A0001201, 07/03/2019,PCO0294131,98.85,N,N/A,N,N/A
Pendle Borough Council,Parks & Recreation Services,Transport Related Expense,3105,Tprt : Repairs : General,GIBSONS GARDEN MACHINERY LTD,A0001201, 07/03/2019,PCO0294130,1,N,N/A,N,N/A
Pendle Borough Council,Parks & Recreation Services,Transport Related Expense,3105,Tprt : Repairs : General,GIBSONS GARDEN MACHINERY LTD,A0001201, 07/03/2019,PCO0294130,15.36,N,N/A,N,N/A
Pendle Borough Council,Parks & Recreation Services,Transport Related Expense,3105,Tprt : Repairs : General,GIBSONS GARDEN MACHINERY LTD,A0001201, 07/03/2019,PCO0294130,40,N,N/A,N,N/A
Pendle Borough Council,Parks & Recreation Services,Transport Related Expense,3105,Tprt : Repairs : General,GIBSONS GARDEN MACHINERY LTD,A0001201, 07/03/2019,PCO0294130,135,N,N/A,N,N/A
Pendle Borough Council,Parks & Recreation Services,Transport Related Expense,3105,Tprt : Repairs : General,GIBSONS GARDEN MACHINERY LTD,A0001201, 07/03/2019,PCO0294028,13.2,N,N/A,N,N/A
Pendle Borough Council,Parks & Recreation Services,Transport Related Expense,3105,Tprt : Repairs : General,GIBSONS GARDEN MACHINERY LTD,A0001201, 07/03/2019,PCO0294028,71.37,N,N/A,N,N/A
Pendle Borough Council,Operational Services,Supplies and Services,4510,"Monitoring, Console etc",FGH GUARDHALL SECURITY LIMITED,A0001235, 07/03/2019,OPS0294055,1500,N,N/A,N,N/A
Pendle Borough Council,Parks & Recreation Services,Premises Related Expense,2001,Bldgs : R & M : Day To Day,JEWSON LIMITED,A0001323, 07/03/2019,PCO0294132,36.24,N,N/A,N,N/A
Pendle Borough Council,Economic Development & Tourism,Supplies and Services,4707,Miscellaneous : Other,JEWSON LIMITED,A0001323, 27/03/2019,REG0294519,52.6,N,N/A,N,N/A
Pendle Borough Council,Economic Development & Tourism,Supplies and Services,4707,Miscellaneous : Other,JEWSON LIMITED,A0001323, 27/03/2019,REG0294520,70.85,N,N/A,N,N/A
Pendle Borough Council,Economic Development & Tourism,Supplies and Services,4707,Miscellaneous : Other,JEWSON LIMITED,A0001323, 07/03/2019,REG0294048,125.5,N,N/A,N,N/A
Pendle Borough Council,Parks & Recreation Services,Premises Related Expense,2001,Bldgs : R & M : Day To Day,J HARGREAVES,A0001359, 07/03/2019,PCO0294163,25,N,N/A,N,N/A
Pendle Borough Council,Chief Executives Policy Unit,Supplies and Services,4705,Other Expenses,KELBROOK PRIMARY SCHOOL,A0001630, 21/03/2019,COR0294342,200,N,N/A,N,N/A
Pendle Borough Council,Parks & Recreation Services,Premises Related Expense,2101,Grounds : R & M : Day to Day : Routine,LANLEE SUPPLIES LIMITED,A0001672, 07/03/2019,PCO0294133,26.32,N,N/A,N,N/A
Pendle Borough Council,Engineering & Special Projects,Premises Related Expense,2101,Grounds : R & M : Day to Day : Routine,LANLEE SUPPLIES LIMITED,A0001672, 27/03/2019,HED0294536,4.62,N,N/A,N,N/A
Pendle Borough Council,Engineering & Special Projects,Premises Related Expense,2101,Grounds : R & M : Day to Day : Routine,LANLEE SUPPLIES LIMITED,A0001672, 07/03/2019,HED0294036,5.1,N,N/A,N,N/A
Pendle Borough Council,Engineering & Special Projects,Premises Related Expense,2101,Grounds : R & M : Day to Day : Routine,LANLEE SUPPLIES LIMITED,A0001672, 27/03/2019,HED0294536,7.72,N,N/A,N,N/A
Pendle Borough Council,Engineering & Special Projects,Premises Related Expense,2101,Grounds : R & M : Day to Day : Routine,LANLEE SUPPLIES LIMITED,A0001672, 27/03/2019,HED0294536,11.76,N,N/A,N,N/A
Pendle Borough Council,Engineering & Special Projects,Premises Related Expense,2101,Grounds : R & M : Day to Day : Routine,LANLEE SUPPLIES LIMITED,A0001672, 27/03/2019,HED0294536,13.87,N,N/A,N,N/A
Pendle Borough Council,Engineering & Special Projects,Premises Related Expense,2101,Grounds : R & M : Day to Day : Routine,LANLEE SUPPLIES LIMITED,A0001672, 27/03/2019,HED0294536,35.6,N,N/A,N,N/A
Pendle Borough Council,Engineering & Special Projects,Premises Related Expense,2101,Grounds : R & M : Day to Day : Routine,LANLEE SUPPLIES LIMITED,A0001672, 27/03/2019,HED0294536,63.62,N,N/A,N,N/A
Pendle Borough Council,Engineering & Special Projects,Premises Related Expense,2101,Grounds : R & M : Day to Day : Routine,LANLEE SUPPLIES LIMITED,A0001672, 27/03/2019,HED0294536,124.54,N,N/A,N,N/A
Pendle Borough Council,Economic Development & Tourism,Supplies and Services,4707,Miscellaneous : Other,LANLEE SUPPLIES LIMITED,A0001672, 07/03/2019,REG0293960,10.8,N,N/A,N,N/A
Pendle Borough Council,Economic Development & Tourism,Supplies and Services,4707,Miscellaneous : Other,LANLEE SUPPLIES LIMITED,A0001672, 07/03/2019,REG0293962,36.63,N,N/A,N,N/A
Pendle Borough Council,Economic Development & Tourism,Supplies and Services,4707,Miscellaneous : Other,LANLEE SUPPLIES LIMITED,A0001672, 07/03/2019,REG0293844,37.55,N,N/A,N,N/A
Pendle Borough Council,Economic Development & Tourism,Supplies and Services,4707,Miscellaneous : Other,LANLEE SUPPLIES LIMITED,A0001672, 14/03/2019,REG0294191,50.08,N,N/A,N,N/A
Pendle Borough Council,Economic Development & Tourism,Supplies and Services,4707,Miscellaneous : Other,LANLEE SUPPLIES LIMITED,A0001672, 07/03/2019,REG0293961,58.58,N,N/A,N,N/A
Pendle Borough Council,Economic Development & Tourism,Supplies and Services,4707,Miscellaneous : Other,LANLEE SUPPLIES LIMITED,A0001672, 07/03/2019,REG0293864,59.88,N,N/A,N,N/A
Pendle Borough Council,Economic Development & Tourism,Supplies and Services,4707,Miscellaneous : Other,LANLEE SUPPLIES LIMITED,A0001672, 07/03/2019,REG0293845,61.09,N,N/A,N,N/A
Pendle Borough Council,Economic Development & Tourism,Supplies and Services,4707,Miscellaneous : Other,LANLEE SUPPLIES LIMITED,A0001672, 14/03/2019,REG0294230,76.88,N,N/A,N,N/A
Pendle Borough Council,Economic Development & Tourism,Supplies and Services,4707,Miscellaneous : Other,LANLEE SUPPLIES LIMITED,A0001672, 21/03/2019,REG0294362,87.31,N,N/A,N,N/A
Pendle Borough Council,Economic Development & Tourism,Supplies and Services,4707,Miscellaneous : Other,LANLEE SUPPLIES LIMITED,A0001672, 07/03/2019,REG0293863,110.66,N,N/A,N,N/A
Pendle Borough Council,Economic Development & Tourism,Supplies and Services,4707,Miscellaneous : Other,LANLEE SUPPLIES LIMITED,A0001672, 27/03/2019,REG0294619,121.16,N,N/A,N,N/A
Pendle Borough Council,Economic Development & Tourism,Supplies and Services,4707,Miscellaneous : Other,LANLEE SUPPLIES LIMITED,A0001672, 07/03/2019,REG0293865,207.5,N,N/A,N,N/A
Pendle Borough Council,Parks & Recreation Services,Premises Related Expense,2001,Bldgs : R & M : Day To Day,LBS WORLDWIDE LIMITED,A0001673, 14/03/2019,PCO0294208,12,N,N/A,N,N/A
Pendle Borough Council,Economic Development & Tourism,Supplies and Services,4707,Miscellaneous : Other,LBS WORLDWIDE LIMITED,A0001673, 27/03/2019,REG0294618,20.82,N,N/A,N,N/A
Pendle Borough Council,Parks & Recreation Services,Transport Related Expense,3105,Tprt : Repairs : General,DICK LEIGH,A0001675, 07/03/2019,PCO4006004,-28.56,N,N/A,N,N/A
Pendle Borough Council,Parks & Recreation Services,Transport Related Expense,3105,Tprt : Repairs : General,DICK LEIGH,A0001675, 07/03/2019,PCO0294020,7.28,N,N/A,N,N/A
Pendle Borough Council,Parks & Recreation Services,Transport Related Expense,3105,Tprt : Repairs : General,DICK LEIGH,A0001675, 07/03/2019,PCO0294020,9.24,N,N/A,N,N/A
Pendle Borough Council,Parks & Recreation Services,Transport Related Expense,3105,Tprt : Repairs : General,DICK LEIGH,A0001675, 07/03/2019,PCO0294020,10.5,N,N/A,N,N/A
Pendle Borough Council,Parks & Recreation Services,Transport Related Expense,3105,Tprt : Repairs : General,DICK LEIGH,A0001675, 07/03/2019,PCO0294020,13.6,N,N/A,N,N/A
Pendle Borough Council,Parks & Recreation Services,Transport Related Expense,3105,Tprt : Repairs : General,DICK LEIGH,A0001675, 07/03/2019,PCO0294017,0.96,N,N/A,N,N/A
Pendle Borough Council,Parks & Recreation Services,Transport Related Expense,3105,Tprt : Repairs : General,DICK LEIGH,A0001675, 07/03/2019,PCO0294017,7.06,N,N/A,N,N/A
Pendle Borough Council,Parks & Recreation Services,Transport Related Expense,3105,Tprt : Repairs : General,DICK LEIGH,A0001675, 07/03/2019,PCO0294017,16.01,N,N/A,N,N/A
Pendle Borough Council,Parks & Recreation Services,Transport Related Expense,3105,Tprt : Repairs : General,DICK LEIGH,A0001675, 07/03/2019,PCO0294017,25.13,N,N/A,N,N/A
Pendle Borough Council,Parks & Recreation Services,Transport Related Expense,3105,Tprt : Repairs : General,DICK LEIGH,A0001675, 07/03/2019,PCO0294017,32.22,N,N/A,N,N/A
Pendle Borough Council,Engineering & Special Projects,Premises Related Expense,2101,Grounds : R & M : Day to Day : Routine,LANCASHIRE COUNTY COUNCIL,A0001690, 07/03/2019,HED0294118,143.75,N,N/A,N,N/A
Pendle Borough Council,Operational Services,Premises Related Expense,2602,Trade Refuse Charges,LANCASHIRE COUNTY COUNCIL,A0001690, 27/03/2019,OPS0294722,87442.61,N,N/A,N,N/A
Pendle Borough Council,Democratic & Legal Services,Supplies and Services,4404,Search Fees,LANCASHIRE COUNTY COUNCIL,A0001690, 14/03/2019,DAL0294282,348,N,N/A,N,N/A
Pendle Borough Council,Housing Regeneration Services,Capital Costs,CD14,Capital : Payments,LANCASHIRE COUNTY COUNCIL,A0001690, 14/03/2019,HMR0294318,6550,N,N/A,N,N/A
Pendle Borough Council,Housing Regeneration Services,Capital Costs,CH22,Ren Grant : 1996 Act,LANCASHIRE COUNTY COUNCIL,A0001690, 27/03/2019,HMR0294678,295,N,N/A,N,N/A
Pendle Borough Council,Housing Regeneration Services,Capital Costs,CH22,Ren Grant : 1996 Act,LANCASHIRE COUNTY COUNCIL,A0001690, 27/03/2019,HMR0294679,874,N,N/A,N,N/A
Pendle Borough Council,Housing Regeneration Services,Capital Costs,CH22,Ren Grant : 1996 Act,LANCASHIRE COUNTY COUNCIL,A0001690, 07/03/2019,HMR0294121,2541,N,N/A,N,N/A
Pendle Borough Council,Housing Regeneration Services,Capital Costs,CH22,Ren Grant : 1996 Act,LANCASHIRE COUNTY COUNCIL,A0001690, 07/03/2019,HMR0294122,2959,N,N/A,N,N/A
Pendle Borough Council,Housing Regeneration Services,Capital Costs,CH22,Ren Grant : 1996 Act,LANCASHIRE COUNTY COUNCIL,A0001690, 27/03/2019,HMR0294682,3608,N,N/A,N,N/A
Pendle Borough Council,Housing Regeneration Services,Capital Costs,CH22,Ren Grant : 1996 Act,LANCASHIRE COUNTY COUNCIL,A0001690, 07/03/2019,HMR0294124,4691,N,N/A,N,N/A
Pendle Borough Council,Housing Regeneration Services,Capital Costs,CH22,Ren Grant : 1996 Act,LANCASHIRE COUNTY COUNCIL,A0001690, 27/03/2019,HMR0294683,6172,N,N/A,N,N/A
Pendle Borough Council,Housing Regeneration Services,Capital Costs,CH22,Ren Grant : 1996 Act,LANCASHIRE COUNTY COUNCIL,A0001690, 14/03/2019,HMR0294281,10504,N,N/A,N,N/A
Pendle Borough Council,Housing Regeneration Services,,PD03,Paid in the Year,MONK OF COLNE LTD,A0001828, 27/03/2019,HMR0294559,9876.08,N,N/A,N,N/A
Pendle Borough Council,Operational Services,Premises Related Expense,2101,Grounds : R & M : Day to Day : Routine,JOHN MACADAM & SON (RESCUE) LTD,A0001846, 07/03/2019,OPS0294171,45,N,N/A,N,N/A
Pendle Borough Council,Operational Services,Premises Related Expense,2101,Grounds : R & M : Day to Day : Routine,JOHN MACADAM & SON (RESCUE) LTD,A0001846, 07/03/2019,OPS0294169,45,N,N/A,N,N/A
Pendle Borough Council,Operational Services,Premises Related Expense,2101,Grounds : R & M : Day to Day : Routine,JOHN MACADAM & SON (RESCUE) LTD,A0001846, 07/03/2019,OPS0294170,45,N,N/A,N,N/A
Pendle Borough Council,Economic Development & Tourism,Transport Related Expense,3105,Tprt : Repairs : General,JOHN MACADAM & SON (RESCUE) LTD,A0001846, 27/03/2019,REG0294673,45,N,N/A,N,N/A
Pendle Borough Council,Democratic & Legal Services,Supplies and Services,4739,Grants/Contributions,NELSON & COLNE COLLEGE,A0001974, 07/03/2019,DAL0294103,50,N,N/A,N,N/A
Pendle Borough Council,Property Services,Premises Related Expense,2501,Water & Sewerage,WATER PLUS LIMITED,A0001986, 14/03/2019,EST0294259,481.6,N,N/A,N,N/A
Pendle Borough Council,Property Services,Premises Related Expense,2501,Water & Sewerage,WATER PLUS LIMITED,A0001986, 21/03/2019,EST4006014,-489.57,N,N/A,N,N/A
Pendle Borough Council,Property Services,Premises Related Expense,2501,Water & Sewerage,WATER PLUS LIMITED,A0001986, 21/03/2019,EST0294494,179.4,N,N/A,N,N/A
Pendle Borough Council,Property Services,Premises Related Expense,2501,Water & Sewerage,WATER PLUS LIMITED,A0001986, 21/03/2019,EST0294425,316.82,N,N/A,N,N/A
Pendle Borough Council,Property Services,Premises Related Expense,2501,Water & Sewerage,WATER PLUS LIMITED,A0001986, 21/03/2019,EST0294424,376.21,N,N/A,N,N/A
Pendle Borough Council,Property Services,Premises Related Expense,2501,Water & Sewerage,WATER PLUS LIMITED,A0001986, 21/03/2019,EST0294422,101.07,N,N/A,N,N/A
Pendle Borough Council,Property Services,Premises Related Expense,2501,Water & Sewerage,WATER PLUS LIMITED,A0001986, 21/03/2019,EST0294420,47.55,N,N/A,N,N/A
Pendle Borough Council,Property Services,Premises Related Expense,2501,Water & Sewerage,WATER PLUS LIMITED,A0001986, 21/03/2019,EST0294423,682.63,N,N/A,N,N/A
Pendle Borough Council,Property Services,Premises Related Expense,2501,Water & Sewerage,WATER PLUS LIMITED,A0001986, 14/03/2019,EST0294257,666.84,N,N/A,N,N/A
Pendle Borough Council,Property Services,Premises Related Expense,2501,Water & Sewerage,WATER PLUS LIMITED,A0001986, 14/03/2019,EST0294258,1685.15,N,N/A,N,N/A
Pendle Borough Council,Property Services,Capital Costs,CD14,Capital : Payments,F NUTTER & SONS,A0002037, 07/03/2019,EST0294069,355,N,N/A,N,N/A
Pendle Borough Council,Property Services,Capital Costs,CD14,Capital : Payments,F NUTTER & SONS,A0002037, 07/03/2019,EST0294069,475,N,N/A,N,N/A
Pendle Borough Council,Operational Services,Indirect Employee Expenses,1211,Training,NORTH LANCS ROAD TRANSPORT TRAINING LTD,A0002043, 21/03/2019,OPS0294336,300,N,N/A,N,N/A
Pendle Borough Council,Parks & Recreation Services,Premises Related Expense,2101,Grounds : R & M : Day to Day : Routine,OPTION HYGIENE LIMITED,A0002063, 07/03/2019,PCO0294135,0.99,N,N/A,N,N/A
Pendle Borough Council,Parks & Recreation Services,Premises Related Expense,2101,Grounds : R & M : Day to Day : Routine,OPTION HYGIENE LIMITED,A0002063, 07/03/2019,PCO0294135,32.6,N,N/A,N,N/A
Pendle Borough Council,Parks & Recreation Services,Supplies and Services,4201,Protective Clothing,OPTION HYGIENE LIMITED,A0002063, 27/03/2019,PCO0294660,39.8,N,N/A,N,N/A
Pendle Borough Council,Operational Services,,PJ01,Stock : Purchases,OPTION HYGIENE LIMITED,A0002063, 07/03/2019,OPS0294108,8.46,N,N/A,N,N/A
Pendle Borough Council,Operational Services,,PJ01,Stock : Purchases,OPTION HYGIENE LIMITED,A0002063, 21/03/2019,OPS0294516,16.5,N,N/A,N,N/A
Pendle Borough Council,Operational Services,,PJ01,Stock : Purchases,OPTION HYGIENE LIMITED,A0002063, 07/03/2019,OPS0294107,34,N,N/A,N,N/A
Pendle Borough Council,Operational Services,,PJ01,Stock : Purchases,OPTION HYGIENE LIMITED,A0002063, 14/03/2019,OPS0294210,1979.6,N,N/A,N,N/A
Pendle Borough Council,Operational Services,,PJ01,Stock : Purchases,OPTION HYGIENE LIMITED,A0002063, 27/03/2019,OPS0294690,2420,N,N/A,N,N/A
Pendle Borough Council,Property Services,Supplies and Services,4705,Other Expenses,PENDLE SIGNS & PLASTICS LIMITED,A0002112, 07/03/2019,EST0294067,359.5,N,N/A,N,N/A
Pendle Borough Council,Financial Services,Supplies and Services,4403,Court Fees,HER MAJESTY`S COURTS SERVICE - PENNINE,A0002117, 07/03/2019,AAS0294096,14000,N,N/A,N,N/A
Pendle Borough Council,Financial Services,Supplies and Services,4423,Levies,HER MAJESTY`S COURTS SERVICE - PENNINE,A0002117, 07/03/2019,AAS0294096,120,N,N/A,N,N/A
Pendle Borough Council,Financial Services,Supplies and Services,4423,Levies,HER MAJESTY`S COURTS SERVICE - PENNINE,A0002117, 07/03/2019,AAS0294096,40000,N,N/A,N,N/A
Pendle Borough Council,Environmental Health Services,Supplies and Services,4601,Seminars etc All Costs,PRESTON CITY COUNCIL,A0002144, 21/03/2019,ENV0294498,90,N,N/A,N,N/A
Pendle Borough Council,Housing Regeneration Services,Capital Costs,CH22,Ren Grant : 1996 Act,PENBURN CONSTRUCTION LTD,A0002191, 14/03/2019,HMR0294317,6450,N,N/A,N,N/A
Pendle Borough Council,Parks & Recreation Services,Agency Staff,1004,Emp : Agency Wages,PENDLE PERSONNEL LTD,A0002198, 14/03/2019,PCO0294272,184.6,N,N/A,N,N/A
Pendle Borough Council,Parks & Recreation Services,Agency Staff,1004,Emp : Agency Wages,PENDLE PERSONNEL LTD,A0002198, 14/03/2019,PCO0294198,192.4,N,N/A,N,N/A
Pendle Borough Council,Operational Services,Agency Staff,1004,Emp : Agency Wages,PENDLE PERSONNEL LTD,A0002198, 27/03/2019,OPS0294733,260.7,N,N/A,N,N/A
Pendle Borough Council,Operational Services,Agency Staff,1004,Emp : Agency Wages,PENDLE PERSONNEL LTD,A0002198, 27/03/2019,OPS0294733,177.75,N,N/A,N,N/A
Pendle Borough Council,Operational Services,Agency Staff,1004,Emp : Agency Wages,PENDLE PERSONNEL LTD,A0002198, 07/03/2019,OPS0294176,349.57,N,N/A,N,N/A
Pendle Borough Council,Operational Services,Agency Staff,1004,Emp : Agency Wages,PENDLE PERSONNEL LTD,A0002198, 07/03/2019,OPS0294175,438.45,N,N/A,N,N/A
Pendle Borough Council,Parks & Recreation Services,Agency Staff,1004,Emp : Agency Wages,PENDLE PERSONNEL LTD,A0002198, 21/03/2019,PCO0294331,438.45,N,N/A,N,N/A
Pendle Borough Council,Parks & Recreation Services,Agency Staff,1004,Emp : Agency Wages,PENDLE PERSONNEL LTD,A0002198, 27/03/2019,PCO0294546,438.45,N,N/A,N,N/A
Pendle Borough Council,Parks & Recreation Services,Agency Staff,1020,Emp : Salaries & Wages,PENDLE PERSONNEL LTD,A0002198, 07/03/2019,PCO0294030,83.2,N,N/A,N,N/A
Pendle Borough Council,Parks & Recreation Services,Agency Staff,1020,Emp : Salaries & Wages,PENDLE PERSONNEL LTD,A0002198, 27/03/2019,PCO0294545,88.4,N,N/A,N,N/A
Pendle Borough Council,Planning & Building Control,Supplies and Services,4301,Printing & Stationery,ROYAL MAIL GROUP LIMITED,A0002281, 07/03/2019,PBC0294038,11.59,N,N/A,N,N/A
Pendle Borough Council,Planning & Building Control,Supplies and Services,4301,Printing & Stationery,ROYAL MAIL GROUP LIMITED,A0002281, 07/03/2019,PBC0294038,23.67,N,N/A,N,N/A
Pendle Borough Council,Democratic & Legal Services,Supplies and Services,4501,Postages,ROYAL MAIL GROUP LIMITED,A0002281, 14/03/2019,DAL0294298,5.2,N,N/A,N,N/A
Pendle Borough Council,Democratic & Legal Services,Supplies and Services,4501,Postages,ROYAL MAIL GROUP LIMITED,A0002281, 27/03/2019,DAL0294564,24.95,N,N/A,N,N/A
Pendle Borough Council,Democratic & Legal Services,Supplies and Services,4501,Postages,ROYAL MAIL GROUP LIMITED,A0002281, 07/03/2019,DAL0294097,30.04,N,N/A,N,N/A
Pendle Borough Council,Democratic & Legal Services,Supplies and Services,4501,Postages,ROYAL MAIL GROUP LIMITED,A0002281, 27/03/2019,DAL0294564,196.6,N,N/A,N,N/A
Pendle Borough Council,Democratic & Legal Services,Supplies and Services,4501,Postages,ROYAL MAIL GROUP LIMITED,A0002281, 14/03/2019,DAL0294298,199.33,N,N/A,N,N/A
Pendle Borough Council,Democratic & Legal Services,Supplies and Services,4501,Postages,ROYAL MAIL GROUP LIMITED,A0002281, 07/03/2019,DAL0294097,391.63,N,N/A,N,N/A
Pendle Borough Council,Democratic & Legal Services,Supplies and Services,4501,Postages,ROYAL MAIL GROUP LIMITED,A0002281, 27/03/2019,DAL0294564,50.15,N,N/A,N,N/A
Pendle Borough Council,Democratic & Legal Services,Supplies and Services,4501,Postages,ROYAL MAIL GROUP LIMITED,A0002281, 14/03/2019,DAL0294298,59.16,N,N/A,N,N/A
Pendle Borough Council,Democratic & Legal Services,Supplies and Services,4501,Postages,ROYAL MAIL GROUP LIMITED,A0002281, 14/03/2019,DAL0294298,17.89,N,N/A,N,N/A
Pendle Borough Council,Democratic & Legal Services,Supplies and Services,4501,Postages,ROYAL MAIL GROUP LIMITED,A0002281, 27/03/2019,DAL0294564,21.56,N,N/A,N,N/A
Pendle Borough Council,Democratic & Legal Services,Supplies and Services,4501,Postages,ROYAL MAIL GROUP LIMITED,A0002281, 14/03/2019,DAL0294298,1.96,N,N/A,N,N/A
Pendle Borough Council,Democratic & Legal Services,Supplies and Services,4501,Postages,ROYAL MAIL GROUP LIMITED,A0002281, 27/03/2019,DAL0294564,2.76,N,N/A,N,N/A
Pendle Borough Council,Democratic & Legal Services,Supplies and Services,4501,Postages,ROYAL MAIL GROUP LIMITED,A0002281, 14/03/2019,DAL0294298,6.78,N,N/A,N,N/A
Pendle Borough Council,Democratic & Legal Services,Supplies and Services,4501,Postages,ROYAL MAIL GROUP LIMITED,A0002281, 27/03/2019,DAL0294564,7.67,N,N/A,N,N/A
Pendle Borough Council,Democratic & Legal Services,Supplies and Services,4501,Postages,ROYAL MAIL GROUP LIMITED,A0002281, 14/03/2019,DAL0294298,71.02,N,N/A,N,N/A
Pendle Borough Council,Democratic & Legal Services,Supplies and Services,4501,Postages,ROYAL MAIL GROUP LIMITED,A0002281, 27/03/2019,DAL0294564,84.96,N,N/A,N,N/A
Pendle Borough Council,Democratic & Legal Services,Supplies and Services,4501,Postages,ROYAL MAIL GROUP LIMITED,A0002281, 21/03/2019,DAL0294382,2.36,N,N/A,N,N/A
Pendle Borough Council,Democratic & Legal Services,Supplies and Services,4501,Postages,ROYAL MAIL GROUP LIMITED,A0002281, 14/03/2019,DAL0294298,178.67,N,N/A,N,N/A
Pendle Borough Council,Democratic & Legal Services,Supplies and Services,4501,Postages,ROYAL MAIL GROUP LIMITED,A0002281, 27/03/2019,DAL0294564,215.32,N,N/A,N,N/A
Pendle Borough Council,Democratic & Legal Services,Supplies and Services,4501,Postages,ROYAL MAIL GROUP LIMITED,A0002281, 27/03/2019,DAL0294564,10.16,N,N/A,N,N/A
Pendle Borough Council,Democratic & Legal Services,Supplies and Services,4501,Postages,ROYAL MAIL GROUP LIMITED,A0002281, 27/03/2019,DAL0294564,214.03,N,N/A,N,N/A
Pendle Borough Council,Democratic & Legal Services,Supplies and Services,4501,Postages,ROYAL MAIL GROUP LIMITED,A0002281, 14/03/2019,DAL0294298,375.73,N,N/A,N,N/A
Pendle Borough Council,Democratic & Legal Services,Supplies and Services,4501,Postages,ROYAL MAIL GROUP LIMITED,A0002281, 27/03/2019,DAL0294564,23.46,N,N/A,N,N/A
Pendle Borough Council,Democratic & Legal Services,Supplies and Services,4501,Postages,ROYAL MAIL GROUP LIMITED,A0002281, 14/03/2019,DAL0294298,38.15,N,N/A,N,N/A
Pendle Borough Council,Democratic & Legal Services,Supplies and Services,4501,Postages,ROYAL MAIL GROUP LIMITED,A0002281, 07/03/2019,DAL4006002,-12,N,N/A,N,N/A
Pendle Borough Council,Democratic & Legal Services,Supplies and Services,4501,Postages,ROYAL MAIL GROUP LIMITED,A0002281, 14/03/2019,DAL4006009,-1.1,N,N/A,N,N/A
Pendle Borough Council,Democratic & Legal Services,Supplies and Services,4501,Postages,ROYAL MAIL GROUP LIMITED,A0002281, 27/03/2019,DAL0294564,1.15,N,N/A,N,N/A
Pendle Borough Council,Democratic & Legal Services,Supplies and Services,4501,Postages,ROYAL MAIL GROUP LIMITED,A0002281, 14/03/2019,DAL0294298,5.9,N,N/A,N,N/A
Pendle Borough Council,Democratic & Legal Services,Supplies and Services,4501,Postages,ROYAL MAIL GROUP LIMITED,A0002281, 14/03/2019,DAL0294298,222.38,N,N/A,N,N/A
Pendle Borough Council,Democratic & Legal Services,Supplies and Services,4501,Postages,ROYAL MAIL GROUP LIMITED,A0002281, 27/03/2019,DAL0294564,646.66,N,N/A,N,N/A
Pendle Borough Council,Environmental Health Services,Supplies and Services,4501,Postages,ROYAL MAIL GROUP LIMITED,A0002281, 27/03/2019,ENV0294567,151.41,N,N/A,N,N/A
Pendle Borough Council,Democratic & Legal Services,Supplies and Services,4501,Postages,ROYAL MAIL GROUP LIMITED,A0002281, 14/03/2019,DAL0294298,1.15,N,N/A,N,N/A
Pendle Borough Council,Democratic & Legal Services,Supplies and Services,4501,Postages,ROYAL MAIL GROUP LIMITED,A0002281, 27/03/2019,DAL0294564,1.45,N,N/A,N,N/A
Pendle Borough Council,Operational Services,Supplies and Services,4501,Postages,ROYAL MAIL GROUP LIMITED,A0002281, 27/03/2019,OPS0294720,61.6,N,N/A,N,N/A
Pendle Borough Council,Democratic & Legal Services,Supplies and Services,4501,Postages,ROYAL MAIL GROUP LIMITED,A0002281, 27/03/2019,DAL0294564,135.48,N,N/A,N,N/A
Pendle Borough Council,Democratic & Legal Services,Supplies and Services,4501,Postages,ROYAL MAIL GROUP LIMITED,A0002281, 14/03/2019,DAL0294298,241.89,N,N/A,N,N/A
Pendle Borough Council,Democratic & Legal Services,Supplies and Services,4705,Other Expenses,ROYAL MAIL GROUP LIMITED,A0002281, 14/03/2019,DAL0294298,7.14,N,N/A,N,N/A
Pendle Borough Council,Housing Regeneration Services,Capital Costs,CH22,Ren Grant : 1996 Act,A  ROLLINSON & SON (BUILDERS) LTD,A0002297, 27/03/2019,HMR0294698,3372.32,N,N/A,N,N/A
Pendle Borough Council,Operational Services,Supplies and Services,4007,Sub-Contractors,ROSSENDALE PET CREMATORIUM,A0002345, 14/03/2019,OPS0294209,124,N,N/A,N,N/A
Pendle Borough Council,Operational Services,Transport Related Expense,3601,Tprt : Annual Hire Charge,STANLEY BROTHERS (TIPPERS) LTD,A0002422, 21/03/2019,OPS0294338,2000,N,N/A,N,N/A
Pendle Borough Council,Operational Services,Transport Related Expense,3601,Tprt : Annual Hire Charge,STANLEY BROTHERS (TIPPERS) LTD,A0002422, 14/03/2019,OPS0294273,2200,N,N/A,N,N/A
Pendle Borough Council,Operational Services,Supplies and Services,4405,Veterinary Fees,STANLEY HOUSE VETERINARY GROUP,A0002423, 14/03/2019,OPS0294218,12.5,N,N/A,N,N/A
Pendle Borough Council,Operational Services,Supplies and Services,4405,Veterinary Fees,STANLEY HOUSE VETERINARY GROUP,A0002423, 07/03/2019,OPS0294166,25,N,N/A,N,N/A
Pendle Borough Council,Parks & Recreation Services,Supplies and Services,2,Expenditure : Materials,SPALDINGS (UK) LTD,A0002537, 07/03/2019,PCO0294025,18.1,N,N/A,N,N/A
Pendle Borough Council,Parks & Recreation Services,Supplies and Services,2,Expenditure : Materials,SPALDINGS (UK) LTD,A0002537, 07/03/2019,PCO0294025,36,N,N/A,N,N/A
Pendle Borough Council,Parks & Recreation Services,Supplies and Services,2,Expenditure : Materials,SPALDINGS (UK) LTD,A0002537, 07/03/2019,PCO0294025,40.5,N,N/A,N,N/A
Pendle Borough Council,Parks & Recreation Services,Supplies and Services,2,Expenditure : Materials,SPALDINGS (UK) LTD,A0002537, 07/03/2019,PCO0294025,40.8,N,N/A,N,N/A
Pendle Borough Council,Parks & Recreation Services,Supplies and Services,2,Expenditure : Materials,SPALDINGS (UK) LTD,A0002537, 07/03/2019,PCO0294025,54.5,N,N/A,N,N/A
Pendle Borough Council,Parks & Recreation Services,Supplies and Services,2,Expenditure : Materials,SPALDINGS (UK) LTD,A0002537, 07/03/2019,PCO0294029,66,N,N/A,N,N/A
Pendle Borough Council,Parks & Recreation Services,Supplies and Services,2,Expenditure : Materials,SPALDINGS (UK) LTD,A0002537, 07/03/2019,PCO0294025,145.4,N,N/A,N,N/A
Pendle Borough Council,Parks & Recreation Services,Transport Related Expense,3105,Tprt : Repairs : General,SPALDINGS (UK) LTD,A0002537, 07/03/2019,PCO0294026,214.8,N,N/A,N,N/A
Pendle Borough Council,Parks & Recreation Services,Premises Related Expense,2001,Bldgs : R & M : Day To Day,ROBERTSON MEMORIALS,A0002590, 07/03/2019,PCO0294136,105,N,N/A,N,N/A
Pendle Borough Council,Parks & Recreation Services,Premises Related Expense,2101,Grounds : R & M : Day to Day : Routine,ROBERTSON MEMORIALS,A0002590, 14/03/2019,PCO0294270,255,N,N/A,N,N/A
Pendle Borough Council,Parks & Recreation Services,Premises Related Expense,2101,Grounds : R & M : Day to Day : Routine,STRI LIMITED,A0002595, 07/03/2019,PCO0294165,210,N,N/A,N,N/A
Pendle Borough Council,Engineering & Special Projects,Premises Related Expense,2001,Bldgs : R & M : Day To Day,T & F STEEL DESIGNS LTD,A0002627, 14/03/2019,HED0294326,60,N,N/A,N,N/A
Pendle Borough Council,Engineering & Special Projects,Premises Related Expense,2001,Bldgs : R & M : Day To Day,T & F STEEL DESIGNS LTD,A0002627, 14/03/2019,HED0294326,280,N,N/A,N,N/A
Pendle Borough Council,Property Services,Premises Related Expense,2101,Grounds : R & M : Day to Day : Routine,T & F STEEL DESIGNS LTD,A0002627, 14/03/2019,EST0294243,55,N,N/A,N,N/A
Pendle Borough Council,Property Services,Premises Related Expense,2101,Grounds : R & M : Day to Day : Routine,T & F STEEL DESIGNS LTD,A0002627, 14/03/2019,EST0294243,90,N,N/A,N,N/A
Pendle Borough Council,Engineering & Special Projects,Premises Related Expense,2101,Grounds : R & M : Day to Day : Routine,T & F STEEL DESIGNS LTD,A0002627, 27/03/2019,HED0294703,520,N,N/A,N,N/A
Pendle Borough Council,Engineering & Special Projects,Premises Related Expense,2101,Grounds : R & M : Day to Day : Routine,T & F STEEL DESIGNS LTD,A0002627, 14/03/2019,HED0294325,45,N,N/A,N,N/A
Pendle Borough Council,Engineering & Special Projects,Premises Related Expense,2101,Grounds : R & M : Day to Day : Routine,T & F STEEL DESIGNS LTD,A0002627, 14/03/2019,HED0294324,60,N,N/A,N,N/A
Pendle Borough Council,Engineering & Special Projects,Premises Related Expense,2101,Grounds : R & M : Day to Day : Routine,T & F STEEL DESIGNS LTD,A0002627, 14/03/2019,HED0294324,160,N,N/A,N,N/A
Pendle Borough Council,Engineering & Special Projects,Premises Related Expense,2101,Grounds : R & M : Day to Day : Routine,T & F STEEL DESIGNS LTD,A0002627, 14/03/2019,HED0294325,270,N,N/A,N,N/A
Pendle Borough Council,Property Services,Supplies and Services,4003,EFM : Other Equipment,T & F STEEL DESIGNS LTD,A0002627, 14/03/2019,EST0294242,90,N,N/A,N,N/A
Pendle Borough Council,Engineering & Special Projects,Capital Costs,CD14,Capital : Payments,T & F STEEL DESIGNS LTD,A0002627, 14/03/2019,HED0294323,50,N,N/A,N,N/A
Pendle Borough Council,Engineering & Special Projects,Capital Costs,CD14,Capital : Payments,T & F STEEL DESIGNS LTD,A0002627, 14/03/2019,HED0294327,140,N,N/A,N,N/A
Pendle Borough Council,Engineering & Special Projects,Capital Costs,CD14,Capital : Payments,T & F STEEL DESIGNS LTD,A0002627, 14/03/2019,HED0294323,160,N,N/A,N,N/A
Pendle Borough Council,Engineering & Special Projects,Capital Costs,CD14,Capital : Payments,T & F STEEL DESIGNS LTD,A0002627, 14/03/2019,HED0294327,320,N,N/A,N,N/A
Pendle Borough Council,Operational Services,,PJ01,Stock : Purchases,THE HELPING HAND CO LTD,A0002655, 27/03/2019,OPS0294667,73.8,N,N/A,N,N/A
Pendle Borough Council,Operational Services,,PJ01,Stock : Purchases,THE HELPING HAND CO LTD,A0002655, 27/03/2019,OPS0294667,87.6,N,N/A,N,N/A
Pendle Borough Council,Operational Services,,PJ01,Stock : Purchases,THE HELPING HAND CO LTD,A0002655, 27/03/2019,OPS0294726,3550,N,N/A,N,N/A
Pendle Borough Council,Operational Services,,PJ01,Stock : Purchases,THE HELPING HAND CO LTD,A0002655, 27/03/2019,OPS0294726,6937.92,N,N/A,N,N/A
Pendle Borough Council,Housing Regeneration Services,Supplies and Services,4705,Other Expenses,JOHNSONS TEXICARE LTD,A0002665, 14/03/2019,HMR0294236,116.5,N,N/A,N,N/A
Pendle Borough Council,Parks & Recreation Services,Supplies and Services,2,Expenditure : Materials,TRAVIS PERKINS TRADING CO LTD,A0002709, 27/03/2019,PCO0294666,2.17,N,N/A,N,N/A
Pendle Borough Council,Parks & Recreation Services,Premises Related Expense,2001,Bldgs : R & M : Day To Day,TRAVIS PERKINS TRADING CO LTD,A0002709, 27/03/2019,PCO0294541,25.4,N,N/A,N,N/A
Pendle Borough Council,Parks & Recreation Services,Premises Related Expense,2001,Bldgs : R & M : Day To Day,TRAVIS PERKINS TRADING CO LTD,A0002709, 27/03/2019,PCO0294541,117.6,N,N/A,N,N/A
Pendle Borough Council,Parks & Recreation Services,Premises Related Expense,2101,Grounds : R & M : Day to Day : Routine,TRAVIS PERKINS TRADING CO LTD,A0002709, 07/03/2019,PCO0294137,25.4,N,N/A,N,N/A
Pendle Borough Council,Parks & Recreation Services,Premises Related Expense,2101,Grounds : R & M : Day to Day : Routine,TRAVIS PERKINS TRADING CO LTD,A0002709, 07/03/2019,PCO0294139,25.4,N,N/A,N,N/A
Pendle Borough Council,Parks & Recreation Services,Premises Related Expense,2101,Grounds : R & M : Day to Day : Routine,TRAVIS PERKINS TRADING CO LTD,A0002709, 07/03/2019,PCO0294137,38.4,N,N/A,N,N/A
Pendle Borough Council,Parks & Recreation Services,Premises Related Expense,2101,Grounds : R & M : Day to Day : Routine,TRAVIS PERKINS TRADING CO LTD,A0002709, 07/03/2019,PCO0294140,69.33,N,N/A,N,N/A
Pendle Borough Council,Parks & Recreation Services,Premises Related Expense,2101,Grounds : R & M : Day to Day : Routine,TRAVIS PERKINS TRADING CO LTD,A0002709, 07/03/2019,PCO0294137,117.6,N,N/A,N,N/A
Pendle Borough Council,Parks & Recreation Services,Premises Related Expense,2101,Grounds : R & M : Day to Day : Routine,TRAVIS PERKINS TRADING CO LTD,A0002709, 07/03/2019,PCO0294139,117.6,N,N/A,N,N/A
Pendle Borough Council,Parks & Recreation Services,Premises Related Expense,2101,Grounds : R & M : Day to Day : Routine,TRAVIS PERKINS TRADING CO LTD,A0002709, 07/03/2019,PCO0294138,39.6,N,N/A,N,N/A
Pendle Borough Council,Economic Development & Tourism,Supplies and Services,4707,Miscellaneous : Other,TRAVIS PERKINS TRADING CO LTD,A0002709, 21/03/2019,REG0294363,41.48,N,N/A,N,N/A
Pendle Borough Council,Economic Development & Tourism,Supplies and Services,4707,Miscellaneous : Other,TRAVIS PERKINS TRADING CO LTD,A0002709, 27/03/2019,REG0294620,41.48,N,N/A,N,N/A
Pendle Borough Council,Economic Development & Tourism,Supplies and Services,4707,Miscellaneous : Other,TRAVIS PERKINS TRADING CO LTD,A0002709, 27/03/2019,REG0294621,41.48,N,N/A,N,N/A
Pendle Borough Council,Economic Development & Tourism,Supplies and Services,4707,Miscellaneous : Other,TRAVIS PERKINS TRADING CO LTD,A0002709, 27/03/2019,REG0294622,41.48,N,N/A,N,N/A
Pendle Borough Council,Operational Services,Capital Costs,CD14,Capital : Payments,TRAVIS PERKINS TRADING CO LTD,A0002709, 07/03/2019,OPS0294105,113.88,N,N/A,N,N/A
Pendle Borough Council,Operational Services,Capital Costs,CD14,Capital : Payments,TRAVIS PERKINS TRADING CO LTD,A0002709, 07/03/2019,OPS0294105,378.27,N,N/A,N,N/A
Pendle Borough Council,Democratic & Legal Services,Supplies and Services,4704,Publicity & advertisement,TRISTAR PRINTERS LTD,A0002731, 07/03/2019,DAL0294068,869,N,N/A,N,N/A
Pendle Borough Council,Economic Development & Tourism,Supplies and Services,4707,Miscellaneous : Other,WOLFENDEN CONCRETE LIMITED,A0002779, 14/03/2019,REG0294190,55,N,N/A,N,N/A
Pendle Borough Council,Democratic & Legal Services,Supplies and Services,4601,Seminars etc All Costs,REDCATED - PERSONAL DATA,A0002785, 14/03/2019,DAL0294285,5,N,N/A,N,N/A
Pendle Borough Council,Democratic & Legal Services,Supplies and Services,4601,Seminars etc All Costs,REDCATED - PERSONAL DATA,A0002785, 14/03/2019,DAL0294285,6,N,N/A,N,N/A
Pendle Borough Council,Democratic & Legal Services,Supplies and Services,4601,Seminars etc All Costs,REDCATED - PERSONAL DATA,A0002785, 14/03/2019,DAL0294285,10.5,N,N/A,N,N/A
Pendle Borough Council,Engineering & Special Projects,Supplies and Services,4002,EFM : Office and computer equipment,REDCATED - PERSONAL DATA,A0004669, 27/03/2019,HED0294651,4.17,N,N/A,N,N/A
Pendle Borough Council,Engineering & Special Projects,Supplies and Services,4737,Grant Funding,THOMAS STREET BOWLING CLUB,A0004755, 21/03/2019,HED0294406,3000,N,N/A,N,N/A
Pendle Borough Council,Engineering & Special Projects,Premises Related Expense,2101,Grounds : R & M : Day to Day : Routine,FAST GLASS GLAZING LIMITED,A0005903, 07/03/2019,HED0294144,150,N,N/A,N,N/A
Pendle Borough Council,Engineering & Special Projects,Premises Related Expense,2101,Grounds : R & M : Day to Day : Routine,FAST GLASS GLAZING LIMITED,A0005903, 07/03/2019,HED0294144,200,N,N/A,N,N/A
Pendle Borough Council,Democratic & Legal Services,Indirect Employee Expenses,1261,Staff Refreshments,PHILIP SANDERSON,A0006611, 07/03/2019,DAL0294182,14.84,N,N/A,N,N/A
Pendle Borough Council,Democratic & Legal Services,Indirect Employee Expenses,1261,Staff Refreshments,PHILIP SANDERSON,A0006611, 07/03/2019,DAL0294182,10,N,N/A,N,N/A
Pendle Borough Council,Democratic & Legal Services,Supplies and Services,4611,Hospitality,PHILIP SANDERSON,A0006611, 07/03/2019,DAL0294182,20.4,N,N/A,N,N/A
Pendle Borough Council,Directorate,Supplies and Services,4601,Seminars etc All Costs,REDCATED - PERSONAL DATA,A0007326, 27/03/2019,MAN0294563,15,N,N/A,N,N/A
Pendle Borough Council,Democratic & Legal Services,Supplies and Services,4614,Mayoral Expenses,REDCATED - PERSONAL DATA,A0007326, 14/03/2019,DAL0294301,53.33,N,N/A,N,N/A
Pendle Borough Council,Parks & Recreation Services,Supplies and Services,4705,Other Expenses,BARCHAM TREES PLC,A0007884, 27/03/2019,PCO0294549,156,N,N/A,N,N/A
Pendle Borough Council,Parks & Recreation Services,Supplies and Services,4705,Other Expenses,BARCHAM TREES PLC,A0007884, 27/03/2019,PCO0294549,300,N,N/A,N,N/A
Pendle Borough Council,Parks & Recreation Services,Supplies and Services,4705,Other Expenses,BARCHAM TREES PLC,A0007884, 27/03/2019,PCO0294549,680,N,N/A,N,N/A
Pendle Borough Council,Housing Regeneration Services,Premises Related Expense,2002,Bldgs : R & M : Abnormal,CPC PROP & GARDENING SERV LTD,A0011770, 21/03/2019,HMR0294501,150,N,N/A,N,N/A
Pendle Borough Council,Human Resources,Supplies and Services,4601,Seminars etc All Costs,PENDLE LEISURE LIMITED,A0012961, 21/03/2019,PER0294433,115,Y,XR43029,N,N/A
Pendle Borough Council,Financial Services,Supplies and Services,4601,Seminars etc All Costs,PENDLE LEISURE LIMITED,A0012961, 27/03/2019,AAS0294658,116.67,Y,XR43029,N,N/A
Pendle Borough Council,Democratic & Legal Services,Supplies and Services,4611,Hospitality,PENDLE LEISURE LIMITED,A0012961, 21/03/2019,DAL0294375,116.67,Y,XR43029,N,N/A
Pendle Borough Council,Democratic & Legal Services,Supplies and Services,4705,Other Expenses,PENDLE LEISURE LIMITED,A0012961, 14/03/2019,DAL0294303,122.13,Y,XR43029,N,N/A
Pendle Borough Council,Democratic & Legal Services,Supplies and Services,4739,Grants/Contributions,PENDLE LEISURE LIMITED,A0012961, 07/03/2019,DAL0294178,25,Y,XR43029,N,N/A
Pendle Borough Council,Democratic & Legal Services,Supplies and Services,4739,Grants/Contributions,PENDLE LEISURE LIMITED,A0012961, 07/03/2019,DAL0294178,90,Y,XR43029,N,N/A
Pendle Borough Council,Operational Services,Supplies and Services,4007,Sub-Contractors,ORCHARD RECYCLING SERVICE,A0015803, 21/03/2019,OPS0294509,765,N,N/A,N,N/A
Pendle Borough Council,Operational Services,Supplies and Services,4007,Sub-Contractors,ORCHARD RECYCLING SERVICE,A0015803, 27/03/2019,OPS0294675,765,N,N/A,N,N/A
Pendle Borough Council,Operational Services,Supplies and Services,4007,Sub-Contractors,ORCHARD RECYCLING SERVICE,A0015803, 14/03/2019,OPS0294295,915,N,N/A,N,N/A
Pendle Borough Council,Operational Services,Supplies and Services,4007,Sub-Contractors,ORCHARD RECYCLING SERVICE,A0015803, 07/03/2019,OPS0294174,1260,N,N/A,N,N/A
Pendle Borough Council,Operational Services,Supplies and Services,4707,Miscellaneous : Other,ORCHARD RECYCLING SERVICE,A0015803, 21/03/2019,OPS0294509,475.25,N,N/A,N,N/A
Pendle Borough Council,Operational Services,Supplies and Services,4707,Miscellaneous : Other,ORCHARD RECYCLING SERVICE,A0015803, 07/03/2019,OPS0294151,666.75,N,N/A,N,N/A
Pendle Borough Council,Operational Services,Agency Costs,5009,Fast Action Response,ORCHARD RECYCLING SERVICE,A0015803, 21/03/2019,OPS0294509,475.25,N,N/A,N,N/A
Pendle Borough Council,Operational Services,Agency Costs,5009,Fast Action Response,ORCHARD RECYCLING SERVICE,A0015803, 07/03/2019,OPS0294151,666.75,N,N/A,N,N/A
Pendle Borough Council,Parks & Recreation Services,Premises Related Expense,2101,Grounds : R & M : Day to Day : Routine,KEEP BRITAIN TIDY,A0021088, 27/03/2019,PCO0294527,325,Y,1071737,N,N/A
Pendle Borough Council,Parks & Recreation Services,Premises Related Expense,2101,Grounds : R & M : Day to Day : Routine,KEEP BRITAIN TIDY,A0021088, 27/03/2019,PCO0294525,325,Y,1071737,N,N/A
Pendle Borough Council,Parks & Recreation Services,Premises Related Expense,2101,Grounds : R & M : Day to Day : Routine,KEEP BRITAIN TIDY,A0021088, 27/03/2019,PCO0294528,325,Y,1071737,N,N/A
Pendle Borough Council,Parks & Recreation Services,Premises Related Expense,2101,Grounds : R & M : Day to Day : Routine,KEEP BRITAIN TIDY,A0021088, 27/03/2019,PCO0294524,325,Y,1071737,N,N/A
Pendle Borough Council,Parks & Recreation Services,Premises Related Expense,2101,Grounds : R & M : Day to Day : Routine,KEEP BRITAIN TIDY,A0021088, 27/03/2019,PCO0294521,325,Y,1071737,N,N/A
Pendle Borough Council,Parks & Recreation Services,Premises Related Expense,2101,Grounds : R & M : Day to Day : Routine,KEEP BRITAIN TIDY,A0021088, 27/03/2019,PCO0294522,325,Y,1071737,N,N/A
Pendle Borough Council,Parks & Recreation Services,Premises Related Expense,2101,Grounds : R & M : Day to Day : Routine,KEEP BRITAIN TIDY,A0021088, 27/03/2019,PCO0294526,325,Y,1071737,N,N/A
Pendle Borough Council,Parks & Recreation Services,Premises Related Expense,2101,Grounds : R & M : Day to Day : Routine,KEEP BRITAIN TIDY,A0021088, 27/03/2019,PCO0294523,325,Y,1071737,N,N/A
Pendle Borough Council,Housing Regeneration Services,Premises Related Expense,2002,Bldgs : R & M : Abnormal,DRAIN BUSTERS,A0021656, 14/03/2019,HMR0294311,85,N,N/A,N,N/A
Pendle Borough Council,Democratic & Legal Services,Supplies and Services,4305,Newspapers & Periodicals,HOPKINSON NEWS LTD,A0022188, 14/03/2019,DAL0294306,70.3,N,N/A,N,N/A
Pendle Borough Council,Democratic & Legal Services,Supplies and Services,4305,Newspapers & Periodicals,HOPKINSON NEWS LTD,A0022188, 14/03/2019,DAL0294306,12.5,N,N/A,N,N/A
Pendle Borough Council,Democratic & Legal Services,Supplies and Services,4305,Newspapers & Periodicals,HOPKINSON NEWS LTD,A0022188, 14/03/2019,DAL0294306,22.1,N,N/A,N,N/A
Pendle Borough Council,Engineering & Special Projects,Premises Related Expense,2101,Grounds : R & M : Day to Day : Routine,E.ON,A0023073, 07/03/2019,HED0294076,747.19,N,N/A,N,N/A
Pendle Borough Council,Parks & Recreation Services,Transport Related Expense,3105,Tprt : Repairs : General,RIPON FARM SERVICES,A0025562, 27/03/2019,PCO0294663,668.45,N,N/A,N,N/A
Pendle Borough Council,Housing Regeneration Services,Supplies and Services,4706,Subscriptions & Donations,LANGUAGE LINE LIMITED,A0025582, 14/03/2019,HMR0294225,22,N,N/A,N,N/A
Pendle Borough Council,Engineering & Special Projects,Supplies and Services,4705,Other Expenses,GRADKO INTERNATIONAL LTD,A0025806, 07/03/2019,HED0294149,183,N,N/A,N,N/A
Pendle Borough Council,Engineering & Special Projects,Supplies and Services,4705,Other Expenses,GRADKO INTERNATIONAL LTD,A0025806, 27/03/2019,HED0294653,183,N,N/A,N,N/A
Pendle Borough Council,Housing Regeneration Services,Supplies and Services,4705,Other Expenses,GRADKO INTERNATIONAL LTD,A0025806, 07/03/2019,HMR0294065,183,N,N/A,N,N/A
Pendle Borough Council,Housing Regeneration Services,Supplies and Services,4601,Seminars etc All Costs,REDCATED - PERSONAL DATA,A0026384, 27/03/2019,HMR0294596,6.83,N,N/A,N,N/A
Pendle Borough Council,Financial Services,Premises Related Expense,2702,Service Charge,BARNFIELD INVESTMENT PROPERTIES LTD,A0026595, 07/03/2019,AAS0294081,5704.42,N,N/A,N,N/A
Pendle Borough Council,Parks & Recreation Services,Indirect Employee Expenses,1211,Training,SPECIALIST TRAINING & CONSULTANCY SERVICES LTD,A0026831, 14/03/2019,PCO0294193,5,N,N/A,N,N/A
Pendle Borough Council,Parks & Recreation Services,Indirect Employee Expenses,1211,Training,SPECIALIST TRAINING & CONSULTANCY SERVICES LTD,A0026831, 14/03/2019,PCO0294193,5.3,N,N/A,N,N/A
Pendle Borough Council,Parks & Recreation Services,Indirect Employee Expenses,1211,Training,SPECIALIST TRAINING & CONSULTANCY SERVICES LTD,A0026831, 14/03/2019,PCO0294193,119,N,N/A,N,N/A
Pendle Borough Council,Economic Development & Tourism,Indirect Employee Expenses,1217,Emp : Training : General,WILDLIFE TRUST FOR LANCS MANCHESTER & N MERSEYSIDE,A0026880, 21/03/2019,REG0294364,30,N,229325,N,N/A
Pendle Borough Council,Parks & Recreation Services,Supplies and Services,4502,Telephones : Direct,BRITISH TELECOMMUNICATIONS PLC,A0040001, 27/03/2019,PCO0294547,252.76,N,N/A,N,N/A
Pendle Borough Council,Parks & Recreation Services,Premises Related Expense,2001,Bldgs : R & M : Day To Day,LITE,A0040032, 21/03/2019,PCO0294294,200,N,N/A,N,N/A
Pendle Borough Council,Engineering & Special Projects,Supplies and Services,4801,Renewals & Repairs Fund,LITE,A0040032, 21/03/2019,HED0294399,95,N,N/A,N,N/A
Pendle Borough Council,Engineering & Special Projects,Capital Costs,CD14,Capital : Payments,LITE,A0040032, 21/03/2019,HED0294401,5169.65,N,N/A,N,N/A
Pendle Borough Council,Housing Regeneration Services,Supplies and Services,4705,Other Expenses,WEST LANCASHIRE BOROUGH COUNCIL,A0040236, 07/03/2019,HMR0294117,70.05,N,N/A,N,N/A
Pendle Borough Council,Democratic & Legal Services,Supplies and Services,4601,Seminars etc All Costs,REDCATED - PERSONAL DATA,A0040311, 14/03/2019,DAL0294288,0.83,N,N/A,N,N/A
Pendle Borough Council,Democratic & Legal Services,Supplies and Services,4601,Seminars etc All Costs,REDCATED - PERSONAL DATA,A0040311, 14/03/2019,DAL0294288,5,N,N/A,N,N/A
Pendle Borough Council,Operational Services,Supplies and Services,4001,EFM : Photocopiers,CANON (UK) LIMITED,A0040400, 07/03/2019,OPS0294032,598.29,N,N/A,N,N/A
Pendle Borough Council,Housing Regeneration Services,Supplies and Services,4001,EFM : Photocopiers,CANON (UK) LIMITED,A0040400, 07/03/2019,HMR0294116,62.34,N,N/A,N,N/A
Pendle Borough Council,Operational Services,Supplies and Services,4001,EFM : Photocopiers,CANON (UK) LIMITED,A0040400, 07/03/2019,OPS0294024,214.63,N,N/A,N,N/A
Pendle Borough Council,Planning & Building Control,Supplies and Services,4003,EFM : Other Equipment,CANON (UK) LIMITED,A0040400, 07/03/2019,PBC0294045,64.72,N,N/A,N,N/A
Pendle Borough Council,Human Resources,Indirect Employee Expenses,1235,Long Service Awards,REDCATED - PERSONAL DATA,A0040826, 21/03/2019,PER0294432,415,N,N/A,N,N/A
Pendle Borough Council,Parks & Recreation Services,Premises Related Expense,2001,Bldgs : R & M : Day To Day,GROUNDFORCE,A0041286, 27/03/2019,PCO0294539,72.32,N,N/A,N,N/A
Pendle Borough Council,Democratic & Legal Services,Supplies and Services,4301,Printing & Stationery,ELECTORAL REFORM SERVICES,A0041321, 07/03/2019,DAL0294086,194.94,N,N/A,N,N/A
Pendle Borough Council,Democratic & Legal Services,Supplies and Services,4301,Printing & Stationery,ELECTORAL REFORM SERVICES,A0041321, 07/03/2019,DAL0294146,804.6,N,N/A,N,N/A
Pendle Borough Council,Democratic & Legal Services,Supplies and Services,4501,Postages,ELECTORAL REFORM SERVICES,A0041321, 07/03/2019,DAL0294086,256.5,N,N/A,N,N/A
Pendle Borough Council,Democratic & Legal Services,Supplies and Services,4501,Postages,ELECTORAL REFORM SERVICES,A0041321, 07/03/2019,DAL0294146,860.25,N,N/A,N,N/A
Pendle Borough Council,Chief Executives Policy Unit,Supplies and Services,4301,Printing & Stationery,REDCATED - PERSONAL DATA,A0041689, 21/03/2019,COR0294482,17.25,N,N/A,N,N/A
Pendle Borough Council,Chief Executives Policy Unit,Supplies and Services,4705,Other Expenses,REDCATED - PERSONAL DATA,A0041689, 21/03/2019,COR0294535,3.08,N,N/A,N,N/A
Pendle Borough Council,Chief Executives Policy Unit,Supplies and Services,4705,Other Expenses,REDCATED - PERSONAL DATA,A0041689, 21/03/2019,COR0294535,7.45,N,N/A,N,N/A
Pendle Borough Council,Financial Services,Indirect Employee Expenses,1262,Water Supply,WATER SMART (NW) LIMITED,A0042729, 27/03/2019,AAS0294743,85,N,N/A,N,N/A
Pendle Borough Council,Parks & Recreation Services,Transport Related Expense,3105,Tprt : Repairs : General,M J RUSHTON,A0043864, 27/03/2019,PCO0294606,80,N,N/A,N,N/A
Pendle Borough Council,Democratic & Legal Services,Supplies and Services,4614,Mayoral Expenses,FENCE GATE LTD,A0043865, 21/03/2019,DAL0294377,661.83,N,N/A,N,N/A
Pendle Borough Council,Democratic & Legal Services,Supplies and Services,4705,Other Expenses,FENCE GATE LTD,A0043865, 14/03/2019,DAL0294332,6760.92,N,N/A,N,N/A
Pendle Borough Council,Operational Services,Supplies and Services,4004,EFM Materials,S M SHEPHERD BUILDING CONTRACTORS,A0044037, 07/03/2019,OPS0294168,100,N,N/A,N,N/A
Pendle Borough Council,Operational Services,Supplies and Services,4004,EFM Materials,S M SHEPHERD BUILDING CONTRACTORS,A0044037, 07/03/2019,OPS0294168,100,N,N/A,N,N/A
Pendle Borough Council,Operational Services,Supplies and Services,4004,EFM Materials,S M SHEPHERD BUILDING CONTRACTORS,A0044037, 27/03/2019,OPS0294723,150,N,N/A,N,N/A
Pendle Borough Council,Operational Services,Supplies and Services,4004,EFM Materials,S M SHEPHERD BUILDING CONTRACTORS,A0044037, 27/03/2019,OPS0294723,150,N,N/A,N,N/A
Pendle Borough Council,Operational Services,Supplies and Services,4007,Sub-Contractors,S M SHEPHERD BUILDING CONTRACTORS,A0044037, 14/03/2019,OPS0294287,180,N,N/A,N,N/A
Pendle Borough Council,Operational Services,Supplies and Services,4007,Sub-Contractors,S M SHEPHERD BUILDING CONTRACTORS,A0044037, 14/03/2019,OPS0294287,180,N,N/A,N,N/A
Pendle Borough Council,Operational Services,,PD03,Paid in the Year,S M SHEPHERD BUILDING CONTRACTORS,A0044037, 07/03/2019,OPS0294154,160,N,N/A,N,N/A
Pendle Borough Council,Operational Services,,PD03,Paid in the Year,S M SHEPHERD BUILDING CONTRACTORS,A0044037, 07/03/2019,OPS0294154,200,N,N/A,N,N/A
Pendle Borough Council,Financial Services,Premises Related Expense,2203,Electricity,E.ON UK PLC,A0044040, 07/03/2019,AAS0294087,23.27,N,N/A,N,N/A
Pendle Borough Council,Financial Services,Premises Related Expense,2203,Electricity,E.ON UK PLC,A0044040, 14/03/2019,AAS0294267,38.33,N,N/A,N,N/A
Pendle Borough Council,Financial Services,Premises Related Expense,2203,Electricity,E.ON UK PLC,A0044040, 07/03/2019,AAS0294088,42.44,N,N/A,N,N/A
Pendle Borough Council,Financial Services,Premises Related Expense,2203,Electricity,E.ON UK PLC,A0044040, 07/03/2019,AAS0294084,78.5,N,N/A,N,N/A
Pendle Borough Council,Financial Services,Premises Related Expense,2203,Electricity,E.ON UK PLC,A0044040, 07/03/2019,AAS0294085,78.5,N,N/A,N,N/A
Pendle Borough Council,Property Services,Premises Related Expense,2203,Electricity,E.ON UK PLC,A0044040, 14/03/2019,EST0294250,354.27,N,N/A,N,N/A
Pendle Borough Council,Chief Executives Policy Unit,Supplies and Services,4705,Other Expenses,E.ON UK PLC,A0044040, 21/03/2019,COR0294343,182.49,N,N/A,N,N/A
Pendle Borough Council,Housing Regeneration Services,Transfer Payments,6104,Storage & Homelessness prevention,REDCATED - PERSONAL DATA,A0044274, 14/03/2019,HMR0294224,14.17,N,N/A,N,N/A
Pendle Borough Council,Operational Services,Transport Related Expense,3105,Tprt : Repairs : General,GO PLANT LIMITED,A0045105, 27/03/2019,OPS0294578,60.19,N,N/A,N,N/A
Pendle Borough Council,Operational Services,Transport Related Expense,3105,Tprt : Repairs : General,GO PLANT LIMITED,A0045105, 27/03/2019,OPS0294573,70.31,N,N/A,N,N/A
Pendle Borough Council,Operational Services,Transport Related Expense,3105,Tprt : Repairs : General,GO PLANT LIMITED,A0045105, 27/03/2019,OPS0294593,357.06,N,N/A,N,N/A
Pendle Borough Council,Operational Services,Transport Related Expense,3105,Tprt : Repairs : General,GO PLANT LIMITED,A0045105, 27/03/2019,OPS0294588,61.7,N,N/A,N,N/A
Pendle Borough Council,Operational Services,Transport Related Expense,3105,Tprt : Repairs : General,GO PLANT LIMITED,A0045105, 27/03/2019,OPS0294669,297.59,N,N/A,N,N/A
Pendle Borough Council,Operational Services,Transport Related Expense,3105,Tprt : Repairs : General,GO PLANT LIMITED,A0045105, 27/03/2019,OPS0294579,74.55,N,N/A,N,N/A
Pendle Borough Council,Operational Services,Transport Related Expense,3105,Tprt : Repairs : General,GO PLANT LIMITED,A0045105, 27/03/2019,OPS0294595,247.08,N,N/A,N,N/A
Pendle Borough Council,Operational Services,Transport Related Expense,3105,Tprt : Repairs : General,GO PLANT LIMITED,A0045105, 27/03/2019,OPS0294584,43.37,N,N/A,N,N/A
Pendle Borough Council,Operational Services,Transport Related Expense,3105,Tprt : Repairs : General,GO PLANT LIMITED,A0045105, 27/03/2019,OPS0294591,80.42,N,N/A,N,N/A
Pendle Borough Council,Operational Services,Transport Related Expense,3105,Tprt : Repairs : General,GO PLANT LIMITED,A0045105, 27/03/2019,OPS0294572,201.17,N,N/A,N,N/A
Pendle Borough Council,Operational Services,Transport Related Expense,3105,Tprt : Repairs : General,GO PLANT LIMITED,A0045105, 27/03/2019,OPS0294672,17.2,N,N/A,N,N/A
Pendle Borough Council,Operational Services,Transport Related Expense,3105,Tprt : Repairs : General,GO PLANT LIMITED,A0045105, 27/03/2019,OPS0294594,438.5,N,N/A,N,N/A
Pendle Borough Council,Operational Services,Transport Related Expense,3105,Tprt : Repairs : General,GO PLANT LIMITED,A0045105, 27/03/2019,OPS0294586,709.82,N,N/A,N,N/A
Pendle Borough Council,Operational Services,Transport Related Expense,3202,Diesel Oil,GO PLANT LIMITED,A0045105, 27/03/2019,OPS0294577,460,N,N/A,N,N/A
Pendle Borough Council,Operational Services,Transport Related Expense,3204,Tyres,GO PLANT LIMITED,A0045105, 27/03/2019,OPS0294587,31,N,N/A,N,N/A
Pendle Borough Council,Operational Services,Transport Related Expense,3204,Tyres,GO PLANT LIMITED,A0045105, 27/03/2019,OPS0294670,50.5,N,N/A,N,N/A
Pendle Borough Council,Operational Services,Transport Related Expense,3204,Tyres,GO PLANT LIMITED,A0045105, 27/03/2019,OPS0294589,88.5,N,N/A,N,N/A
Pendle Borough Council,Operational Services,Transport Related Expense,3204,Tyres,GO PLANT LIMITED,A0045105, 27/03/2019,OPS0294592,126.3,N,N/A,N,N/A
Pendle Borough Council,Operational Services,Transport Related Expense,3204,Tyres,GO PLANT LIMITED,A0045105, 27/03/2019,OPS0294668,126.3,N,N/A,N,N/A
Pendle Borough Council,Operational Services,Transport Related Expense,3204,Tyres,GO PLANT LIMITED,A0045105, 27/03/2019,OPS0294590,167,N,N/A,N,N/A
Pendle Borough Council,Operational Services,Transport Related Expense,3204,Tyres,GO PLANT LIMITED,A0045105, 27/03/2019,OPS0294574,58.55,N,N/A,N,N/A
Pendle Borough Council,Operational Services,Transport Related Expense,3204,Tyres,GO PLANT LIMITED,A0045105, 27/03/2019,OPS0294671,137.9,N,N/A,N,N/A
Pendle Borough Council,Operational Services,Transport Related Expense,3204,Tyres,GO PLANT LIMITED,A0045105, 27/03/2019,OPS0294580,50.5,N,N/A,N,N/A
Pendle Borough Council,Operational Services,Transport Related Expense,3204,Tyres,GO PLANT LIMITED,A0045105, 27/03/2019,OPS0294585,137.9,N,N/A,N,N/A
Pendle Borough Council,Operational Services,Transport Related Expense,3204,Tyres,GO PLANT LIMITED,A0045105, 27/03/2019,OPS0294575,160.9,N,N/A,N,N/A
Pendle Borough Council,Operational Services,Transport Related Expense,3204,Tyres,GO PLANT LIMITED,A0045105, 27/03/2019,OPS0294582,264.3,N,N/A,N,N/A
Pendle Borough Council,Operational Services,Transport Related Expense,3204,Tyres,GO PLANT LIMITED,A0045105, 27/03/2019,OPS0294576,35.55,N,N/A,N,N/A
Pendle Borough Council,Operational Services,Transport Related Expense,3204,Tyres,GO PLANT LIMITED,A0045105, 27/03/2019,OPS0294581,74.7,N,N/A,N,N/A
Pendle Borough Council,Parks & Recreation Services,Transport Related Expense,3204,Tyres,GO PLANT LIMITED,A0045105, 14/03/2019,PCO0294197,25.25,N,N/A,N,N/A
Pendle Borough Council,Chief Executives Policy Unit,Transport Related Expense,3401,Tprt : Pooled Transport,GO PLANT LIMITED,A0045105, 14/03/2019,COR0294319,398.01,N,N/A,N,N/A
Pendle Borough Council,Chief Executives Policy Unit,Transport Related Expense,3401,Tprt : Pooled Transport,GO PLANT LIMITED,A0045105, 14/03/2019,COR0294320,398.01,N,N/A,N,N/A
Pendle Borough Council,Chief Executives Policy Unit,Transport Related Expense,3401,Tprt : Pooled Transport,GO PLANT LIMITED,A0045105, 14/03/2019,COR0294321,398.01,N,N/A,N,N/A
Pendle Borough Council,Chief Executives Policy Unit,Transport Related Expense,3401,Tprt : Pooled Transport,GO PLANT LIMITED,A0045105, 14/03/2019,COR0294322,398.01,N,N/A,N,N/A
Pendle Borough Council,Housing Regeneration Services,Transport Related Expense,3401,Tprt : Pooled Transport,GO PLANT LIMITED,A0045105, 27/03/2019,HMR0294555,89.5,N,N/A,N,N/A
Pendle Borough Council,Financial Services,Premises Related Expense,2001,Bldgs : R & M : Day To Day,PLUSNET TECHNOLOGIES LIMITED,A0045646, 04/03/2019,AAS0294221,15,N,N/A,N,N/A
Pendle Borough Council,Financial Services,Supplies and Services,4509,Computer Charges,PLUSNET TECHNOLOGIES LIMITED,A0045646, 06/03/2019,AAS0294222,12.49,N,N/A,N,N/A
Pendle Borough Council,Financial Services,Supplies and Services,2,Expenditure : Materials,BARCLAYCARD COMMERCIAL,A0045954, 22/03/2019,AAS0294677,10.83,N,N/A,N,N/A
Pendle Borough Council,Financial Services,Indirect Employee Expenses,1211,Training,BARCLAYCARD COMMERCIAL,A0045954, 22/03/2019,AAS0294676,35,N,N/A,N,N/A
Pendle Borough Council,Financial Services,Transport Related Expense,3105,Tprt : Repairs : General,BARCLAYCARD COMMERCIAL,A0045954, 22/03/2019,AAS0294677,13.53,N,N/A,N,N/A
Pendle Borough Council,Financial Services,Transport Related Expense,3105,Tprt : Repairs : General,BARCLAYCARD COMMERCIAL,A0045954, 22/03/2019,AAS0294677,29.16,N,N/A,N,N/A
Pendle Borough Council,Financial Services,Transport Related Expense,3105,Tprt : Repairs : General,BARCLAYCARD COMMERCIAL,A0045954, 22/03/2019,AAS0294677,252.5,N,N/A,N,N/A
Pendle Borough Council,Financial Services,Transport Related Expense,3105,Tprt : Repairs : General,BARCLAYCARD COMMERCIAL,A0045954, 22/03/2019,AAS0294677,1.32,N,N/A,N,N/A
Pendle Borough Council,Financial Services,Transport Related Expense,3105,Tprt : Repairs : General,BARCLAYCARD COMMERCIAL,A0045954, 22/03/2019,AAS0294677,17.62,N,N/A,N,N/A
Pendle Borough Council,Financial Services,Supplies and Services,4003,EFM : Other Equipment,BARCLAYCARD COMMERCIAL,A0045954, 22/03/2019,AAS0294676,87,N,N/A,N,N/A
Pendle Borough Council,Financial Services,Supplies and Services,4004,EFM Materials,BARCLAYCARD COMMERCIAL,A0045954, 22/03/2019,AAS0294676,2.25,N,N/A,N,N/A
Pendle Borough Council,Financial Services,Supplies and Services,4004,EFM Materials,BARCLAYCARD COMMERCIAL,A0045954, 22/03/2019,AAS0294676,6.87,N,N/A,N,N/A
Pendle Borough Council,Financial Services,Supplies and Services,4301,Printing & Stationery,BARCLAYCARD COMMERCIAL,A0045954, 22/03/2019,AAS0294677,11.99,N,N/A,N,N/A
Pendle Borough Council,Financial Services,Supplies and Services,4412,Officers Fees Elections,BARCLAYCARD COMMERCIAL,A0045954, 22/03/2019,AAS0294745,275.8,N,N/A,N,N/A
Pendle Borough Council,Financial Services,Supplies and Services,4501,Postages,BARCLAYCARD COMMERCIAL,A0045954, 22/03/2019,AAS0294744,2,N,N/A,N,N/A
Pendle Borough Council,Financial Services,Supplies and Services,4601,Seminars etc All Costs,BARCLAYCARD COMMERCIAL,A0045954, 22/03/2019,AAS0294744,1.25,N,N/A,N,N/A
Pendle Borough Council,Financial Services,Supplies and Services,4601,Seminars etc All Costs,BARCLAYCARD COMMERCIAL,A0045954, 22/03/2019,AAS0294745,283.5,N,N/A,N,N/A
Pendle Borough Council,Financial Services,Supplies and Services,4611,Hospitality,BARCLAYCARD COMMERCIAL,A0045954, 22/03/2019,AAS0294744,29.5,N,N/A,N,N/A
Pendle Borough Council,Financial Services,Supplies and Services,4705,Other Expenses,BARCLAYCARD COMMERCIAL,A0045954, 22/03/2019,AAS0294676,20,N,N/A,N,N/A
Pendle Borough Council,Financial Services,Supplies and Services,4705,Other Expenses,BARCLAYCARD COMMERCIAL,A0045954, 22/03/2019,AAS0294746,11,N,N/A,N,N/A
Pendle Borough Council,Financial Services,Supplies and Services,4705,Other Expenses,BARCLAYCARD COMMERCIAL,A0045954, 22/03/2019,AAS0294677,5.83,N,N/A,N,N/A
Pendle Borough Council,Financial Services,Supplies and Services,4705,Other Expenses,BARCLAYCARD COMMERCIAL,A0045954, 22/03/2019,AAS0294677,50,N,N/A,N,N/A
Pendle Borough Council,Financial Services,Supplies and Services,4705,Other Expenses,BARCLAYCARD COMMERCIAL,A0045954, 22/03/2019,AAS0294677,50,N,N/A,N,N/A
Pendle Borough Council,Financial Services,Supplies and Services,4705,Other Expenses,BARCLAYCARD COMMERCIAL,A0045954, 22/03/2019,AAS0294745,50,N,N/A,N,N/A
Pendle Borough Council,Financial Services,Supplies and Services,4705,Other Expenses,BARCLAYCARD COMMERCIAL,A0045954, 22/03/2019,AAS0294745,50,N,N/A,N,N/A
Pendle Borough Council,Financial Services,Supplies and Services,4705,Other Expenses,BARCLAYCARD COMMERCIAL,A0045954, 22/03/2019,AAS0294744,150.5,N,N/A,N,N/A
Pendle Borough Council,Financial Services,Transfer Payments,6103,Accommodation ,BARCLAYCARD COMMERCIAL,A0045954, 22/03/2019,AAS0294746,15,N,N/A,N,N/A
Pendle Borough Council,Financial Services,Transfer Payments,6103,Accommodation ,BARCLAYCARD COMMERCIAL,A0045954, 22/03/2019,AAS0294746,55,N,N/A,N,N/A
Pendle Borough Council,Financial Services,Transfer Payments,6103,Accommodation ,BARCLAYCARD COMMERCIAL,A0045954, 22/03/2019,AAS0294746,86.67,N,N/A,N,N/A
Pendle Borough Council,Financial Services,Transfer Payments,6103,Accommodation ,BARCLAYCARD COMMERCIAL,A0045954, 22/03/2019,AAS0294746,90,N,N/A,N,N/A
Pendle Borough Council,Financial Services,Transfer Payments,6103,Accommodation ,BARCLAYCARD COMMERCIAL,A0045954, 22/03/2019,AAS0294746,110,N,N/A,N,N/A
Pendle Borough Council,Financial Services,Transfer Payments,6103,Accommodation ,BARCLAYCARD COMMERCIAL,A0045954, 22/03/2019,AAS0294746,130.83,N,N/A,N,N/A
Pendle Borough Council,Financial Services,Transfer Payments,6103,Accommodation ,BARCLAYCARD COMMERCIAL,A0045954, 22/03/2019,AAS0294746,163.33,N,N/A,N,N/A
Pendle Borough Council,Financial Services,Transfer Payments,6103,Accommodation ,BARCLAYCARD COMMERCIAL,A0045954, 22/03/2019,AAS0294746,165,N,N/A,N,N/A
Pendle Borough Council,Financial Services,Transfer Payments,6103,Accommodation ,BARCLAYCARD COMMERCIAL,A0045954, 22/03/2019,AAS0294746,171.67,N,N/A,N,N/A
Pendle Borough Council,Financial Services,Transfer Payments,6103,Accommodation ,BARCLAYCARD COMMERCIAL,A0045954, 22/03/2019,AAS0294746,180,N,N/A,N,N/A
Pendle Borough Council,Financial Services,Transfer Payments,6103,Accommodation ,BARCLAYCARD COMMERCIAL,A0045954, 22/03/2019,AAS0294746,180,N,N/A,N,N/A
Pendle Borough Council,Financial Services,Transfer Payments,6103,Accommodation ,BARCLAYCARD COMMERCIAL,A0045954, 22/03/2019,AAS0294746,220,N,N/A,N,N/A
Pendle Borough Council,Financial Services,Transfer Payments,6103,Accommodation ,BARCLAYCARD COMMERCIAL,A0045954, 22/03/2019,AAS0294746,270,N,N/A,N,N/A
Pendle Borough Council,Financial Services,Transfer Payments,6103,Accommodation ,BARCLAYCARD COMMERCIAL,A0045954, 22/03/2019,AAS0294746,275,N,N/A,N,N/A
Pendle Borough Council,Financial Services,Transfer Payments,6103,Accommodation ,BARCLAYCARD COMMERCIAL,A0045954, 22/03/2019,AAS0294746,277.5,N,N/A,N,N/A
Pendle Borough Council,Financial Services,Transfer Payments,6103,Accommodation ,BARCLAYCARD COMMERCIAL,A0045954, 22/03/2019,AAS0294746,317.92,N,N/A,N,N/A
Pendle Borough Council,Financial Services,Transfer Payments,6103,Accommodation ,BARCLAYCARD COMMERCIAL,A0045954, 22/03/2019,AAS0294746,345,N,N/A,N,N/A
Pendle Borough Council,Financial Services,Transfer Payments,6103,Accommodation ,BARCLAYCARD COMMERCIAL,A0045954, 22/03/2019,AAS0294746,360,N,N/A,N,N/A
Pendle Borough Council,Financial Services,Transfer Payments,6103,Accommodation ,BARCLAYCARD COMMERCIAL,A0045954, 22/03/2019,AAS0294746,385,N,N/A,N,N/A
Pendle Borough Council,Financial Services,Transfer Payments,6104,Storage & Homelessness prevention,BARCLAYCARD COMMERCIAL,A0045954, 22/03/2019,AAS0294746,82.5,N,N/A,N,N/A
Pendle Borough Council,Financial Services,Capital Costs,CD14,Capital : Payments,BARCLAYCARD COMMERCIAL,A0045954, 22/03/2019,AAS0294676,60.5,N,N/A,N,N/A
Pendle Borough Council,Planning & Building Control,,9303,Other Income : Non-VATable,REDCATED - PERSONAL DATA,A0046691, 21/03/2019,PBC0294206,19.74,N,N/A,N,N/A
Pendle Borough Council,Human Resources,Supplies and Services,4002,EFM : Office and computer equipment,HFX LTD,A0046816, 27/03/2019,PER0294642,1741.04,N,N/A,N,N/A
Pendle Borough Council,Democratic & Legal Services,Supplies and Services,4704,Publicity & advertisement,LOOP PUBLISHING LTD,A0047429, 27/03/2019,DAL0294628,175,N,N/A,N,N/A
Pendle Borough Council,Democratic & Legal Services,Supplies and Services,4704,Publicity & advertisement,LOOP PUBLISHING LTD,A0047429, 21/03/2019,DAL0294386,200,N,N/A,N,N/A
Pendle Borough Council,Engineering & Special Projects,Supplies and Services,4601,Seminars etc All Costs,REDCATED - PERSONAL DATA,A0047792, 07/03/2019,HED0294050,12.9,N,N/A,N,N/A
Pendle Borough Council,Engineering & Special Projects,Supplies and Services,4704,Publicity & advertisement,BRUSHWOOD DESIGN LTD,A0048828, 27/03/2019,HED0294704,824.3,N,N/A,N,N/A
Pendle Borough Council,Chief Executives Policy Unit,Transport Related Expense,3802,Car Allows : Offs : Casual,REDCATED - PERSONAL DATA,A0049589, 14/03/2019,COR0294292,129.8,N,N/A,N,N/A
Pendle Borough Council,Parks & Recreation Services,Transport Related Expense,3204,Tyres,ROSSENDALE VULCANISING (SALES LTD),A0051239, 27/03/2019,PCO0294538,15,N,N/A,N,N/A
Pendle Borough Council,Parks & Recreation Services,Transport Related Expense,3204,Tyres,ROSSENDALE VULCANISING (SALES LTD),A0051239, 27/03/2019,PCO0294538,20,N,N/A,N,N/A
Pendle Borough Council,Parks & Recreation Services,Transport Related Expense,3204,Tyres,ROSSENDALE VULCANISING (SALES LTD),A0051239, 27/03/2019,PCO0294538,200,N,N/A,N,N/A
Pendle Borough Council,Housing Regeneration Services,Transfer Payments,6104,Storage & Homelessness prevention,ACCENT GROUP LTD,A0051570, 27/03/2019,HMR0294598,73.6,N,N/A,N,N/A
Pendle Borough Council,Financial Services,Indirect Employee Expenses,1234,Pensions Increase Act Payments,LIBERATA UK LTD,A0051618, 14/03/2019,AAS0294268,-555.03,N,N/A,N,N/A
Pendle Borough Council,Financial Services,Indirect Employee Expenses,1234,Pensions Increase Act Payments,LIBERATA UK LTD,A0051618, 27/03/2019,AAS0294654,-277.51,N,N/A,N,N/A
Pendle Borough Council,Financial Services,Premises Related Expense,2301,Rents,LIBERATA UK LTD,A0051618, 14/03/2019,AAS0294269,1837,N,N/A,N,N/A
Pendle Borough Council,Financial Services,Agency Costs,5301,Liberata,LIBERATA UK LTD,A0051618, 27/03/2019,AAS0294654,1201,N,N/A,N,N/A
Pendle Borough Council,Financial Services,Agency Costs,5301,Liberata,LIBERATA UK LTD,A0051618, 14/03/2019,AAS0294268,2402,N,N/A,N,N/A
Pendle Borough Council,Financial Services,Agency Costs,5301,Liberata,LIBERATA UK LTD,A0051618, 27/03/2019,AAS0294652,1516.34,N,N/A,N,N/A
Pendle Borough Council,Financial Services,Agency Costs,5301,Liberata,LIBERATA UK LTD,A0051618, 27/03/2019,AAS0294649,4471.78,N,N/A,N,N/A
Pendle Borough Council,Financial Services,Agency Costs,5303,Liberata,LIBERATA UK LTD,A0051618, 15/03/2019,AAS0294380,6666.63,N,N/A,N,N/A
Pendle Borough Council,Financial Services,Agency Costs,5303,Liberata,LIBERATA UK LTD,A0051618, 15/03/2019,AAS0294380,34032.52,N,N/A,N,N/A
Pendle Borough Council,Financial Services,Agency Costs,5303,Liberata,LIBERATA UK LTD,A0051618, 15/03/2019,AAS0294380,26546.91,N,N/A,N,N/A
Pendle Borough Council,Financial Services,Agency Costs,5303,Liberata,LIBERATA UK LTD,A0051618, 15/03/2019,AAS0294380,80322.41,N,N/A,N,N/A
Pendle Borough Council,Financial Services,Agency Costs,5303,Liberata,LIBERATA UK LTD,A0051618, 15/03/2019,AAS0294380,53683.49,N,N/A,N,N/A
Pendle Borough Council,Financial Services,Agency Costs,5303,Liberata,LIBERATA UK LTD,A0051618, 15/03/2019,AAS0294380,79310.38,N,N/A,N,N/A
Pendle Borough Council,Financial Services,Agency Costs,5303,Liberata,LIBERATA UK LTD,A0051618, 15/03/2019,AAS0294380,120490.99,N,N/A,N,N/A
Pendle Borough Council,Financial Services,Capital Financing Costs,8204,Lease costs:Computer (Orchard),LIBERATA UK LTD,A0051618, 27/03/2019,AAS0294654,6800.99,N,N/A,N,N/A
Pendle Borough Council,Financial Services,Capital Financing Costs,8204,Lease costs:Computer (Orchard),LIBERATA UK LTD,A0051618, 14/03/2019,AAS0294268,13067.03,N,N/A,N,N/A
Pendle Borough Council,Financial Services,Capital Costs,CD14,Capital : Payments,LIBERATA UK LTD,A0051618, 27/03/2019,AAS0294655,3046.32,N,N/A,N,N/A
Pendle Borough Council,Financial Services,Capital Costs,CD14,Capital : Payments,LIBERATA UK LTD,A0051618, 27/03/2019,AAS0294656,4750,N,N/A,N,N/A
Pendle Borough Council,Property Services,Premises Related Expense,2203,Electricity,SOUTHERN ELECTRIC,A0051726, 14/03/2019,EST0294253,115.09,N,N/A,N,N/A
Pendle Borough Council,Human Resources,Supplies and Services,4705,Other Expenses,FIDELITI LIMITED,A0052058, 27/03/2019,PER0294638,23.43,N,N/A,N,N/A
Pendle Borough Council,Parks & Recreation Services,Premises Related Expense,2101,Grounds : R & M : Day to Day : Routine,C B PRICE & SONS BUILDERS,A0052117, 27/03/2019,PCO0294540,480,N,N/A,N,N/A
Pendle Borough Council,Parks & Recreation Services,Premises Related Expense,2101,Grounds : R & M : Day to Day : Routine,C B PRICE & SONS BUILDERS,A0052117, 14/03/2019,PCO0294194,2000,N,N/A,N,N/A
Pendle Borough Council,Parks & Recreation Services,Capital Costs,CD14,Capital : Payments,C B PRICE & SONS BUILDERS,A0052117, 27/03/2019,PCO0294735,2000,N,N/A,N,N/A
Pendle Borough Council,Parks & Recreation Services,Capital Costs,CD14,Capital : Payments,C B PRICE & SONS BUILDERS,A0052117, 27/03/2019,PCO0294736,4150,N,N/A,N,N/A
Pendle Borough Council,Operational Services,Supplies and Services,4707,Miscellaneous : Other,MGB PLASTICS LIMITED,A0052535, 21/03/2019,OPS4006015,-5925.57,N,N/A,N,N/A
Pendle Borough Council,Operational Services,Supplies and Services,4707,Miscellaneous : Other,MGB PLASTICS LIMITED,A0052535, 21/03/2019,OPS0294506,29400,N,N/A,N,N/A
Pendle Borough Council,Democratic & Legal Services,Supplies and Services,4508,Mobile Phones,O2 (UK) LIMITED,A0053660, 21/03/2019,DAL0294381,10,N,N/A,N,N/A
Pendle Borough Council,Planning & Building Control,Supplies and Services,4601,Seminars etc All Costs,REDCATED - PERSONAL DATA,A0054626, 14/03/2019,PBC0294232,9.9,N,N/A,N,N/A
Pendle Borough Council,Housing Regeneration Services,Transfer Payments,6104,Storage & Homelessness prevention,TOGETHER HOUSING ASSOCIATION,A0055008, 21/03/2019,HMR0294489,72.22,Y,28687R,N,N/A
Pendle Borough Council,Operational Services,Indirect Employee Expenses,1211,Training,BEN SHAW TRAINING LIMITED,A0055722, 07/03/2019,OPS0294112,4760,N,N/A,N,N/A
Pendle Borough Council,Planning & Building Control,Supplies and Services,4601,Seminars etc All Costs,ROYAL TOWN PLANNING INSTITUTE,A0055984, 21/03/2019,PBC0294485,300,N,N/A,N,N/A
Pendle Borough Council,Engineering & Special Projects,Supplies and Services,4501,Postages,REDCATED - PERSONAL DATA,A0056527, 14/03/2019,HED0294283,8.6,N,N/A,N,N/A
Pendle Borough Council,Parks & Recreation Services,Premises Related Expense,2001,Bldgs : R & M : Day To Day,A BINNS & CO,A0057121, 27/03/2019,PCO0294442,300,N,N/A,N,N/A
Pendle Borough Council,Parks & Recreation Services,Premises Related Expense,2101,Grounds : R & M : Day to Day : Routine,A BINNS & CO,A0057121, 21/03/2019,PCO0294441,480,N,N/A,N,N/A
Pendle Borough Council,Parks & Recreation Services,Premises Related Expense,2101,Grounds : R & M : Day to Day : Routine,A BINNS & CO,A0057121, 21/03/2019,PCO0294441,305,N,N/A,N,N/A
Pendle Borough Council,Parks & Recreation Services,Premises Related Expense,2101,Grounds : R & M : Day to Day : Routine,A BINNS & CO,A0057121, 21/03/2019,PCO0294438,750,N,N/A,N,N/A
Pendle Borough Council,Parks & Recreation Services,Premises Related Expense,2101,Grounds : R & M : Day to Day : Routine,A BINNS & CO,A0057121, 21/03/2019,PCO0294441,215,N,N/A,N,N/A
Pendle Borough Council,Parks & Recreation Services,Premises Related Expense,2101,Grounds : R & M : Day to Day : Routine,A BINNS & CO,A0057121, 27/03/2019,PCO0294442,120,N,N/A,N,N/A
Pendle Borough Council,Parks & Recreation Services,Premises Related Expense,2101,Grounds : R & M : Day to Day : Routine,A BINNS & CO,A0057121, 27/03/2019,PCO0294610,750,N,N/A,N,N/A
Pendle Borough Council,Parks & Recreation Services,Premises Related Expense,2101,Grounds : R & M : Day to Day : Routine,A BINNS & CO,A0057121, 27/03/2019,PCO0294442,200,N,N/A,N,N/A
Pendle Borough Council,Parks & Recreation Services,Premises Related Expense,2101,Grounds : R & M : Day to Day : Routine,A BINNS & CO,A0057121, 21/03/2019,PCO0294438,300,N,N/A,N,N/A
Pendle Borough Council,Parks & Recreation Services,Premises Related Expense,2101,Grounds : R & M : Day to Day : Routine,A BINNS & CO,A0057121, 21/03/2019,PCO0294441,450,N,N/A,N,N/A
Pendle Borough Council,Parks & Recreation Services,Premises Related Expense,2101,Grounds : R & M : Day to Day : Routine,A BINNS & CO,A0057121, 21/03/2019,PCO0294441,500,N,N/A,N,N/A
Pendle Borough Council,Parks & Recreation Services,Premises Related Expense,2101,Grounds : R & M : Day to Day : Routine,A BINNS & CO,A0057121, 21/03/2019,PCO0294438,750,N,N/A,N,N/A
Pendle Borough Council,Parks & Recreation Services,Premises Related Expense,2101,Grounds : R & M : Day to Day : Routine,A BINNS & CO,A0057121, 21/03/2019,PCO0294441,1000,N,N/A,N,N/A
Pendle Borough Council,Parks & Recreation Services,Premises Related Expense,2101,Grounds : R & M : Day to Day : Routine,A BINNS & CO,A0057121, 21/03/2019,PCO0294438,1500,N,N/A,N,N/A
Pendle Borough Council,Parks & Recreation Services,Premises Related Expense,2101,Grounds : R & M : Day to Day : Routine,A BINNS & CO,A0057121, 21/03/2019,PCO0294438,1500,N,N/A,N,N/A
Pendle Borough Council,Financial Services,Premises Related Expense,2203,Electricity,BRITISH GAS,A0057202, 14/03/2019,AAS0294263,0.2,N,N/A,N,N/A
Pendle Borough Council,Financial Services,Premises Related Expense,2203,Electricity,BRITISH GAS,A0057202, 14/03/2019,AAS0294264,0.2,N,N/A,N,N/A
Pendle Borough Council,Financial Services,Premises Related Expense,2203,Electricity,BRITISH GAS,A0057202, 14/03/2019,AAS0294265,0.57,N,N/A,N,N/A
Pendle Borough Council,Parks & Recreation Services,Premises Related Expense,2001,Bldgs : R & M : Day To Day,PEARSON PANKE LIMITED,A0057343, 27/03/2019,PCO0294537,39,N,N/A,N,N/A
Pendle Borough Council,Parks & Recreation Services,Premises Related Expense,2001,Bldgs : R & M : Day To Day,PEARSON PANKE LIMITED,A0057343, 27/03/2019,PCO0294537,175,N,N/A,N,N/A
Pendle Borough Council,Democratic & Legal Services,Supplies and Services,4705,Other Expenses,REDCATED - PERSONAL DATA,A0057968, 14/03/2019,DAL0294304,427.92,N,N/A,N,N/A
Pendle Borough Council,Parks & Recreation Services,Supplies and Services,4502,Telephones : Direct,SECURITY MONITORING CENTRES LTD,A0059068, 14/03/2019,PCO4006008,-65.95,N,N/A,N,N/A
Pendle Borough Council,Operational Services,Supplies and Services,4502,Telephones : Direct,SECURITY MONITORING CENTRES LTD,A0059068, 14/03/2019,OPS0294185,125.32,N,N/A,N,N/A
Pendle Borough Council,Engineering & Special Projects,Agency Costs,5102,Lancashire C C,NSL LIMITED,A0059256, 07/03/2019,HED0294052,1549.2,N,N/A,N,N/A
Pendle Borough Council,Democratic & Legal Services,Supplies and Services,4702,Adverts : Statutory Notice,JPIMEDIA PUBLISHING LIMITED,A0059640, 21/03/2019,DAL0294376,216,N,N/A,N,N/A
Pendle Borough Council,Democratic & Legal Services,Supplies and Services,4702,Adverts : Statutory Notice,JPIMEDIA PUBLISHING LIMITED,A0059640, 27/03/2019,DAL0294550,216,N,N/A,N,N/A
Pendle Borough Council,Democratic & Legal Services,Supplies and Services,4702,Adverts : Statutory Notice,JPIMEDIA PUBLISHING LIMITED,A0059640, 21/03/2019,DAL0294378,495,N,N/A,N,N/A
Pendle Borough Council,Democratic & Legal Services,Supplies and Services,4702,Adverts : Statutory Notice,JPIMEDIA PUBLISHING LIMITED,A0059640, 14/03/2019,DAL0294033,90,N,N/A,N,N/A
Pendle Borough Council,Democratic & Legal Services,Supplies and Services,4702,Adverts : Statutory Notice,JPIMEDIA PUBLISHING LIMITED,A0059640, 14/03/2019,DAL0294275,216,N,N/A,N,N/A
Pendle Borough Council,Democratic & Legal Services,Supplies and Services,4702,Adverts : Statutory Notice,JPIMEDIA PUBLISHING LIMITED,A0059640, 27/03/2019,DAL0294551,270,N,N/A,N,N/A
Pendle Borough Council,Democratic & Legal Services,Supplies and Services,4702,Adverts : Statutory Notice,JPIMEDIA PUBLISHING LIMITED,A0059640, 21/03/2019,DAL0294379,324,N,N/A,N,N/A
Pendle Borough Council,Democratic & Legal Services,Supplies and Services,4705,Other Expenses,JPIMEDIA PUBLISHING LIMITED,A0059640, 14/03/2019,DAL0294274,1224,N,N/A,N,N/A
Pendle Borough Council,Property Services,Supplies and Services,4705,Other Expenses,MAXIGIENE ENVIRONMENTAL SERVICES LTD,A0060911, 07/03/2019,EST0294060,25,N,N/A,N,N/A
Pendle Borough Council,Property Services,Supplies and Services,4705,Other Expenses,MAXIGIENE ENVIRONMENTAL SERVICES LTD,A0060911, 07/03/2019,EST0294059,35,N,N/A,N,N/A
Pendle Borough Council,Property Services,Supplies and Services,4705,Other Expenses,MAXIGIENE ENVIRONMENTAL SERVICES LTD,A0060911, 07/03/2019,EST0294058,792.5,N,N/A,N,N/A
Pendle Borough Council,Operational Services,Supplies and Services,4004,EFM Materials,CONTAINER CARE SOLUTIONS LIMITED,A0061112, 07/03/2019,OPS0294113,425,N,N/A,N,N/A
Pendle Borough Council,Operational Services,Supplies and Services,4004,EFM Materials,CONTAINER CARE SOLUTIONS LIMITED,A0061112, 07/03/2019,OPS0294113,595,N,N/A,N,N/A
Pendle Borough Council,Operational Services,Supplies and Services,4004,EFM Materials,CONTAINER CARE SOLUTIONS LIMITED,A0061112, 07/03/2019,OPS0294113,680,N,N/A,N,N/A
Pendle Borough Council,Operational Services,Supplies and Services,4007,Sub-Contractors,NEALES WASTE MANAGEMENT,A0062047, 27/03/2019,OPS0294715,285,N,N/A,N,N/A
Pendle Borough Council,Engineering & Special Projects,Capital Costs,CD14,Capital : Payments,TRAWDEN FOREST PARISH COUNCIL,A0062286, 21/03/2019,HED0294504,500,N,N/A,N,N/A
Pendle Borough Council,Financial Services,Transport Related Expense,3601,Tprt : Annual Hire Charge,ARVAL LTD (ALLSTAR FUEL SERVICES),A0062668, 15/03/2019,AAS0294503,126.7,N,N/A,N,N/A
Pendle Borough Council,Financial Services,Transport Related Expense,3601,Tprt : Annual Hire Charge,ARVAL LTD (ALLSTAR FUEL SERVICES),A0062668, 15/03/2019,AAS0294503,126.7,N,N/A,N,N/A
Pendle Borough Council,Financial Services,Transport Related Expense,3601,Tprt : Annual Hire Charge,ARVAL LTD (ALLSTAR FUEL SERVICES),A0062668, 15/03/2019,AAS0294503,126.7,N,N/A,N,N/A
Pendle Borough Council,Financial Services,Transport Related Expense,3601,Tprt : Annual Hire Charge,ARVAL LTD (ALLSTAR FUEL SERVICES),A0062668, 15/03/2019,AAS0294503,126.7,N,N/A,N,N/A
Pendle Borough Council,Financial Services,Transport Related Expense,3601,Tprt : Annual Hire Charge,ARVAL LTD (ALLSTAR FUEL SERVICES),A0062668, 15/03/2019,AAS0294503,126.7,N,N/A,N,N/A
Pendle Borough Council,Human Resources,Indirect Employee Expenses,1235,Long Service Awards,REDCATED - PERSONAL DATA,A0062864, 27/03/2019,PER0294639,406.95,N,N/A,N,N/A
Pendle Borough Council,Democratic & Legal Services,Transport Related Expense,3105,Tprt : Repairs : General,REDCATED - PERSONAL DATA,A0062864, 21/03/2019,DAL0294385,5,N,N/A,N,N/A
Pendle Borough Council,Democratic & Legal Services,Transport Related Expense,3105,Tprt : Repairs : General,REDCATED - PERSONAL DATA,A0062864, 27/03/2019,DAL0294565,15,N,N/A,N,N/A
Pendle Borough Council,Democratic & Legal Services,Supplies and Services,4202,Uniforms,REDCATED - PERSONAL DATA,A0062864, 27/03/2019,DAL0294565,41.66,N,N/A,N,N/A
Pendle Borough Council,Democratic & Legal Services,Supplies and Services,4614,Mayoral Expenses,REDCATED - PERSONAL DATA,A0062864, 21/03/2019,DAL0294385,7.89,N,N/A,N,N/A
Pendle Borough Council,Democratic & Legal Services,Supplies and Services,4614,Mayoral Expenses,REDCATED - PERSONAL DATA,A0062864, 27/03/2019,DAL0294565,10,N,N/A,N,N/A
Pendle Borough Council,Parks & Recreation Services,Premises Related Expense,2101,Grounds : R & M : Day to Day : Routine,BOUNCEBACK SAFETY SERVICES LTD,A0063002, 27/03/2019,PCO0294712,1500,N,N/A,N,N/A
Pendle Borough Council,Operational Services,Premises Related Expense,2001,Bldgs : R & M : Day To Day,NORTH WEST TRADING COMPANY,A0063527, 21/03/2019,OPS0294337,275,N,N/A,N,N/A
Pendle Borough Council,Parks & Recreation Services,Transport Related Expense,3105,Tprt : Repairs : General,NORTH WEST TRADING COMPANY,A0063527, 07/03/2019,PCO0294134,9.99,N,N/A,N,N/A
Pendle Borough Council,Democratic & Legal Services,Supplies and Services,4401,Consultants Fees,LANCASHIRE BROADCASTING CO LTD,A0064934, 14/03/2019,DAL0294233,150,N,N/A,N,N/A
Pendle Borough Council,Democratic & Legal Services,Supplies and Services,4704,Publicity & advertisement,LANCASHIRE BROADCASTING CO LTD,A0064934, 27/03/2019,DAL0294631,150,N,N/A,N,N/A
Pendle Borough Council,Democratic & Legal Services,Supplies and Services,4704,Publicity & advertisement,LANCASHIRE BROADCASTING CO LTD,A0064934, 07/03/2019,DAL0294180,429,N,N/A,N,N/A
Pendle Borough Council,Democratic & Legal Services,Supplies and Services,4704,Publicity & advertisement,LANCASHIRE BROADCASTING CO LTD,A0064934, 14/03/2019,DAL0294297,429,N,N/A,N,N/A
Pendle Borough Council,Planning & Building Control,,9303,Other Income : Non-VATable,REDCATED - PERSONAL DATA,A0066200, 14/03/2019,PBC0294204,834.45,N,N/A,N,N/A
Pendle Borough Council,Engineering & Special Projects,Capital Costs,CD14,Capital : Payments,THE FRIENDS OF ST JOHNS CHURCHYARD,A0066463, 07/03/2019,HED0294075,300,N,1113731,N,N/A
Pendle Borough Council,Parks & Recreation Services,Transport Related Expense,3202,Diesel Oil,THE PETROL TANK COMPANY LTD,A0066465, 27/03/2019,PCO0294529,385,N,N/A,N,N/A
Pendle Borough Council,Human Resources,Transport Related Expense,3806,Car Allows : Offs : Lease Exps,LEX AUTOLEASE LIMITED,A0066530, 07/03/2019,PER0294077,193.13,N,N/A,N,N/A
Pendle Borough Council,Human Resources,Transport Related Expense,3806,Car Allows : Offs : Lease Exps,LEX AUTOLEASE LIMITED,A0066530, 07/03/2019,PER0294077,205.46,N,N/A,N,N/A
Pendle Borough Council,Property Services,Premises Related Expense,2001,Bldgs : R & M : Day To Day,SPEAKMAN CONTRACTORS LTD,A0066581, 21/03/2019,EST0294396,544.28,N,N/A,N,N/A
Pendle Borough Council,Property Services,Premises Related Expense,2001,Bldgs : R & M : Day To Day,SPEAKMAN CONTRACTORS LTD,A0066581, 21/03/2019,EST0294396,38.03,N,N/A,N,N/A
Pendle Borough Council,Property Services,Premises Related Expense,2001,Bldgs : R & M : Day To Day,SPEAKMAN CONTRACTORS LTD,A0066581, 21/03/2019,EST0294396,304.62,N,N/A,N,N/A
Pendle Borough Council,Property Services,Premises Related Expense,2001,Bldgs : R & M : Day To Day,SPEAKMAN CONTRACTORS LTD,A0066581, 21/03/2019,EST0294396,101.41,N,N/A,N,N/A
Pendle Borough Council,Property Services,Premises Related Expense,2001,Bldgs : R & M : Day To Day,SPEAKMAN CONTRACTORS LTD,A0066581, 21/03/2019,EST0294396,371.91,N,N/A,N,N/A
Pendle Borough Council,Property Services,Premises Related Expense,2005,Bldgs : Vandalism Repairs,SPEAKMAN CONTRACTORS LTD,A0066581, 21/03/2019,EST0294396,102.13,N,N/A,N,N/A
Pendle Borough Council,Property Services,Premises Related Expense,2101,Grounds : R & M : Day to Day : Routine,SPEAKMAN CONTRACTORS LTD,A0066581, 21/03/2019,EST0294396,566.97,N,N/A,N,N/A
Pendle Borough Council,Engineering & Special Projects,Premises Related Expense,2101,Grounds : R & M : Day to Day : Routine,LIVESEY BUILDING MAINTENANCE CONTRACTORS,A0066865, 27/03/2019,HED0294699,60,N,N/A,N,N/A
Pendle Borough Council,Engineering & Special Projects,Premises Related Expense,2101,Grounds : R & M : Day to Day : Routine,LIVESEY BUILDING MAINTENANCE CONTRACTORS,A0066865, 27/03/2019,HED0294699,180,N,N/A,N,N/A
Pendle Borough Council,Engineering & Special Projects,Premises Related Expense,2101,Grounds : R & M : Day to Day : Routine,LIVESEY BUILDING MAINTENANCE CONTRACTORS,A0066865, 27/03/2019,HED0294700,240,N,N/A,N,N/A
Pendle Borough Council,Engineering & Special Projects,Premises Related Expense,2101,Grounds : R & M : Day to Day : Routine,LIVESEY BUILDING MAINTENANCE CONTRACTORS,A0066865, 27/03/2019,HED0294707,380,N,N/A,N,N/A
Pendle Borough Council,Engineering & Special Projects,Premises Related Expense,2101,Grounds : R & M : Day to Day : Routine,LIVESEY BUILDING MAINTENANCE CONTRACTORS,A0066865, 27/03/2019,HED0294707,900,N,N/A,N,N/A
Pendle Borough Council,Engineering & Special Projects,Capital Costs,CD14,Capital : Payments,LIVESEY BUILDING MAINTENANCE CONTRACTORS,A0066865, 07/03/2019,HED0294100,510,N,N/A,N,N/A
Pendle Borough Council,Engineering & Special Projects,Capital Costs,CD14,Capital : Payments,LIVESEY BUILDING MAINTENANCE CONTRACTORS,A0066865, 07/03/2019,HED0294100,990,N,N/A,N,N/A
Pendle Borough Council,Human Resources,Indirect Employee Expenses,1236,Emp : Medical Expenses,PEOPLE ASSET MANAGEMENT LIMITED,A0067613, 27/03/2019,PER0294636,38.85,N,N/A,N,N/A
Pendle Borough Council,Human Resources,Indirect Employee Expenses,1236,Emp : Medical Expenses,PEOPLE ASSET MANAGEMENT LIMITED,A0067613, 27/03/2019,PER0294637,262.5,N,N/A,N,N/A
Pendle Borough Council,Human Resources,Indirect Employee Expenses,1236,Emp : Medical Expenses,PEOPLE ASSET MANAGEMENT LIMITED,A0067613, 27/03/2019,PER0294636,1275.75,N,N/A,N,N/A
Pendle Borough Council,Operational Services,Supplies and Services,4004,EFM Materials,LIMPET LABELS UK LIMITED,A0067671, 07/03/2019,OPS0294111,175,N,N/A,N,N/A
Pendle Borough Council,Operational Services,Supplies and Services,4705,Other Expenses,LIMPET LABELS UK LIMITED,A0067671, 27/03/2019,OPS0294739,191.01,N,N/A,N,N/A
Pendle Borough Council,Operational Services,Transport Related Expense,3105,Tprt : Repairs : General,PROBRUSH T/A NORTHERN MUNICIPAL SPARES LTD,A0068263, 27/03/2019,OPS0294718,170.08,N,N/A,N,N/A
Pendle Borough Council,Operational Services,Transport Related Expense,3105,Tprt : Repairs : General,PROBRUSH T/A NORTHERN MUNICIPAL SPARES LTD,A0068263, 07/03/2019,OPS0294164,171.24,N,N/A,N,N/A
Pendle Borough Council,Operational Services,Transport Related Expense,3105,Tprt : Repairs : General,PROBRUSH T/A NORTHERN MUNICIPAL SPARES LTD,A0068263, 27/03/2019,OPS0294718,170.07,N,N/A,N,N/A
Pendle Borough Council,Operational Services,Transport Related Expense,3105,Tprt : Repairs : General,PROBRUSH T/A NORTHERN MUNICIPAL SPARES LTD,A0068263, 07/03/2019,OPS0294164,171.23,N,N/A,N,N/A
Pendle Borough Council,Operational Services,Transport Related Expense,3105,Tprt : Repairs : General,PROBRUSH T/A NORTHERN MUNICIPAL SPARES LTD,A0068263, 27/03/2019,OPS0294718,170.08,N,N/A,N,N/A
Pendle Borough Council,Operational Services,Transport Related Expense,3105,Tprt : Repairs : General,PROBRUSH T/A NORTHERN MUNICIPAL SPARES LTD,A0068263, 07/03/2019,OPS0294164,171.24,N,N/A,N,N/A
Pendle Borough Council,Operational Services,Transport Related Expense,3105,Tprt : Repairs : General,PROBRUSH T/A NORTHERN MUNICIPAL SPARES LTD,A0068263, 27/03/2019,OPS0294718,170.07,N,N/A,N,N/A
Pendle Borough Council,Operational Services,Transport Related Expense,3105,Tprt : Repairs : General,PROBRUSH T/A NORTHERN MUNICIPAL SPARES LTD,A0068263, 07/03/2019,OPS0294164,171.23,N,N/A,N,N/A
Pendle Borough Council,Operational Services,Transport Related Expense,3105,Tprt : Repairs : General,PROBRUSH T/A NORTHERN MUNICIPAL SPARES LTD,A0068263, 27/03/2019,OPS0294718,170.08,N,N/A,N,N/A
Pendle Borough Council,Operational Services,Transport Related Expense,3105,Tprt : Repairs : General,PROBRUSH T/A NORTHERN MUNICIPAL SPARES LTD,A0068263, 07/03/2019,OPS0294164,171.24,N,N/A,N,N/A
Pendle Borough Council,Operational Services,Transport Related Expense,3105,Tprt : Repairs : General,PROBRUSH T/A NORTHERN MUNICIPAL SPARES LTD,A0068263, 27/03/2019,OPS0294718,170.07,N,N/A,N,N/A
Pendle Borough Council,Operational Services,Transport Related Expense,3105,Tprt : Repairs : General,PROBRUSH T/A NORTHERN MUNICIPAL SPARES LTD,A0068263, 07/03/2019,OPS0294164,171.23,N,N/A,N,N/A
Pendle Borough Council,Planning & Building Control,,9303,Other Income : Non-VATable,TARIQ MEHMOOD,A0068556, 07/03/2019,PBC0294044,25.23,N,N/A,N,N/A
Pendle Borough Council,Engineering & Special Projects,Supplies and Services,4424,Processing Fees,CHIPSIDE LTD,A0068587, 21/03/2019,HED0294510,27.53,N,N/A,N,N/A
Pendle Borough Council,Engineering & Special Projects,Supplies and Services,4424,Processing Fees,CHIPSIDE LTD,A0068587, 21/03/2019,HED0294511,37.8,N,N/A,N,N/A
Pendle Borough Council,Engineering & Special Projects,Supplies and Services,4424,Processing Fees,CHIPSIDE LTD,A0068587, 21/03/2019,HED0294513,456.87,N,N/A,N,N/A
Pendle Borough Council,Engineering & Special Projects,Supplies and Services,4705,Other Expenses,CHIPSIDE LTD,A0068587, 21/03/2019,HED0294400,1112.11,N,N/A,N,N/A
Pendle Borough Council,Parks & Recreation Services,Supplies and Services,2,Expenditure : Materials,M C & M A STEWART HAULAGE,A0068863, 27/03/2019,PCO0294697,474.3,N,N/A,N,N/A
Pendle Borough Council,Parks & Recreation Services,Premises Related Expense,2101,Grounds : R & M : Day to Day : Routine,M C & M A STEWART HAULAGE,A0068863, 27/03/2019,PCO0294662,324.48,N,N/A,N,N/A
Pendle Borough Council,Parks & Recreation Services,Premises Related Expense,2101,Grounds : R & M : Day to Day : Routine,M C & M A STEWART HAULAGE,A0068863, 27/03/2019,PCO0294709,620.88,N,N/A,N,N/A
Pendle Borough Council,Parks & Recreation Services,Premises Related Expense,2101,Grounds : R & M : Day to Day : Routine,M C & M A STEWART HAULAGE,A0068863, 27/03/2019,PCO0294661,634.6,N,N/A,N,N/A
Pendle Borough Council,Parks & Recreation Services,Supplies and Services,2,Expenditure : Materials,SHERRIFF AMENITY - AGROVISTA UK LIMITED,A0068904, 14/03/2019,PCO0294271,196.6,N,N/A,N,N/A
Pendle Borough Council,Financial Services,Premises Related Expense,2203,Electricity,BRITISH GAS BUSINESS,A0069538, 21/03/2019,AAS0294455,39.54,N,N/A,N,N/A
Pendle Borough Council,Financial Services,Premises Related Expense,2203,Electricity,BRITISH GAS BUSINESS,A0069538, 21/03/2019,AAS0294456,70.92,N,N/A,N,N/A
Pendle Borough Council,Financial Services,Premises Related Expense,2203,Electricity,BRITISH GAS BUSINESS,A0069538, 25/03/2019,AAS0294702,7.31,N,N/A,N,N/A
Pendle Borough Council,Financial Services,Premises Related Expense,2203,Electricity,BRITISH GAS BUSINESS,A0069538, 21/03/2019,AAS0294477,8.88,N,N/A,N,N/A
Pendle Borough Council,Financial Services,Premises Related Expense,2203,Electricity,BRITISH GAS BUSINESS,A0069538, 21/03/2019,AAS0294449,470.39,N,N/A,N,N/A
Pendle Borough Council,Financial Services,Premises Related Expense,2203,Electricity,BRITISH GAS BUSINESS,A0069538, 21/03/2019,AAS0294466,67.98,N,N/A,N,N/A
Pendle Borough Council,Financial Services,Premises Related Expense,2203,Electricity,BRITISH GAS BUSINESS,A0069538, 21/03/2019,AAS0294461,240.77,N,N/A,N,N/A
Pendle Borough Council,Financial Services,Premises Related Expense,2203,Electricity,BRITISH GAS BUSINESS,A0069538, 21/03/2019,AAS0294479,130.37,N,N/A,N,N/A
Pendle Borough Council,Financial Services,Premises Related Expense,2203,Electricity,BRITISH GAS BUSINESS,A0069538, 20/03/2019,AAS4006016,-183.05,N,N/A,N,N/A
Pendle Borough Council,Financial Services,Premises Related Expense,2203,Electricity,BRITISH GAS BUSINESS,A0069538, 21/03/2019,AAS0294478,21.15,N,N/A,N,N/A
Pendle Borough Council,Financial Services,Premises Related Expense,2203,Electricity,BRITISH GAS BUSINESS,A0069538, 20/03/2019,AAS0294646,76.21,N,N/A,N,N/A
Pendle Borough Council,Financial Services,Premises Related Expense,2203,Electricity,BRITISH GAS BUSINESS,A0069538, 27/03/2019,AAS0294769,89.32,N,N/A,N,N/A
Pendle Borough Council,Financial Services,Premises Related Expense,2203,Electricity,BRITISH GAS BUSINESS,A0069538, 20/03/2019,AAS0294645,178.01,N,N/A,N,N/A
Pendle Borough Council,Financial Services,Premises Related Expense,2203,Electricity,BRITISH GAS BUSINESS,A0069538, 21/03/2019,AAS0294452,25.13,N,N/A,N,N/A
Pendle Borough Council,Financial Services,Premises Related Expense,2203,Electricity,BRITISH GAS BUSINESS,A0069538, 21/03/2019,AAS0294451,27.78,N,N/A,N,N/A
Pendle Borough Council,Financial Services,Premises Related Expense,2203,Electricity,BRITISH GAS BUSINESS,A0069538, 21/03/2019,AAS4006013,-7.03,N,N/A,N,N/A
Pendle Borough Council,Financial Services,Premises Related Expense,2203,Electricity,BRITISH GAS BUSINESS,A0069538, 21/03/2019,AAS0294463,23.34,N,N/A,N,N/A
Pendle Borough Council,Financial Services,Premises Related Expense,2203,Electricity,BRITISH GAS BUSINESS,A0069538, 21/03/2019,AAS0294464,60.3,N,N/A,N,N/A
Pendle Borough Council,Financial Services,Premises Related Expense,2203,Electricity,BRITISH GAS BUSINESS,A0069538, 07/03/2019,AAS0294219,71.29,N,N/A,N,N/A
Pendle Borough Council,Financial Services,Premises Related Expense,2203,Electricity,BRITISH GAS BUSINESS,A0069538, 21/03/2019,AAS0294472,7.55,N,N/A,N,N/A
Pendle Borough Council,Financial Services,Premises Related Expense,2203,Electricity,BRITISH GAS BUSINESS,A0069538, 21/03/2019,AAS0294447,120.05,N,N/A,N,N/A
Pendle Borough Council,Financial Services,Premises Related Expense,2203,Electricity,BRITISH GAS BUSINESS,A0069538, 21/03/2019,AAS0294460,205.28,N,N/A,N,N/A
Pendle Borough Council,Financial Services,Premises Related Expense,2203,Electricity,BRITISH GAS BUSINESS,A0069538, 21/03/2019,AAS0294458,284.14,N,N/A,N,N/A
Pendle Borough Council,Financial Services,Premises Related Expense,2203,Electricity,BRITISH GAS BUSINESS,A0069538, 21/03/2019,AAS0294457,24.47,N,N/A,N,N/A
Pendle Borough Council,Financial Services,Premises Related Expense,2203,Electricity,BRITISH GAS BUSINESS,A0069538, 21/03/2019,AAS0294446,8.78,N,N/A,N,N/A
Pendle Borough Council,Financial Services,Premises Related Expense,2203,Electricity,BRITISH GAS BUSINESS,A0069538, 21/03/2019,AAS0294454,163.18,N,N/A,N,N/A
Pendle Borough Council,Financial Services,Premises Related Expense,2203,Electricity,BRITISH GAS BUSINESS,A0069538, 21/03/2019,AAS0294445,18.46,N,N/A,N,N/A
Pendle Borough Council,Financial Services,Premises Related Expense,2203,Electricity,BRITISH GAS BUSINESS,A0069538, 21/03/2019,AAS0294465,15.52,N,N/A,N,N/A
Pendle Borough Council,Financial Services,Premises Related Expense,2203,Electricity,BRITISH GAS BUSINESS,A0069538, 21/03/2019,AAS0294474,53.97,N,N/A,N,N/A
Pendle Borough Council,Financial Services,Premises Related Expense,2203,Electricity,BRITISH GAS BUSINESS,A0069538, 21/03/2019,AAS0294469,22.09,N,N/A,N,N/A
Pendle Borough Council,Financial Services,Premises Related Expense,2203,Electricity,BRITISH GAS BUSINESS,A0069538, 21/03/2019,AAS0294468,70.56,N,N/A,N,N/A
Pendle Borough Council,Financial Services,Premises Related Expense,2203,Electricity,BRITISH GAS BUSINESS,A0069538, 21/03/2019,AAS0294448,243.63,N,N/A,N,N/A
Pendle Borough Council,Financial Services,Premises Related Expense,2203,Electricity,BRITISH GAS BUSINESS,A0069538, 21/03/2019,AAS0294471,5.91,N,N/A,N,N/A
Pendle Borough Council,Financial Services,Premises Related Expense,2203,Electricity,BRITISH GAS BUSINESS,A0069538, 21/03/2019,AAS0294459,135.99,N,N/A,N,N/A
Pendle Borough Council,Financial Services,Premises Related Expense,2203,Electricity,BRITISH GAS BUSINESS,A0069538, 21/03/2019,AAS0294450,77.18,N,N/A,N,N/A
Pendle Borough Council,Financial Services,Premises Related Expense,2203,Electricity,BRITISH GAS BUSINESS,A0069538, 21/03/2019,AAS0294473,6.91,N,N/A,N,N/A
Pendle Borough Council,Financial Services,Premises Related Expense,2203,Electricity,BRITISH GAS BUSINESS,A0069538, 21/03/2019,AAS0294470,18.21,N,N/A,N,N/A
Pendle Borough Council,Financial Services,Premises Related Expense,2203,Electricity,BRITISH GAS BUSINESS,A0069538, 21/03/2019,AAS0294467,114.71,N,N/A,N,N/A
Pendle Borough Council,Financial Services,Premises Related Expense,2203,Electricity,BRITISH GAS BUSINESS,A0069538, 21/03/2019,AAS0294476,586.03,N,N/A,N,N/A
Pendle Borough Council,Financial Services,Premises Related Expense,2203,Electricity,BRITISH GAS BUSINESS,A0069538, 21/03/2019,AAS0294475,580.06,N,N/A,N,N/A
Pendle Borough Council,Financial Services,Supplies and Services,4705,Other Expenses,BRITISH GAS BUSINESS,A0069538, 21/03/2019,AAS0294462,8.24,N,N/A,N,N/A
Pendle Borough Council,Financial Services,Supplies and Services,4705,Other Expenses,BRITISH GAS BUSINESS,A0069538, 21/03/2019,AAS0294453,37.83,N,N/A,N,N/A
Pendle Borough Council,Financial Services,Supplies and Services,4705,Other Expenses,ACTIVE LANCASHIRE LIMITED,A0070149, 07/03/2019,AAS0294083,6250,N,1159832,N,N/A
Pendle Borough Council,Engineering & Special Projects,Premises Related Expense,2101,Grounds : R & M : Day to Day : Routine,QHS SOLUTIONS LIMITED,A0071912, 14/03/2019,HED0294330,1500,N,N/A,N,N/A
Pendle Borough Council,Financial Services,Supplies and Services,4007,Sub-Contractors,QHS SOLUTIONS LIMITED,A0071912, 01/03/2019,AAS0294643,666.67,N,N/A,N,N/A
Pendle Borough Council,Housing Regeneration Services,Supplies and Services,4705,Other Expenses,HEWITT & CO,A0072331, 27/03/2019,HMR0294625,225,N,N/A,N,N/A
Pendle Borough Council,Financial Services,Support Services,7201,Bank Charges,LLOYDS BANKING GROUP,A0072462, 25/03/2019,AAS0294706,15,N,N/A,N,N/A
Pendle Borough Council,Financial Services,Support Services,7201,Bank Charges,LLOYDS BANKING GROUP,A0072462, 25/03/2019,AAS0294706,50,N,N/A,N,N/A
Pendle Borough Council,Operational Services,Supplies and Services,4007,Sub-Contractors,CANNON HYGIENE LIMITED,A0072816, 14/03/2019,OPS0294216,154.11,N,N/A,N,N/A
Pendle Borough Council,Operational Services,Supplies and Services,4007,Sub-Contractors,CANNON HYGIENE LIMITED,A0072816, 14/03/2019,OPS0294216,2.27,N,N/A,N,N/A
Pendle Borough Council,Operational Services,Capital Costs,CD14,Capital : Payments,REACTEC LIMITED,A0072817, 21/03/2019,OPS4006010,-1890,N,N/A,N,N/A
Pendle Borough Council,Parks & Recreation Services,Capital Costs,CD14,Capital : Payments,REACTEC LIMITED,A0072817, 21/03/2019,PCO0294367,11117.5,N,N/A,N,N/A
Pendle Borough Council,Operational Services,Supplies and Services,4007,Sub-Contractors,TCS (WASTE) LIMITED,A0072822, 14/03/2019,OPS0294278,140,N,N/A,N,N/A
Pendle Borough Council,Economic Development & Tourism,Supplies and Services,4707,Miscellaneous : Other,TCS (WASTE) LIMITED,A0072822, 14/03/2019,REG0294231,508,N,N/A,N,N/A
Pendle Borough Council,Financial Services,Indirect Employee Expenses,1221,Recruitment,DBS,A0072958, 19/03/2019,AAS0294644,269,N,N/A,N,N/A
Pendle Borough Council,Financial Services,Supplies and Services,4705,Other Expenses,DBS,A0072958, 19/03/2019,AAS0294644,836,N,N/A,N,N/A
Pendle Borough Council,Financial Services,Supplies and Services,4421,Credit card and online charges,LLOYDS BANK CARDNET,A0074460, 13/03/2019,AAS0294388,291.4,N,N/A,N,N/A
Pendle Borough Council,Financial Services,Supplies and Services,4421,Credit card and online charges,LLOYDS BANK CARDNET,A0074460, 13/03/2019,AAS0294390,325.09,N,N/A,N,N/A
Pendle Borough Council,Financial Services,Supplies and Services,4421,Credit card and online charges,LLOYDS BANK CARDNET,A0074460, 13/03/2019,AAS0294389,608.61,N,N/A,N,N/A
Pendle Borough Council,Democratic & Legal Services,Supplies and Services,4705,Other Expenses,XPRESS SOFTWARE SOLUTIONS LTD,A0074727, 07/03/2019,DAL0294184,2815,N,N/A,N,N/A
Pendle Borough Council,Parks & Recreation Services,Supplies and Services,2,Expenditure : Materials,FLEET (LINE MARKERS) LIMITED,A0075352, 27/03/2019,PCO0294664,233.16,N,N/A,N,N/A
Pendle Borough Council,Planning & Building Control,Supplies and Services,4003,EFM : Other Equipment,REDACTED - PERSONAL DATA,A0075365, 21/03/2019,PBC0294387,6.25,N,N/A,N,N/A
Pendle Borough Council,Housing Regeneration Services,Capital Costs,CH22,Ren Grant : 1996 Act,OCEAN BATHROOMS TILES & HEATING LTD,A0075367, 14/03/2019,HMR0294238,3580,N,N/A,N,N/A
Pendle Borough Council,Housing Regeneration Services,Capital Costs,CH22,Ren Grant : 1996 Act,OCEAN BATHROOMS TILES & HEATING LTD,A0075367, 27/03/2019,HMR0294556,3685,N,N/A,N,N/A
Pendle Borough Council,Housing Regeneration Services,Supplies and Services,4705,Other Expenses,FRED HAMER FUNERAL SVCS - HAVENCARE MGT LTD,A0075504, 27/03/2019,HMR0294680,1117,N,N/A,N,N/A
Pendle Borough Council,Housing Regeneration Services,Supplies and Services,4705,Other Expenses,FRED HAMER FUNERAL SVCS - HAVENCARE MGT LTD,A0075504, 27/03/2019,HMR0294681,1281,N,N/A,N,N/A
Pendle Borough Council,Chief Executives Policy Unit,Transport Related Expense,3802,Car Allows : Offs : Casual,REDACTED - PERSONAL DATA,A0076703, 21/03/2019,COR0294341,1.42,N,N/A,N,N/A
Pendle Borough Council,Human Resources,Indirect Employee Expenses,1235,Long Service Awards,REDACTED - PERSONAL DATA,A0076811, 27/03/2019,PER0294640,90,N,N/A,N,N/A
Pendle Borough Council,Financial Services,Transfer Payments,6104,Storage & Homelessness prevention,REDACTED - PERSONAL DATA,A0076812, 14/03/2019,AAS0294261,4.58,N,N/A,N,N/A
Pendle Borough Council,Democratic & Legal Services,Supplies and Services,4601,Seminars etc All Costs,REDACTED - PERSONAL DATA,A0077487, 07/03/2019,DAL0294183,1.25,N,N/A,N,N/A
Pendle Borough Council,Democratic & Legal Services,Supplies and Services,4601,Seminars etc All Costs,REDACTED - PERSONAL DATA,A0077487, 07/03/2019,DAL0294183,4.17,N,N/A,N,N/A
Pendle Borough Council,Engineering & Special Projects,Supplies and Services,4737,Grant Funding,FOULRIDGE PARISH COUNCIL,A0077715, 21/03/2019,HED0294403,2040,N,N/A,N,N/A
Pendle Borough Council,Engineering & Special Projects,Capital Costs,CD14,Capital : Payments,FOULRIDGE PARISH COUNCIL,A0077715, 07/03/2019,HED0294051,1000,N,N/A,N,N/A
Pendle Borough Council,Housing Regeneration Services,Supplies and Services,4003,EFM : Other Equipment,KINGS WASHING MACHINE RENTALS,A0079878, 14/03/2019,HMR0294227,55,N,N/A,N,N/A
Pendle Borough Council,Chief Executives Policy Unit,Transport Related Expense,3802,Car Allows : Offs : Casual,REDACTED - PERSONAL DATA,A0080316, 07/03/2019,COR0294104,6.67,N,N/A,N,N/A
Pendle Borough Council,Chief Executives Policy Unit,Transport Related Expense,3802,Car Allows : Offs : Casual,REDACTED - PERSONAL DATA,A0080316, 07/03/2019,COR0294104,14.2,N,N/A,N,N/A
Pendle Borough Council,Planning & Building Control,,9302,Fees Income : Non-VATable,WBW SURVEYORS LIMITED,A0080321, 27/03/2019,PBC0294569,118,N,N/A,N,N/A
Pendle Borough Council,Democratic & Legal Services,Supplies and Services,4704,Publicity & advertisement,LANCASHIRE INTERPRETATION & TRANSLATION SERVICES,A0081140, 21/03/2019,DAL0294505,130,N,N/A,N,N/A
Pendle Borough Council,Housing Regeneration Services,Supplies and Services,4739,Grants/Contributions,UNIQUE CLEAN (NW) LIMITED 3552/0176545,A0082299, 21/03/2019,HMR0294488,8802,N,N/A,N,N/A
Pendle Borough Council,Housing Regeneration Services,Supplies and Services,4401,Consultants Fees,CALICO ENTERPRISE,A0082574, 21/03/2019,HMR0294491,2774.4,N,N/A,N,N/A
Pendle Borough Council,Financial Services,Supplies and Services,4401,Consultants Fees,HM COURTS & TRIBUNALS SERVICE,A0083319, 18/03/2019,AAS0294502,11,N,N/A,N,N/A
Pendle Borough Council,Financial Services,Supplies and Services,4401,Consultants Fees,HM COURTS & TRIBUNALS SERVICE,A0083319, 18/03/2019,AAS0294502,1147.5,N,N/A,N,N/A
Pendle Borough Council,Financial Services,Supplies and Services,4403,Court Fees,HM COURTS & TRIBUNALS SERVICE,A0083319, 18/03/2019,AAS0294737,414,N,N/A,N,N/A
Pendle Borough Council,Environmental Health Services,Supplies and Services,4301,Printing & Stationery,FOOD SAFETY DIRECT LIMITED,A0083616, 14/03/2019,ENV0294312,47.99,N,N/A,N,N/A
Pendle Borough Council,Operational Services,Transport Related Expense,3202,Diesel Oil,CRAGGS ENERGY LIMITED,A0083617, 14/03/2019,OPS0294211,1656,N,N/A,N,N/A
Pendle Borough Council,Planning & Building Control,,9302,Fees Income : Non-VATable,AV TOWN PLANNING LIMITED,A0083619, 27/03/2019,PBC0294568,1482,N,N/A,N,N/A
Pendle Borough Council,Financial Services,Support Services,7202,District Audit Fees,GRANT THORNTON UK LLP,A0084044, 14/03/2019,AAS0294262,7821.25,N,N/A,N,N/A
Pendle Borough Council,Parks & Recreation Services,Premises Related Expense,2001,Bldgs : R & M : Day To Day,MICHAEL BURGESS,A0084369, 27/03/2019,PCO0294604,110,N,N/A,N,N/A
Pendle Borough Council,Parks & Recreation Services,Premises Related Expense,2001,Bldgs : R & M : Day To Day,MICHAEL BURGESS,A0084369, 27/03/2019,PCO0294543,1400,N,N/A,N,N/A
Pendle Borough Council,Parks & Recreation Services,Premises Related Expense,2001,Bldgs : R & M : Day To Day,MICHAEL BURGESS,A0084369, 27/03/2019,PCO0294542,2550,N,N/A,N,N/A
Pendle Borough Council,Parks & Recreation Services,Premises Related Expense,2001,Bldgs : R & M : Day To Day,MICHAEL BURGESS,A0084369, 27/03/2019,PCO0294543,500,N,N/A,N,N/A
Pendle Borough Council,Parks & Recreation Services,Premises Related Expense,2101,Grounds : R & M : Day to Day : Routine,MICHAEL BURGESS,A0084369, 27/03/2019,PCO0294604,200,N,N/A,N,N/A
Pendle Borough Council,Parks & Recreation Services,Premises Related Expense,2101,Grounds : R & M : Day to Day : Routine,MICHAEL BURGESS,A0084369, 27/03/2019,PCO0294542,2250,N,N/A,N,N/A
Pendle Borough Council,Financial Services,Supplies and Services,4422,Allpay,ALLPAY LIMITED,A0084372, 07/03/2019,AAS0294093,10.37,N,N/A,N,N/A
Pendle Borough Council,Financial Services,Supplies and Services,4422,Allpay,ALLPAY LIMITED,A0084372, 07/03/2019,AAS0294094,10.37,N,N/A,N,N/A
Pendle Borough Council,Financial Services,Supplies and Services,4422,Allpay,ALLPAY LIMITED,A0084372, 07/03/2019,AAS0294092,13.5,N,N/A,N,N/A
Pendle Borough Council,Financial Services,Supplies and Services,4422,Allpay,ALLPAY LIMITED,A0084372, 07/03/2019,AAS0294090,37.6,N,N/A,N,N/A
Pendle Borough Council,Financial Services,Supplies and Services,4422,Allpay,ALLPAY LIMITED,A0084372, 07/03/2019,AAS0294091,80.89,N,N/A,N,N/A
Pendle Borough Council,Financial Services,Supplies and Services,4422,Allpay,ALLPAY LIMITED,A0084372, 07/03/2019,AAS0294089,864.28,N,N/A,N,N/A
Pendle Borough Council,Revenues Services,,9302,Fees Income : Non-VATable,WILKIN CHAPMAN LLP,A0084376, 21/03/2019,TRE0294430,15,N,N/A,N,N/A
Pendle Borough Council,Revenues Services,,9302,Fees Income : Non-VATable,WILKIN CHAPMAN LLP,A0084376, 21/03/2019,TRE0294430,285,N,N/A,N,N/A
Pendle Borough Council,Housing Regeneration Services,Capital Costs,CH22,Ren Grant : 1996 Act,ELITE PLUMBING,A0084584, 27/03/2019,HMR0294557,5580,N,N/A,N,N/A
Pendle Borough Council,Housing Regeneration Services,Premises Related Expense,2002,Bldgs : R & M : Abnormal,RODNEY CAPSTICK BUILDING MAINTENANCE,A0085112, 27/03/2019,HMR0294674,235,N,N/A,N,N/A
Pendle Borough Council,Engineering & Special Projects,Premises Related Expense,2101,Grounds : R & M : Day to Day : Routine,KEVIN WILKINSON LANDSCAPES LTD,A0085660, 07/03/2019,HED0294074,154,N,N/A,N,N/A
Pendle Borough Council,Financial Services,Premises Related Expense,2202,Gas,OPUS ENERGY LIMITED,A0086092, 27/03/2019,AAS0294630,7.79,N,N/A,N,N/A
Pendle Borough Council,Operational Services,Transport Related Expense,3105,Tprt : Repairs : General,DAC BEACHCROFT CLAIMS LIMITED,A0087004, 07/03/2019,OPS0294161,-205,N,N/A,N,N/A
Pendle Borough Council,Operational Services,Transport Related Expense,3105,Tprt : Repairs : General,DAC BEACHCROFT CLAIMS LIMITED,A0087004, 07/03/2019,OPS0294161,205,N,N/A,N,N/A
Pendle Borough Council,Housing Regeneration Services,Premises Related Expense,2001,Bldgs : R & M : Day To Day,MARCHBRIDGE BUILDERS LIMITED,A0087284, 07/03/2019,HMR0294156,750,N,N/A,N,N/A
Pendle Borough Council,Engineering & Special Projects,Capital Costs,CD14,Capital : Payments,MARCHBRIDGE BUILDERS LIMITED,A0087284, 14/03/2019,HED0294328,523.89,N,N/A,N,N/A
Pendle Borough Council,Engineering & Special Projects,Capital Costs,CD14,Capital : Payments,MARCHBRIDGE BUILDERS LIMITED,A0087284, 21/03/2019,HED0294518,21743.53,N,N/A,N,N/A
Pendle Borough Council,Revenues Services,Supplies and Services,4401,Consultants Fees,JBW GROUP LIMITED,A0088708, 07/03/2019,TRE0294053,220,N,N/A,N,N/A
Pendle Borough Council,Engineering & Special Projects,Premises Related Expense,2101,Grounds : R & M : Day to Day : Routine,JETCAM CLEANSING COLNE LTD,A0088807, 27/03/2019,HED0294701,240,N,N/A,N,N/A
Pendle Borough Council,Human Resources,Indirect Employee Expenses,1236,Emp : Medical Expenses,HEALTH BUSINESS LIMITED,A0088933, 07/03/2019,PER0294079,85,N,N/A,N,N/A
Pendle Borough Council,Human Resources,Indirect Employee Expenses,1236,Emp : Medical Expenses,HEALTH BUSINESS LIMITED,A0088933, 07/03/2019,PER0294079,180,N,N/A,N,N/A
Pendle Borough Council,Financial Services,Supplies and Services,4401,Consultants Fees,AURORA ACCOUNTING SERVICES,A0089134, 07/03/2019,AAS0294177,2250,N,N/A,N,N/A
Pendle Borough Council,Operational Services,Indirect Employee Expenses,1270,Lone Worker Monitoring Service,SOLOPROTECT LIMITED,A0089719, 07/03/2019,OPS0294155,11.34,N,N/A,N,N/A
Pendle Borough Council,Operational Services,Indirect Employee Expenses,1270,Lone Worker Monitoring Service,SOLOPROTECT LIMITED,A0089719, 27/03/2019,OPS0294721,11.34,N,N/A,N,N/A
Pendle Borough Council,Operational Services,Indirect Employee Expenses,1270,Lone Worker Monitoring Service,SOLOPROTECT LIMITED,A0089719, 07/03/2019,OPS0294158,404.6,N,N/A,N,N/A
Pendle Borough Council,Operational Services,Indirect Employee Expenses,1270,Lone Worker Monitoring Service,SOLOPROTECT LIMITED,A0089719, 27/03/2019,OPS0294734,404.6,N,N/A,N,N/A
Pendle Borough Council,Parks & Recreation Services,Indirect Employee Expenses,1270,Lone Worker Monitoring Service,SOLOPROTECT LIMITED,A0089719, 27/03/2019,PCO0294710,404.6,N,N/A,N,N/A
Pendle Borough Council,Housing Regeneration Services,Supplies and Services,4705,Other Expenses,SOLOPROTECT LIMITED,A0089719, 07/03/2019,HMR0294062,45.36,N,N/A,N,N/A
Pendle Borough Council,Housing Regeneration Services,Supplies and Services,4705,Other Expenses,SOLOPROTECT LIMITED,A0089719, 27/03/2019,HMR0294696,45.36,N,N/A,N,N/A
Pendle Borough Council,Engineering & Special Projects,Supplies and Services,4737,Grant Funding,FRIENDS OF WALVERDEN PARK,A0089945, 21/03/2019,HED0294408,7160,N,N/A,N,N/A
Pendle Borough Council,Engineering & Special Projects,Capital Costs,CD14,Capital : Payments,UNIVERSAL CONTAINERS LTD,A0089970, 07/03/2019,HED0294101,2280,N,N/A,N,N/A
Pendle Borough Council,Engineering & Special Projects,Capital Costs,CD14,Capital : Payments,UNIVERSAL CONTAINERS LTD,A0089970, 07/03/2019,HED0294102,2300,N,N/A,N,N/A
Pendle Borough Council,Engineering & Special Projects,Capital Costs,CD14,Capital : Payments,COLNE HORTICULTURE SOCIETY,A0089975, 14/03/2019,HED0294284,1000,N,N/A,N,N/A
Pendle Borough Council,Housing Regeneration Services,Supplies and Services,4705,Other Expenses,ULTIMATE PROPERTY SOLUTIONS,A0090032, 07/03/2019,HMR0294066,380,N,N/A,N,N/A
Pendle Borough Council,Housing Regeneration Services,Premises Related Expense,2101,Grounds : R & M : Day to Day : Routine,O`CALLAGHAN LIMITED,A0090052, 14/03/2019,HMR0294286,500,N,N/A,N,N/A
Pendle Borough Council,Housing Regeneration Services,Premises Related Expense,2101,Grounds : R & M : Day to Day : Routine,O`CALLAGHAN LIMITED,A0090052, 14/03/2019,HMR0294289,500,N,N/A,N,N/A
Pendle Borough Council,Housing Regeneration Services,Premises Related Expense,2101,Grounds : R & M : Day to Day : Routine,O`CALLAGHAN LIMITED,A0090052, 14/03/2019,HMR0294290,750,N,N/A,N,N/A
Pendle Borough Council,Housing Regeneration Services,Capital Costs,CD14,Capital : Payments,O`CALLAGHAN LIMITED,A0090052, 14/03/2019,HMR0294291,20262.86,N,N/A,N,N/A
Pendle Borough Council,Planning & Building Control,Supplies and Services,4707,Miscellaneous : Other,TRAWDEN FOREST COMMUNITY CENTRE,A0090063, 21/03/2019,PBC0294500,20,N,1158193,N,N/A
Pendle Borough Council,Operational Services,Agency Staff,1004,Emp : Agency Wages,RAPID RECRUIT LIMITED,A0090080, 21/03/2019,OPS0294315,864.02,N,N/A,N,N/A
Pendle Borough Council,Operational Services,Agency Staff,1004,Emp : Agency Wages,RAPID RECRUIT LIMITED,A0090080, 07/03/2019,OPS0294123,1417.04,N,N/A,N,N/A
Pendle Borough Council,Operational Services,Agency Staff,1004,Emp : Agency Wages,RAPID RECRUIT LIMITED,A0090080, 27/03/2019,OPS0294691,1541.33,N,N/A,N,N/A
Pendle Borough Council,Operational Services,Agency Staff,1004,Emp : Agency Wages,RAPID RECRUIT LIMITED,A0090080, 21/03/2019,OPS0294512,1933.47,N,N/A,N,N/A
Pendle Borough Council,Operational Services,Agency Staff,1004,Emp : Agency Wages,RAPID RECRUIT LIMITED,A0090080, 21/03/2019,OPS0294314,2289.49,N,N/A,N,N/A
Pendle Borough Council,Operational Services,Agency Staff,1004,Emp : Agency Wages,RAPID RECRUIT LIMITED,A0090080, 21/03/2019,OPS0294313,2655.91,N,N/A,N,N/A
Pendle Borough Council,Operational Services,Agency Staff,1004,Emp : Agency Wages,RAPID RECRUIT LIMITED,A0090080, 21/03/2019,OPS0294512,159.23,N,N/A,N,N/A
Pendle Borough Council,Operational Services,Agency Staff,1004,Emp : Agency Wages,RAPID RECRUIT LIMITED,A0090080, 07/03/2019,OPS0294123,319.31,N,N/A,N,N/A
Pendle Borough Council,Operational Services,Agency Staff,1004,Emp : Agency Wages,RAPID RECRUIT LIMITED,A0090080, 21/03/2019,OPS0294315,473.08,N,N/A,N,N/A
Pendle Borough Council,Operational Services,Agency Staff,1004,Emp : Agency Wages,RAPID RECRUIT LIMITED,A0090080, 21/03/2019,OPS0294314,735.45,N,N/A,N,N/A
Pendle Borough Council,Operational Services,Agency Staff,1004,Emp : Agency Wages,RAPID RECRUIT LIMITED,A0090080, 27/03/2019,OPS0294691,800.65,N,N/A,N,N/A
Pendle Borough Council,Operational Services,Agency Staff,1004,Emp : Agency Wages,RAPID RECRUIT LIMITED,A0090080, 21/03/2019,OPS0294313,853.13,N,N/A,N,N/A
Pendle Borough Council,Operational Services,Agency Staff,1004,Emp : Agency Wages,RAPID RECRUIT LIMITED,A0090080, 21/03/2019,OPS0294313,162.6,N,N/A,N,N/A
Pendle Borough Council,Operational Services,Agency Staff,1004,Emp : Agency Wages,RAPID RECRUIT LIMITED,A0090080, 21/03/2019,OPS0294512,401.08,N,N/A,N,N/A
Pendle Borough Council,Operational Services,Agency Staff,1004,Emp : Agency Wages,RAPID RECRUIT LIMITED,A0090080, 07/03/2019,OPS0294123,599.15,N,N/A,N,N/A
Pendle Borough Council,Operational Services,Agency Staff,1004,Emp : Agency Wages,RAPID RECRUIT LIMITED,A0090080, 27/03/2019,OPS0294691,876.72,N,N/A,N,N/A
Pendle Borough Council,Operational Services,Agency Staff,1004,Emp : Agency Wages,RAPID RECRUIT LIMITED,A0090080, 21/03/2019,OPS0294315,883.46,N,N/A,N,N/A
Pendle Borough Council,Operational Services,Agency Staff,1004,Emp : Agency Wages,RAPID RECRUIT LIMITED,A0090080, 21/03/2019,OPS0294314,1013.85,N,N/A,N,N/A
Pendle Borough Council,Engineering & Special Projects,Capital Costs,CD14,Capital : Payments,SMARTYPANTS EXCLUSIVE CHILDCARE LTD,A0090111, 07/03/2019,HED0294073,100,N,N/A,N,N/A
Pendle Borough Council,Parks & Recreation Services,Premises Related Expense,2101,Grounds : R & M : Day to Day : Routine,REDACTED - PERSONAL DATA,A0090177, 14/03/2019,PCO0294195,184.8,N,N/A,N,N/A
Pendle Borough Council,Parks & Recreation Services,Premises Related Expense,2101,Grounds : R & M : Day to Day : Routine,REDACTED - PERSONAL DATA,A0090177, 14/03/2019,PCO0294195,275,N,N/A,N,N/A
Pendle Borough Council,Planning & Building Control,,9303,Other Income : Non-VATable,REDACTED - PERSONAL DATA,A0090223, 14/03/2019,PBC0294205,19.74,N,N/A,N,N/A
Pendle Borough Council,Financial Services,Supplies and Services,4705,Other Expenses,FRIENDS OF BALLGROVE,A0090242, 07/03/2019,AAS0294095,500,N,N/A,N,N/A
Pendle Borough Council,Financial Services,Transport Related Expense,3202,Diesel Oil,FUELMATE LTD,A0090265, 05/03/2019,AAS0294223,38.3,N,N/A,N,N/A
Pendle Borough Council,Financial Services,Transport Related Expense,3202,Diesel Oil,FUELMATE LTD,A0090265, 26/03/2019,AAS0294770,45.35,N,N/A,N,N/A
Pendle Borough Council,Financial Services,Transport Related Expense,3202,Diesel Oil,FUELMATE LTD,A0090265, 12/03/2019,AAS0294391,50.13,N,N/A,N,N/A
Pendle Borough Council,Financial Services,Transport Related Expense,3202,Diesel Oil,FUELMATE LTD,A0090265, 12/03/2019,AAS0294391,50.18,N,N/A,N,N/A
Pendle Borough Council,Financial Services,Transport Related Expense,3202,Diesel Oil,FUELMATE LTD,A0090265, 26/03/2019,AAS0294770,54.99,N,N/A,N,N/A
Pendle Borough Council,Financial Services,Transport Related Expense,3202,Diesel Oil,FUELMATE LTD,A0090265, 26/03/2019,AAS0294770,55.47,N,N/A,N,N/A
Pendle Borough Council,Financial Services,Transport Related Expense,3202,Diesel Oil,FUELMATE LTD,A0090265, 19/03/2019,AAS0294650,55.82,N,N/A,N,N/A
Pendle Borough Council,Financial Services,Transport Related Expense,3202,Diesel Oil,FUELMATE LTD,A0090265, 05/03/2019,AAS0294223,62.96,N,N/A,N,N/A
Pendle Borough Council,Financial Services,Transport Related Expense,3202,Diesel Oil,FUELMATE LTD,A0090265, 05/03/2019,AAS0294223,105.81,N,N/A,N,N/A
Pendle Borough Council,Financial Services,Transport Related Expense,3202,Diesel Oil,FUELMATE LTD,A0090265, 05/03/2019,AAS0294223,111.39,N,N/A,N,N/A
Pendle Borough Council,Financial Services,Transport Related Expense,3202,Diesel Oil,FUELMATE LTD,A0090265, 12/03/2019,AAS0294391,305.44,N,N/A,N,N/A
Pendle Borough Council,Financial Services,Transport Related Expense,3202,Diesel Oil,FUELMATE LTD,A0090265, 05/03/2019,AAS0294223,306.85,N,N/A,N,N/A
Pendle Borough Council,Financial Services,Transport Related Expense,3202,Diesel Oil,FUELMATE LTD,A0090265, 26/03/2019,AAS0294770,307.82,N,N/A,N,N/A
Pendle Borough Council,Financial Services,Transport Related Expense,3202,Diesel Oil,FUELMATE LTD,A0090265, 19/03/2019,AAS0294650,312.82,N,N/A,N,N/A
Pendle Borough Council,Financial Services,Transport Related Expense,3202,Diesel Oil,FUELMATE LTD,A0090265, 19/03/2019,AAS0294650,200.21,N,N/A,N,N/A
Pendle Borough Council,Financial Services,Transport Related Expense,3202,Diesel Oil,FUELMATE LTD,A0090265, 12/03/2019,AAS0294391,253.54,N,N/A,N,N/A
Pendle Borough Council,Financial Services,Transport Related Expense,3202,Diesel Oil,FUELMATE LTD,A0090265, 05/03/2019,AAS0294223,253.94,N,N/A,N,N/A
Pendle Borough Council,Financial Services,Transport Related Expense,3202,Diesel Oil,FUELMATE LTD,A0090265, 26/03/2019,AAS0294770,273.59,N,N/A,N,N/A
Pendle Borough Council,Financial Services,Transport Related Expense,3202,Diesel Oil,FUELMATE LTD,A0090265, 12/03/2019,AAS0294391,65.52,N,N/A,N,N/A
Pendle Borough Council,Financial Services,Transport Related Expense,3202,Diesel Oil,FUELMATE LTD,A0090265, 05/03/2019,AAS0294223,207.26,N,N/A,N,N/A
Pendle Borough Council,Financial Services,Transport Related Expense,3202,Diesel Oil,FUELMATE LTD,A0090265, 19/03/2019,AAS0294650,272.96,N,N/A,N,N/A
Pendle Borough Council,Financial Services,Transport Related Expense,3202,Diesel Oil,FUELMATE LTD,A0090265, 26/03/2019,AAS0294770,323.15,N,N/A,N,N/A
Pendle Borough Council,Financial Services,Transport Related Expense,3202,Diesel Oil,FUELMATE LTD,A0090265, 19/03/2019,AAS0294650,105.69,N,N/A,N,N/A
Pendle Borough Council,Financial Services,Transport Related Expense,3202,Diesel Oil,FUELMATE LTD,A0090265, 05/03/2019,AAS0294223,242.22,N,N/A,N,N/A
Pendle Borough Council,Financial Services,Transport Related Expense,3202,Diesel Oil,FUELMATE LTD,A0090265, 26/03/2019,AAS0294770,296.04,N,N/A,N,N/A
Pendle Borough Council,Financial Services,Transport Related Expense,3202,Diesel Oil,FUELMATE LTD,A0090265, 12/03/2019,AAS0294391,307.79,N,N/A,N,N/A
Pendle Borough Council,Financial Services,Transport Related Expense,3202,Diesel Oil,FUELMATE LTD,A0090265, 05/03/2019,AAS0294223,73.79,N,N/A,N,N/A
Pendle Borough Council,Financial Services,Transport Related Expense,3202,Diesel Oil,FUELMATE LTD,A0090265, 19/03/2019,AAS0294650,275.78,N,N/A,N,N/A
Pendle Borough Council,Financial Services,Transport Related Expense,3202,Diesel Oil,FUELMATE LTD,A0090265, 26/03/2019,AAS0294770,286.88,N,N/A,N,N/A
Pendle Borough Council,Financial Services,Transport Related Expense,3202,Diesel Oil,FUELMATE LTD,A0090265, 12/03/2019,AAS0294391,303.45,N,N/A,N,N/A
Pendle Borough Council,Financial Services,Transport Related Expense,3202,Diesel Oil,FUELMATE LTD,A0090265, 19/03/2019,AAS0294650,201.99,N,N/A,N,N/A
Pendle Borough Council,Financial Services,Transport Related Expense,3202,Diesel Oil,FUELMATE LTD,A0090265, 12/03/2019,AAS0294391,239.24,N,N/A,N,N/A
Pendle Borough Council,Financial Services,Transport Related Expense,3202,Diesel Oil,FUELMATE LTD,A0090265, 19/03/2019,AAS0294650,107.76,N,N/A,N,N/A
Pendle Borough Council,Financial Services,Transport Related Expense,3202,Diesel Oil,FUELMATE LTD,A0090265, 26/03/2019,AAS0294770,113.38,N,N/A,N,N/A
Pendle Borough Council,Financial Services,Transport Related Expense,3202,Diesel Oil,FUELMATE LTD,A0090265, 26/03/2019,AAS0294770,114.87,N,N/A,N,N/A
Pendle Borough Council,Financial Services,Transport Related Expense,3202,Diesel Oil,FUELMATE LTD,A0090265, 05/03/2019,AAS0294223,159.17,N,N/A,N,N/A
Pendle Borough Council,Financial Services,Transport Related Expense,3202,Diesel Oil,FUELMATE LTD,A0090265, 12/03/2019,AAS0294391,181.42,N,N/A,N,N/A
Pendle Borough Council,Financial Services,Transport Related Expense,3202,Diesel Oil,FUELMATE LTD,A0090265, 05/03/2019,AAS0294223,65.78,N,N/A,N,N/A
Pendle Borough Council,Financial Services,Transport Related Expense,3202,Diesel Oil,FUELMATE LTD,A0090265, 19/03/2019,AAS0294650,135.68,N,N/A,N,N/A
Pendle Borough Council,Financial Services,Transport Related Expense,3202,Diesel Oil,FUELMATE LTD,A0090265, 26/03/2019,AAS0294770,217.66,N,N/A,N,N/A
Pendle Borough Council,Financial Services,Transport Related Expense,3202,Diesel Oil,FUELMATE LTD,A0090265, 12/03/2019,AAS0294391,303.91,N,N/A,N,N/A
Pendle Borough Council,Financial Services,Transport Related Expense,3202,Diesel Oil,FUELMATE LTD,A0090265, 26/03/2019,AAS0294770,135.12,N,N/A,N,N/A
Pendle Borough Council,Financial Services,Transport Related Expense,3202,Diesel Oil,FUELMATE LTD,A0090265, 12/03/2019,AAS0294391,160.3,N,N/A,N,N/A
Pendle Borough Council,Financial Services,Transport Related Expense,3202,Diesel Oil,FUELMATE LTD,A0090265, 19/03/2019,AAS0294650,185.38,N,N/A,N,N/A
Pendle Borough Council,Financial Services,Transport Related Expense,3202,Diesel Oil,FUELMATE LTD,A0090265, 05/03/2019,AAS0294223,203.97,N,N/A,N,N/A
Pendle Borough Council,Financial Services,Transport Related Expense,3202,Diesel Oil,FUELMATE LTD,A0090265, 26/03/2019,AAS0294770,246.19,N,N/A,N,N/A
Pendle Borough Council,Financial Services,Transport Related Expense,3202,Diesel Oil,FUELMATE LTD,A0090265, 12/03/2019,AAS0294391,283.34,N,N/A,N,N/A
Pendle Borough Council,Financial Services,Transport Related Expense,3202,Diesel Oil,FUELMATE LTD,A0090265, 19/03/2019,AAS0294650,284.07,N,N/A,N,N/A
Pendle Borough Council,Financial Services,Transport Related Expense,3202,Diesel Oil,FUELMATE LTD,A0090265, 05/03/2019,AAS0294223,295.84,N,N/A,N,N/A
Pendle Borough Council,Financial Services,Transport Related Expense,3202,Diesel Oil,FUELMATE LTD,A0090265, 19/03/2019,AAS0294650,51.55,N,N/A,N,N/A
Pendle Borough Council,Financial Services,Transport Related Expense,3202,Diesel Oil,FUELMATE LTD,A0090265, 26/03/2019,AAS0294770,58.81,N,N/A,N,N/A
Pendle Borough Council,Financial Services,Transport Related Expense,3202,Diesel Oil,FUELMATE LTD,A0090265, 12/03/2019,AAS0294391,100.69,N,N/A,N,N/A
Pendle Borough Council,Financial Services,Transport Related Expense,3202,Diesel Oil,FUELMATE LTD,A0090265, 05/03/2019,AAS0294223,109.99,N,N/A,N,N/A
Pendle Borough Council,Financial Services,Transport Related Expense,3202,Diesel Oil,FUELMATE LTD,A0090265, 12/03/2019,AAS0294391,254.5,N,N/A,N,N/A
Pendle Borough Council,Financial Services,Transport Related Expense,3202,Diesel Oil,FUELMATE LTD,A0090265, 26/03/2019,AAS0294770,261.06,N,N/A,N,N/A
Pendle Borough Council,Financial Services,Transport Related Expense,3202,Diesel Oil,FUELMATE LTD,A0090265, 19/03/2019,AAS0294650,267.03,N,N/A,N,N/A
Pendle Borough Council,Financial Services,Transport Related Expense,3202,Diesel Oil,FUELMATE LTD,A0090265, 05/03/2019,AAS0294223,317.88,N,N/A,N,N/A
Pendle Borough Council,Financial Services,Transport Related Expense,3202,Diesel Oil,FUELMATE LTD,A0090265, 12/03/2019,AAS0294391,238.81,N,N/A,N,N/A
Pendle Borough Council,Financial Services,Transport Related Expense,3202,Diesel Oil,FUELMATE LTD,A0090265, 19/03/2019,AAS0294650,242.88,N,N/A,N,N/A
Pendle Borough Council,Financial Services,Transport Related Expense,3202,Diesel Oil,FUELMATE LTD,A0090265, 26/03/2019,AAS0294770,281.67,N,N/A,N,N/A
Pendle Borough Council,Financial Services,Transport Related Expense,3202,Diesel Oil,FUELMATE LTD,A0090265, 05/03/2019,AAS0294223,300.18,N,N/A,N,N/A
Pendle Borough Council,Financial Services,Transport Related Expense,3202,Diesel Oil,FUELMATE LTD,A0090265, 12/03/2019,AAS0294391,192.56,N,N/A,N,N/A
Pendle Borough Council,Financial Services,Transport Related Expense,3202,Diesel Oil,FUELMATE LTD,A0090265, 19/03/2019,AAS0294650,220.77,N,N/A,N,N/A
Pendle Borough Council,Financial Services,Transport Related Expense,3202,Diesel Oil,FUELMATE LTD,A0090265, 26/03/2019,AAS0294770,225.16,N,N/A,N,N/A
Pendle Borough Council,Financial Services,Transport Related Expense,3202,Diesel Oil,FUELMATE LTD,A0090265, 05/03/2019,AAS0294223,249.33,N,N/A,N,N/A
Pendle Borough Council,Financial Services,Transport Related Expense,3202,Diesel Oil,FUELMATE LTD,A0090265, 26/03/2019,AAS0294770,190.76,N,N/A,N,N/A
Pendle Borough Council,Financial Services,Transport Related Expense,3202,Diesel Oil,FUELMATE LTD,A0090265, 05/03/2019,AAS0294223,277.83,N,N/A,N,N/A
Pendle Borough Council,Financial Services,Transport Related Expense,3202,Diesel Oil,FUELMATE LTD,A0090265, 05/03/2019,AAS0294223,43.39,N,N/A,N,N/A
Pendle Borough Council,Financial Services,Transport Related Expense,3202,Diesel Oil,FUELMATE LTD,A0090265, 12/03/2019,AAS0294391,70.36,N,N/A,N,N/A
Pendle Borough Council,Financial Services,Transport Related Expense,3202,Diesel Oil,FUELMATE LTD,A0090265, 19/03/2019,AAS0294650,114.64,N,N/A,N,N/A
Pendle Borough Council,Financial Services,Transport Related Expense,3202,Diesel Oil,FUELMATE LTD,A0090265, 26/03/2019,AAS0294770,120.52,N,N/A,N,N/A
Pendle Borough Council,Financial Services,Transport Related Expense,3202,Diesel Oil,FUELMATE LTD,A0090265, 05/03/2019,AAS0294223,130.43,N,N/A,N,N/A
Pendle Borough Council,Financial Services,Transport Related Expense,3202,Diesel Oil,FUELMATE LTD,A0090265, 26/03/2019,AAS0294770,153.07,N,N/A,N,N/A
Pendle Borough Council,Financial Services,Transport Related Expense,3202,Diesel Oil,FUELMATE LTD,A0090265, 05/03/2019,AAS0294223,200.55,N,N/A,N,N/A
Pendle Borough Council,Financial Services,Transport Related Expense,3202,Diesel Oil,FUELMATE LTD,A0090265, 19/03/2019,AAS0294650,208.24,N,N/A,N,N/A
Pendle Borough Council,Financial Services,Transport Related Expense,3202,Diesel Oil,FUELMATE LTD,A0090265, 12/03/2019,AAS0294391,230.67,N,N/A,N,N/A
Pendle Borough Council,Financial Services,Transport Related Expense,3202,Diesel Oil,FUELMATE LTD,A0090265, 12/03/2019,AAS0294391,104.83,N,N/A,N,N/A
Pendle Borough Council,Financial Services,Transport Related Expense,3202,Diesel Oil,FUELMATE LTD,A0090265, 19/03/2019,AAS0294650,174.42,N,N/A,N,N/A
Pendle Borough Council,Financial Services,Transport Related Expense,3202,Diesel Oil,FUELMATE LTD,A0090265, 05/03/2019,AAS0294223,177.18,N,N/A,N,N/A
Pendle Borough Council,Financial Services,Transport Related Expense,3202,Diesel Oil,FUELMATE LTD,A0090265, 26/03/2019,AAS0294770,188.35,N,N/A,N,N/A
Pendle Borough Council,Financial Services,Transport Related Expense,3202,Diesel Oil,FUELMATE LTD,A0090265, 26/03/2019,AAS0294770,165.18,N,N/A,N,N/A
Pendle Borough Council,Financial Services,Transport Related Expense,3202,Diesel Oil,FUELMATE LTD,A0090265, 19/03/2019,AAS0294650,188.55,N,N/A,N,N/A
Pendle Borough Council,Financial Services,Transport Related Expense,3202,Diesel Oil,FUELMATE LTD,A0090265, 05/03/2019,AAS0294223,189.93,N,N/A,N,N/A
Pendle Borough Council,Financial Services,Transport Related Expense,3202,Diesel Oil,FUELMATE LTD,A0090265, 12/03/2019,AAS0294391,190.21,N,N/A,N,N/A
Pendle Borough Council,Financial Services,Transport Related Expense,3202,Diesel Oil,FUELMATE LTD,A0090265, 19/03/2019,AAS0294650,186.53,N,N/A,N,N/A
Pendle Borough Council,Financial Services,Transport Related Expense,3202,Diesel Oil,FUELMATE LTD,A0090265, 05/03/2019,AAS0294223,198.61,N,N/A,N,N/A
Pendle Borough Council,Financial Services,Transport Related Expense,3202,Diesel Oil,FUELMATE LTD,A0090265, 12/03/2019,AAS0294391,200,N,N/A,N,N/A
Pendle Borough Council,Financial Services,Transport Related Expense,3202,Diesel Oil,FUELMATE LTD,A0090265, 26/03/2019,AAS0294770,210.54,N,N/A,N,N/A
Pendle Borough Council,Financial Services,Transport Related Expense,3202,Diesel Oil,FUELMATE LTD,A0090265, 12/03/2019,AAS0294391,76.22,N,N/A,N,N/A
Pendle Borough Council,Financial Services,Transport Related Expense,3202,Diesel Oil,FUELMATE LTD,A0090265, 19/03/2019,AAS0294650,48.95,N,N/A,N,N/A
Pendle Borough Council,Financial Services,Transport Related Expense,3202,Diesel Oil,FUELMATE LTD,A0090265, 05/03/2019,AAS0294223,57.18,N,N/A,N,N/A
Pendle Borough Council,Financial Services,Transport Related Expense,3202,Diesel Oil,FUELMATE LTD,A0090265, 12/03/2019,AAS0294391,82.6,N,N/A,N,N/A
Pendle Borough Council,Financial Services,Transport Related Expense,3202,Diesel Oil,FUELMATE LTD,A0090265, 12/03/2019,AAS0294391,27.2,N,N/A,N,N/A
Pendle Borough Council,Financial Services,Transport Related Expense,3202,Diesel Oil,FUELMATE LTD,A0090265, 26/03/2019,AAS0294770,37.45,N,N/A,N,N/A
Pendle Borough Council,Financial Services,Transport Related Expense,3202,Diesel Oil,FUELMATE LTD,A0090265, 12/03/2019,AAS0294391,69.35,N,N/A,N,N/A
Pendle Borough Council,Financial Services,Transport Related Expense,3202,Diesel Oil,FUELMATE LTD,A0090265, 05/03/2019,AAS0294223,73.01,N,N/A,N,N/A
Pendle Borough Council,Financial Services,Transport Related Expense,3202,Diesel Oil,FUELMATE LTD,A0090265, 19/03/2019,AAS0294650,99.5,N,N/A,N,N/A
Pendle Borough Council,Financial Services,Transport Related Expense,3202,Diesel Oil,FUELMATE LTD,A0090265, 26/03/2019,AAS0294770,152.53,N,N/A,N,N/A
Pendle Borough Council,Financial Services,Transport Related Expense,3202,Diesel Oil,FUELMATE LTD,A0090265, 05/03/2019,AAS0294223,53.86,N,N/A,N,N/A
Pendle Borough Council,Financial Services,Transport Related Expense,3202,Diesel Oil,FUELMATE LTD,A0090265, 05/03/2019,AAS0294223,49.52,N,N/A,N,N/A
Pendle Borough Council,Financial Services,Transport Related Expense,3202,Diesel Oil,FUELMATE LTD,A0090265, 12/03/2019,AAS0294391,85.35,N,N/A,N,N/A
Pendle Borough Council,Financial Services,Transport Related Expense,3202,Diesel Oil,FUELMATE LTD,A0090265, 26/03/2019,AAS0294770,92.38,N,N/A,N,N/A
Pendle Borough Council,Financial Services,Transport Related Expense,3202,Diesel Oil,FUELMATE LTD,A0090265, 19/03/2019,AAS0294650,96.06,N,N/A,N,N/A
Pendle Borough Council,Financial Services,Transport Related Expense,3202,Diesel Oil,FUELMATE LTD,A0090265, 19/03/2019,AAS0294650,51.22,N,N/A,N,N/A
Pendle Borough Council,Financial Services,Transport Related Expense,3202,Diesel Oil,FUELMATE LTD,A0090265, 05/03/2019,AAS0294223,58.57,N,N/A,N,N/A
Pendle Borough Council,Financial Services,Transport Related Expense,3202,Diesel Oil,FUELMATE LTD,A0090265, 12/03/2019,AAS0294391,60.15,N,N/A,N,N/A
Pendle Borough Council,Financial Services,Transport Related Expense,3202,Diesel Oil,FUELMATE LTD,A0090265, 26/03/2019,AAS0294770,96.83,N,N/A,N,N/A
Pendle Borough Council,Financial Services,Transport Related Expense,3202,Diesel Oil,FUELMATE LTD,A0090265, 19/03/2019,AAS0294650,54.45,N,N/A,N,N/A
Pendle Borough Council,Financial Services,Transport Related Expense,3202,Diesel Oil,FUELMATE LTD,A0090265, 26/03/2019,AAS0294770,55.73,N,N/A,N,N/A
Pendle Borough Council,Financial Services,Transport Related Expense,3202,Diesel Oil,FUELMATE LTD,A0090265, 12/03/2019,AAS0294391,58.09,N,N/A,N,N/A
Pendle Borough Council,Financial Services,Transport Related Expense,3202,Diesel Oil,FUELMATE LTD,A0090265, 05/03/2019,AAS0294223,60.92,N,N/A,N,N/A
Pendle Borough Council,Financial Services,Transport Related Expense,3202,Diesel Oil,FUELMATE LTD,A0090265, 12/03/2019,AAS0294391,65.89,N,N/A,N,N/A
Pendle Borough Council,Financial Services,Transport Related Expense,3202,Diesel Oil,FUELMATE LTD,A0090265, 05/03/2019,AAS0294223,66.69,N,N/A,N,N/A
Pendle Borough Council,Financial Services,Transport Related Expense,3202,Diesel Oil,FUELMATE LTD,A0090265, 26/03/2019,AAS0294770,73.44,N,N/A,N,N/A
Pendle Borough Council,Financial Services,Transport Related Expense,3202,Diesel Oil,FUELMATE LTD,A0090265, 19/03/2019,AAS0294650,74.77,N,N/A,N,N/A
Pendle Borough Council,Financial Services,Transport Related Expense,3202,Diesel Oil,FUELMATE LTD,A0090265, 19/03/2019,AAS0294650,53.46,N,N/A,N,N/A
Pendle Borough Council,Financial Services,Transport Related Expense,3202,Diesel Oil,FUELMATE LTD,A0090265, 26/03/2019,AAS0294770,60.78,N,N/A,N,N/A
Pendle Borough Council,Financial Services,Transport Related Expense,3202,Diesel Oil,FUELMATE LTD,A0090265, 05/03/2019,AAS0294223,95.15,N,N/A,N,N/A
Pendle Borough Council,Financial Services,Transport Related Expense,3202,Diesel Oil,FUELMATE LTD,A0090265, 12/03/2019,AAS0294391,121.8,N,N/A,N,N/A
Pendle Borough Council,Financial Services,Transport Related Expense,3202,Diesel Oil,FUELMATE LTD,A0090265, 05/03/2019,AAS0294223,57.96,N,N/A,N,N/A
Pendle Borough Council,Financial Services,Transport Related Expense,3202,Diesel Oil,FUELMATE LTD,A0090265, 12/03/2019,AAS0294391,53.62,N,N/A,N,N/A
Pendle Borough Council,Financial Services,Transport Related Expense,3202,Diesel Oil,FUELMATE LTD,A0090265, 19/03/2019,AAS0294650,46.32,N,N/A,N,N/A
Pendle Borough Council,Financial Services,Transport Related Expense,3202,Diesel Oil,FUELMATE LTD,A0090265, 26/03/2019,AAS0294770,54.96,N,N/A,N,N/A
Pendle Borough Council,Financial Services,Transport Related Expense,3202,Diesel Oil,FUELMATE LTD,A0090265, 26/03/2019,AAS0294770,50.86,N,N/A,N,N/A
Pendle Borough Council,Financial Services,Transport Related Expense,3202,Diesel Oil,FUELMATE LTD,A0090265, 05/03/2019,AAS0294223,50.68,N,N/A,N,N/A
Pendle Borough Council,Financial Services,Transport Related Expense,3202,Diesel Oil,FUELMATE LTD,A0090265, 26/03/2019,AAS0294770,51.02,N,N/A,N,N/A
Pendle Borough Council,Financial Services,Transport Related Expense,3202,Diesel Oil,FUELMATE LTD,A0090265, 26/03/2019,AAS0294770,39.27,N,N/A,N,N/A
Pendle Borough Council,Financial Services,Transport Related Expense,3202,Diesel Oil,FUELMATE LTD,A0090265, 26/03/2019,AAS0294770,56.64,N,N/A,N,N/A
Pendle Borough Council,Financial Services,Transport Related Expense,3202,Diesel Oil,FUELMATE LTD,A0090265, 26/03/2019,AAS0294770,150.36,N,N/A,N,N/A
Pendle Borough Council,Financial Services,Transport Related Expense,3202,Diesel Oil,FUELMATE LTD,A0090265, 19/03/2019,AAS0294650,183.62,N,N/A,N,N/A
Pendle Borough Council,Financial Services,Transport Related Expense,3202,Diesel Oil,FUELMATE LTD,A0090265, 05/03/2019,AAS0294223,184.28,N,N/A,N,N/A
Pendle Borough Council,Financial Services,Transport Related Expense,3202,Diesel Oil,FUELMATE LTD,A0090265, 12/03/2019,AAS0294391,184.4,N,N/A,N,N/A
Pendle Borough Council,Financial Services,Transport Related Expense,3202,Diesel Oil,FUELMATE LTD,A0090265, 26/03/2019,AAS0294770,51.77,N,N/A,N,N/A
Pendle Borough Council,Financial Services,Transport Related Expense,3202,Diesel Oil,FUELMATE LTD,A0090265, 12/03/2019,AAS0294391,88.92,N,N/A,N,N/A
Pendle Borough Council,Financial Services,Transport Related Expense,3202,Diesel Oil,FUELMATE LTD,A0090265, 26/03/2019,AAS0294770,60.28,N,N/A,N,N/A
Pendle Borough Council,Financial Services,Transport Related Expense,3202,Diesel Oil,FUELMATE LTD,A0090265, 12/03/2019,AAS0294391,63.48,N,N/A,N,N/A
Pendle Borough Council,Financial Services,Transport Related Expense,3202,Diesel Oil,FUELMATE LTD,A0090265, 05/03/2019,AAS0294223,57.58,N,N/A,N,N/A
Pendle Borough Council,Financial Services,Transport Related Expense,3202,Diesel Oil,FUELMATE LTD,A0090265, 19/03/2019,AAS0294650,68.69,N,N/A,N,N/A
Pendle Borough Council,Financial Services,Transport Related Expense,3202,Diesel Oil,FUELMATE LTD,A0090265, 12/03/2019,AAS0294391,59.38,N,N/A,N,N/A
Pendle Borough Council,Financial Services,Transport Related Expense,3202,Diesel Oil,FUELMATE LTD,A0090265, 05/03/2019,AAS0294223,61.52,N,N/A,N,N/A
Pendle Borough Council,Financial Services,Transport Related Expense,3202,Diesel Oil,FUELMATE LTD,A0090265, 26/03/2019,AAS0294770,62.72,N,N/A,N,N/A
Pendle Borough Council,Financial Services,Transport Related Expense,3202,Diesel Oil,FUELMATE LTD,A0090265, 12/03/2019,AAS0294391,67.13,N,N/A,N,N/A
Pendle Borough Council,Financial Services,Transport Related Expense,3202,Diesel Oil,FUELMATE LTD,A0090265, 05/03/2019,AAS0294223,59.53,N,N/A,N,N/A
Pendle Borough Council,Financial Services,Transport Related Expense,3202,Diesel Oil,FUELMATE LTD,A0090265, 12/03/2019,AAS0294391,60.7,N,N/A,N,N/A
Pendle Borough Council,Financial Services,Transport Related Expense,3202,Diesel Oil,FUELMATE LTD,A0090265, 19/03/2019,AAS0294650,10.95,N,N/A,N,N/A
Pendle Borough Council,Financial Services,Transport Related Expense,3202,Diesel Oil,FUELMATE LTD,A0090265, 05/03/2019,AAS0294223,54.03,N,N/A,N,N/A
Pendle Borough Council,Financial Services,Transport Related Expense,3202,Diesel Oil,FUELMATE LTD,A0090265, 26/03/2019,AAS0294770,41.5,N,N/A,N,N/A
Pendle Borough Council,Financial Services,Transport Related Expense,3202,Diesel Oil,FUELMATE LTD,A0090265, 05/03/2019,AAS0294223,70.5,N,N/A,N,N/A
Pendle Borough Council,Financial Services,Transport Related Expense,3202,Diesel Oil,FUELMATE LTD,A0090265, 19/03/2019,AAS0294650,82.8,N,N/A,N,N/A
Pendle Borough Council,Democratic & Legal Services,Supplies and Services,4705,Other Expenses,REDACTED - PERSONAL DATA,A0090275, 27/03/2019,DAL0294612,45,N,N/A,N,N/A
Pendle Borough Council,Parks & Recreation Services,Supplies and Services,4705,Other Expenses,BARNOLDSWICK TOWN COUNCIL,A0090352, 07/03/2019,PCO0294157,900.25,N,N/A,N,N/A
Pendle Borough Council,Parks & Recreation Services,Supplies and Services,4705,Other Expenses,BARNOLDSWICK TOWN COUNCIL,A0090352, 07/03/2019,PCO0294159,1279.51,N,N/A,N,N/A
Pendle Borough Council,Chief Executives Policy Unit,Capital Costs,CD14,Capital : Payments,BARNOLDSWICK TOWN COUNCIL,A0090352, 21/03/2019,COR0294340,3317.4,N,N/A,N,N/A
Pendle Borough Council,Engineering & Special Projects,Premises Related Expense,2101,Grounds : R & M : Day to Day : Routine,GREEN CLEAN RESTORATION,A0090368, 07/03/2019,HED0294078,1995,N,N/A,N,N/A
Pendle Borough Council,Operational Services,Premises Related Expense,2501,Water & Sewerage,AQUAM WATER SERVICES LIMITED,A0090390, 07/03/2019,OPS0294153,4.1,N,N/A,N,N/A
Pendle Borough Council,Democratic & Legal Services,Supplies and Services,4614,Mayoral Expenses,TRAWDEN TRAVEL,A0090444, 14/03/2019,DAL0294302,195,N,N/A,N,N/A
Pendle Borough Council,Democratic & Legal Services,Supplies and Services,4705,Other Expenses,TRAWDEN TRAVEL,A0090444, 14/03/2019,DAL0294302,175,N,N/A,N,N/A
Pendle Borough Council,Human Resources,Supplies and Services,4601,Seminars etc All Costs,THE ATHENA PROGRAMME LIMITED,A0090474, 27/03/2019,PER0294641,30,N,N/A,N,N/A
Pendle Borough Council,Human Resources,Supplies and Services,4601,Seminars etc All Costs,THE ATHENA PROGRAMME LIMITED,A0090474, 27/03/2019,PER0294641,750,N,N/A,N,N/A
Pendle Borough Council,Financial Services,Supplies and Services,4305,Newspapers & Periodicals,LANCASHIRE BUSINESS VIEW,A0090521, 01/03/2019,AAS0294220,2.5,N,N/A,N,N/A
Pendle Borough Council,Operational Services,Supplies and Services,4003,EFM : Other Equipment,R S ASBESTOS LIMITED,A0090548, 14/03/2019,OPS0294213,595,N,N/A,N,N/A
Pendle Borough Council,Revenues Services,Supplies and Services,4401,Consultants Fees,PS&P LTD,A0090720, 21/03/2019,TRE0294429,2,N,N/A,N,N/A
Pendle Borough Council,Revenues Services,Supplies and Services,4401,Consultants Fees,PS&P LTD,A0090720, 27/03/2019,TRE0294634,19,N,N/A,N,N/A
Pendle Borough Council,Operational Services,Agency Staff,1004,Emp : Agency Wages,M65 JOBSEARCH LIMITED,A0090760, 27/03/2019,OPS0294692,587.22,N,N/A,N,N/A
Pendle Borough Council,Property Services,Capital Costs,CD14,Capital : Payments,H2O FLOWTECH LIMITED,A0090845, 27/03/2019,EST0294627,252.48,N,N/A,N,N/A
Pendle Borough Council,Financial Services,Premises Related Expense,2202,Gas,ORSTED SALES (UK) LIMITED,A0090977, 20/03/2019,AAS0294750,31.4,N,N/A,N,N/A
Pendle Borough Council,Financial Services,Premises Related Expense,2202,Gas,ORSTED SALES (UK) LIMITED,A0090977, 20/03/2019,AAS0294751,57.24,N,N/A,N,N/A
Pendle Borough Council,Financial Services,Premises Related Expense,2202,Gas,ORSTED SALES (UK) LIMITED,A0090977, 20/03/2019,AAS0294758,168.96,N,N/A,N,N/A
Pendle Borough Council,Financial Services,Premises Related Expense,2202,Gas,ORSTED SALES (UK) LIMITED,A0090977, 20/03/2019,AAS0294763,122.48,N,N/A,N,N/A
Pendle Borough Council,Financial Services,Premises Related Expense,2202,Gas,ORSTED SALES (UK) LIMITED,A0090977, 20/03/2019,AAS0294761,144.17,N,N/A,N,N/A
Pendle Borough Council,Financial Services,Premises Related Expense,2202,Gas,ORSTED SALES (UK) LIMITED,A0090977, 20/03/2019,AAS0294757,163.63,N,N/A,N,N/A
Pendle Borough Council,Financial Services,Premises Related Expense,2202,Gas,ORSTED SALES (UK) LIMITED,A0090977, 20/03/2019,AAS0294762,74.48,N,N/A,N,N/A
Pendle Borough Council,Financial Services,Premises Related Expense,2202,Gas,ORSTED SALES (UK) LIMITED,A0090977, 20/03/2019,AAS0294747,249.09,N,N/A,N,N/A
Pendle Borough Council,Financial Services,Premises Related Expense,2202,Gas,ORSTED SALES (UK) LIMITED,A0090977, 20/03/2019,AAS0294752,54.66,N,N/A,N,N/A
Pendle Borough Council,Financial Services,Premises Related Expense,2202,Gas,ORSTED SALES (UK) LIMITED,A0090977, 20/03/2019,AAS0294749,91.49,N,N/A,N,N/A
Pendle Borough Council,Financial Services,Premises Related Expense,2202,Gas,ORSTED SALES (UK) LIMITED,A0090977, 20/03/2019,AAS0294748,27.56,N,N/A,N,N/A
Pendle Borough Council,Financial Services,Premises Related Expense,2202,Gas,ORSTED SALES (UK) LIMITED,A0090977, 20/03/2019,AAS0294754,306.84,N,N/A,N,N/A
Pendle Borough Council,Financial Services,Premises Related Expense,2202,Gas,ORSTED SALES (UK) LIMITED,A0090977, 20/03/2019,AAS0294755,213.59,N,N/A,N,N/A
Pendle Borough Council,Housing Regeneration Services,Transfer Payments,6104,Storage & Homelessness prevention,CALICO HOMES,A0091059, 27/03/2019,HMR0294599,674.54,Y,1151945,N,N/A
Pendle Borough Council,Parks & Recreation Services,Transport Related Expense,3105,Tprt : Repairs : General,CASTLE GROUP LIMITED,A0091129, 07/03/2019,PCO0294173,721.8,N,N/A,N,N/A
Pendle Borough Council,Financial Services,Support Services,7202,District Audit Fees,CABINET OFFICE,A0091137, 21/03/2019,AAS0294436,2300,N,N/A,N,N/A
Pendle Borough Council,Democratic & Legal Services,Supplies and Services,4403,Court Fees,SHERGROUP LEGAL,A0091139, 27/03/2019,DAL0294657,66,N,N/A,N,N/A
Pendle Borough Council,Operational Services,Supplies and Services,4502,Telephones : Direct,LODG-IC LIMITED,A0091148, 14/03/2019,OPS0294217,900,N,N/A,N,N/A
Pendle Borough Council,Housing Regeneration Services,Capital Costs,CH22,Ren Grant : 1996 Act,D Y BUILDING SERVICES,A0091159, 14/03/2019,HMR0294316,3860,N,N/A,N,N/A
Pendle Borough Council,Democratic & Legal Services,Capital Costs,CD14,Capital : Payments,RESTORE DATASHRED,A0091201, 21/03/2019,DAL0294373,525,N,N/A,N,N/A
Pendle Borough Council,Planning & Building Control,Supplies and Services,4601,Seminars etc All Costs,REDACTED - PERSONAL DATA,A0091236, 27/03/2019,PBC0294552,11.7,N,N/A,N,N/A
Pendle Borough Council,Information Services,Capital Costs,CD14,Capital : Payments,SOFTCAT,A0091298, 21/03/2019,ITS0294427,4191.28,N,N/A,N,N/A
Pendle Borough Council,Information Services,Capital Costs,CD14,Capital : Payments,SOFTCAT,A0091298, 21/03/2019,ITS0294427,6123.06,N,N/A,N,N/A
Pendle Borough Council,Information Services,Capital Costs,CD14,Capital : Payments,SOFTCAT,A0091298, 21/03/2019,ITS0294427,8376.46,N,N/A,N,N/A
Pendle Borough Council,Democratic & Legal Services,Supplies and Services,4401,Consultants Fees,BUCKET AND SPADE MEDIA LIMITED,A0091371, 07/03/2019,DAL0294181,175,N,N/A,N,N/A
Pendle Borough Council,Operational Services,Supplies and Services,4707,Miscellaneous : Other,EURO LABELS PRINTERS LIMITED,A0091396, 14/03/2019,OPS4006011,-4.92,N,N/A,N,N/A
Pendle Borough Council,Operational Services,Supplies and Services,4707,Miscellaneous : Other,EURO LABELS PRINTERS LIMITED,A0091396, 14/03/2019,OPS0293797,30.54,N,N/A,N,N/A
Pendle Borough Council,Parks & Recreation Services,Supplies and Services,4705,Other Expenses,REX GREGSON LIMITED,A0091402, 21/03/2019,PCO0294405,495,N,N/A,N,N/A
Pendle Borough Council,Engineering & Special Projects,Premises Related Expense,2101,Grounds : R & M : Day to Day : Routine,REDFOX COUNTRYSIDE SERVICES LIMITED,A0091414, 07/03/2019,HED0294019,94,N,N/A,N,N/A
Pendle Borough Council,Engineering & Special Projects,Premises Related Expense,2101,Grounds : R & M : Day to Day : Routine,REDFOX COUNTRYSIDE SERVICES LIMITED,A0091414, 07/03/2019,HED0294019,119,N,N/A,N,N/A
Pendle Borough Council,Engineering & Special Projects,Premises Related Expense,2101,Grounds : R & M : Day to Day : Routine,REDFOX COUNTRYSIDE SERVICES LIMITED,A0091414, 07/03/2019,HED0294018,165,N,N/A,N,N/A
Pendle Borough Council,Engineering & Special Projects,Premises Related Expense,2101,Grounds : R & M : Day to Day : Routine,REDFOX COUNTRYSIDE SERVICES LIMITED,A0091414, 27/03/2019,HED0294607,227,N,N/A,N,N/A
Pendle Borough Council,Engineering & Special Projects,Premises Related Expense,2101,Grounds : R & M : Day to Day : Routine,MARTINS COUNTRYSIDE CONTRACTING LIMITED,A0091415, 27/03/2019,HED0294684,79.5,N,N/A,N,N/A
Pendle Borough Council,Engineering & Special Projects,Premises Related Expense,2101,Grounds : R & M : Day to Day : Routine,MARTINS COUNTRYSIDE CONTRACTING LIMITED,A0091415, 27/03/2019,HED0294688,182.5,N,N/A,N,N/A
Pendle Borough Council,Engineering & Special Projects,Premises Related Expense,2101,Grounds : R & M : Day to Day : Routine,MARTINS COUNTRYSIDE CONTRACTING LIMITED,A0091415, 27/03/2019,HED0294686,137,N,N/A,N,N/A
Pendle Borough Council,Engineering & Special Projects,Premises Related Expense,2101,Grounds : R & M : Day to Day : Routine,MARTINS COUNTRYSIDE CONTRACTING LIMITED,A0091415, 27/03/2019,HED0294685,252,N,N/A,N,N/A
Pendle Borough Council,Engineering & Special Projects,Premises Related Expense,2101,Grounds : R & M : Day to Day : Routine,MARTINS COUNTRYSIDE CONTRACTING LIMITED,A0091415, 27/03/2019,HED0294687,52.5,N,N/A,N,N/A
Pendle Borough Council,Housing Regeneration Services,Capital Costs,CD14,Capital : Payments,MOSSCARE ST VINCENTS HOUSING,A0091504, 27/03/2019,HMR0294717,208.33,N,N/A,N,N/A
Pendle Borough Council,Planning & Building Control,,9302,Fees Income : Non-VATable,PORTALPLANQUEST LIMITED,A0091554, 21/03/2019,PBC0294495,20,N,N/A,N,N/A
Pendle Borough Council,Planning & Building Control,,9302,Fees Income : Non-VATable,PORTALPLANQUEST LIMITED,A0091554, 27/03/2019,PBC0294553,234,N,N/A,N,N/A
Pendle Borough Council,Planning & Building Control,,9302,Fees Income : Non-VATable,PORTALPLANQUEST LIMITED,A0091554, 07/03/2019,PBC0294039,462,N,N/A,N,N/A
Pendle Borough Council,Planning & Building Control,,9302,Fees Income : Non-VATable,PORTALPLANQUEST LIMITED,A0091554, 27/03/2019,PBC0294570,924,N,N/A,N,N/A
Pendle Borough Council,Operational Services,Agency Staff,1004,Emp : Agency Wages,NW RECRUITMENT SERVICES LIMITED,A0091588, 07/03/2019,OPS0294152,568.93,N,N/A,N,N/A
Pendle Borough Council,Operational Services,Agency Staff,1004,Emp : Agency Wages,NW RECRUITMENT SERVICES LIMITED,A0091588, 07/03/2019,OPS0294172,568.93,N,N/A,N,N/A
Pendle Borough Council,Operational Services,Agency Staff,1004,Emp : Agency Wages,NW RECRUITMENT SERVICES LIMITED,A0091588, 14/03/2019,OPS0294215,568.93,N,N/A,N,N/A
Pendle Borough Council,Operational Services,Agency Staff,1004,Emp : Agency Wages,NW RECRUITMENT SERVICES LIMITED,A0091588, 27/03/2019,OPS0294693,568.93,N,N/A,N,N/A
Pendle Borough Council,Operational Services,Agency Staff,1004,Emp : Agency Wages,NW RECRUITMENT SERVICES LIMITED,A0091588, 27/03/2019,OPS0294731,568.93,N,N/A,N,N/A
Pendle Borough Council,Parks & Recreation Services,Agency Staff,1004,Emp : Agency Wages,NW RECRUITMENT SERVICES LIMITED,A0091588, 21/03/2019,PCO0294366,568.93,N,N/A,N,N/A
Pendle Borough Council,Parks & Recreation Services,Agency Staff,1020,Emp : Salaries & Wages,NW RECRUITMENT SERVICES LIMITED,A0091588, 07/03/2019,PCO0294148,52,N,N/A,N,N/A
Pendle Borough Council,Parks & Recreation Services,Agency Staff,1020,Emp : Salaries & Wages,NW RECRUITMENT SERVICES LIMITED,A0091588, 07/03/2019,PCO0294031,83.2,N,N/A,N,N/A
Pendle Borough Council,Operational Services,Agency Staff,1020,Emp : Salaries & Wages,NW RECRUITMENT SERVICES LIMITED,A0091588, 27/03/2019,OPS0294732,130,N,N/A,N,N/A
Pendle Borough Council,Parks & Recreation Services,Agency Staff,1020,Emp : Salaries & Wages,NW RECRUITMENT SERVICES LIMITED,A0091588, 14/03/2019,PCO0294296,135.2,N,N/A,N,N/A
Pendle Borough Council,Housing Regeneration Services,Supplies and Services,4705,Other Expenses,NGAIRE A JACKSON,A0091617, 07/03/2019,HMR0294120,2400,N,N/A,N,N/A
Pendle Borough Council,Parks & Recreation Services,Premises Related Expense,2001,Bldgs : R & M : Day To Day,OVO ENERGY,A0091619, 14/03/2019,PCO0293276,137,N,N/A,N,N/A
Pendle Borough Council,Housing Regeneration Services,Capital Costs,CH22,Ren Grant : 1996 Act,K B PROPERTIES LIMITED,A0091622, 07/03/2019,HMR0294160,12297,N,N/A,N,2477
Pendle Borough Council,Parks & Recreation Services,Indirect Employee Expenses,1211,Training,TRANSPORT TRAINING ACADEMY LTD,A0091652, 27/03/2019,PCO0294616,50,N,N/A,N,N/A
Pendle Borough Council,Operational Services,Indirect Employee Expenses,1211,Training,TRANSPORT TRAINING ACADEMY LTD,A0091652, 27/03/2019,OPS0294738,120,N,N/A,N,N/A
Pendle Borough Council,Parks & Recreation Services,Indirect Employee Expenses,1211,Training,TRANSPORT TRAINING ACADEMY LTD,A0091652, 21/03/2019,PCO0294339,120,N,N/A,N,N/A
Pendle Borough Council,Operational Services,Indirect Employee Expenses,1211,Training,TRANSPORT TRAINING ACADEMY LTD,A0091652, 27/03/2019,OPS0294614,50,N,N/A,N,N/A
Pendle Borough Council,Operational Services,Indirect Employee Expenses,1211,Training,TRANSPORT TRAINING ACADEMY LTD,A0091652, 21/03/2019,OPS0294334,120,N,N/A,N,N/A
Pendle Borough Council,Operational Services,Indirect Employee Expenses,1211,Training,TRANSPORT TRAINING ACADEMY LTD,A0091652, 27/03/2019,OPS0294613,80,N,N/A,N,N/A
Pendle Borough Council,Operational Services,Indirect Employee Expenses,1211,Training,TRANSPORT TRAINING ACADEMY LTD,A0091652, 27/03/2019,OPS0294615,80,N,N/A,N,N/A
Pendle Borough Council,Operational Services,Indirect Employee Expenses,1211,Training,TRANSPORT TRAINING ACADEMY LTD,A0091652, 21/03/2019,OPS0294333,120,N,N/A,N,N/A
Pendle Borough Council,Operational Services,Indirect Employee Expenses,1211,Training,TRANSPORT TRAINING ACADEMY LTD,A0091652, 21/03/2019,OPS0294335,120,N,N/A,N,N/A
Pendle Borough Council,Operational Services,,PJ01,Stock : Purchases,J&B ELECTRIC POWER TOOL CO LTD,A0091658, 14/03/2019,OPS0294214,87.48,N,N/A,N,N/A
Pendle Borough Council,Planning & Building Control,,9303,Other Income : Non-VATable,I IMRAN VR (NW) LIMITED,A0091662, 07/03/2019,PBC0294043,83.12,N,N/A,N,N/A
Pendle Borough Council,Democratic & Legal Services,Supplies and Services,4705,Other Expenses,REDACTED - PERSONAL DATA,A0091664, 07/03/2019,DAL0294098,80,N,N/A,N,N/A
Pendle Borough Council,Housing Regeneration Services,Capital Costs,CH22,Ren Grant : 1996 Act,REDACTED - PERSONAL DATA,A0091665, 14/03/2019,HMR0294237,1147.97,N,N/A,N,N/A
Pendle Borough Council,Parks & Recreation Services,Premises Related Expense,2101,Grounds : R & M : Day to Day : Routine,PPL PRS LIMITED,A0091668, 21/03/2019,PCO0294365,47.97,N,N/A,N,N/A
Pendle Borough Council,Property Services,Supplies and Services,4406,Performing Rights Fees,PPL PRS LIMITED,A0091668, 14/03/2019,EST0294249,300.6,N,N/A,N,N/A
Pendle Borough Council,Property Services,Supplies and Services,4406,Performing Rights Fees,PPL PRS LIMITED,A0091668, 14/03/2019,EST0294249,712,N,N/A,N,N/A
Pendle Borough Council,Property Services,Supplies and Services,4406,Performing Rights Fees,PPL PRS LIMITED,A0091668, 14/03/2019,EST0294248,174.27,N,N/A,N,N/A
Pendle Borough Council,Property Services,Supplies and Services,4406,Performing Rights Fees,PPL PRS LIMITED,A0091668, 14/03/2019,EST0294248,556.7,N,N/A,N,N/A
Pendle Borough Council,Housing Regeneration Services,Capital Costs,CH22,Ren Grant : 1996 Act,PKB BUILDING & ROOFING SERVICES,A0091669, 14/03/2019,HMR0294280,5064.98,N,N/A,N,N/A
Pendle Borough Council,Economic Development & Tourism,Transport Related Expense,3105,Tprt : Repairs : General,FUEL FLUSH,A0091670, 14/03/2019,REG0294293,160,N,N/A,N,N/A
Pendle Borough Council,Democratic & Legal Services,Supplies and Services,4704,Publicity & advertisement,AMAPHOR GRAPHIC DESIGN,A0091671, 14/03/2019,DAL0294309,180,N,N/A,N,N/A
Pendle Borough Council,Engineering & Special Projects,Premises Related Expense,2101,Grounds : R & M : Day to Day : Routine,WARDSFLEX LIMITED,A0091672, 27/03/2019,HED0294705,960.61,N,N/A,N,N/A
Pendle Borough Council,Engineering & Special Projects,Capital Costs,CD14,Capital : Payments,A&G LANDSCAPES & GROUNDWORKS LIMITED,A0091675, 27/03/2019,HED0294708,1888.36,N,N/A,N,N/A
Pendle Borough Council,Engineering & Special Projects,Supplies and Services,4737,Grant Funding,MIGRANTS WELLBEING ASSOCIATION LANCASHIRE,A0091677, 21/03/2019,HED0294404,2040,N,N/A,N,N/A
Pendle Borough Council,Engineering & Special Projects,Supplies and Services,4737,Grant Funding,EDGE END SENIOR CITIZENS SNOOKER CLUB,A0091678, 21/03/2019,HED0294402,1080,N,N/A,N,N/A
Pendle Borough Council,Housing Regeneration Services,Supplies and Services,4705,Other Expenses,REDACTED - PERSONAL DATA,A0091680, 21/03/2019,HMR0294487,300,N,N/A,N,N/A
Pendle Borough Council,Engineering & Special Projects,Capital Costs,CD14,Capital : Payments,HARDCORE CRUSHING LIMITED,A0091681, 21/03/2019,HED0294544,9330,N,N/A,N,N/A
Pendle Borough Council,Democratic & Legal Services,Capital Costs,CD14,Capital : Payments,TEXTHELP LIMITED,A0091682, 27/03/2019,DAL0294566,3812,N,N/A,N,N/A
Pendle Borough Council,Financial Services,,9202,Fees Income : VATable,ULTIMATE STR LIMITED,A0091684, 27/03/2019,AAS0294648,16.67,N,N/A,N,N/A
Pendle Borough Council,Chief Executives Policy Unit,Supplies and Services,4737,Grant Funding,JIGS4W COMMUNITY CRAFT GROUP,A0091685, 27/03/2019,COR0294560,500,N,N/A,N,N/A
Pendle Borough Council,Democratic & Legal Services,Supplies and Services,4704,Publicity & advertisement,THE DIRECT MAIL COMPANY,A0091687, 27/03/2019,DAL0294624,6721.33,N,N/A,N,N/A
Pendle Borough Council,Housing Regeneration Services,Supplies and Services,4705,Other Expenses,ONWARD HOMES,A0091688, 27/03/2019,HMR0294600,74.73,N,N/A,N,N/A
Pendle Borough Council,Economic Development & Tourism,Supplies and Services,4705,Other Expenses,COLLECTION HOUSE LIMITED - 4452040,A0091691, 27/03/2019,REG0294724,666.67,N,N/A,N,N/A
Pendle Borough Council,Housing Regeneration Services,Supplies and Services,4706,Subscriptions & Donations,LIFELINE LANGUAGE SERVICES LIMITED,A0091692, 27/03/2019,HMR0294719,209.2,N,N/A,N,N/A
Pendle Borough Council,Democratic & Legal Services,Supplies and Services,4705,Other Expenses,REDACTED - PERSONAL DATA,A0091693, 27/03/2019,DAL0294740,90,N,N/A,N,N/A
